BODY,BODY NAME,SUPPLIER CODE,SUPPLIER NAME,TRANSACTION NUMBER,INVOICE DATE,THEIR REF,NARR1,PAID DATE,VAT AMOUNT,EXCLUSIVE AMOUNT,INCLUSIVE AMOUNT,EXPENSE AREA,EXPENSE TYPE,EXPENSE CODE
http://statistics.data.gov.uk/id/local-authority/12UE,Huntingdonshire District Council,200401,IDOX IDOX,40609,28/09/2020,7030617,CONSULTANCY,05/11/2020,2220,11100,13320,3CICT NON STAFF HOLDING ACCOUNT,Consultancy Fees,62400
http://statistics.data.gov.uk/id/local-authority/12UE,Huntingdonshire District Council,200283,ESRI UK ESRI UK,41328,31/10/2020,UK-PIN100584,CONSULTANCY,26/11/2020,906.66,4533.28,5439.94,3CICT NON STAFF HOLDING ACCOUNT,Consultancy Fees,62400
http://statistics.data.gov.uk/id/local-authority/12UE,Huntingdonshire District Council,200812,KOHLER UNINTERRUPTIBLE POWER LTD,38846,07/09/2020,101516,UPS ENGINEER,01/10/2020,190,950,1140,3CICT NON STAFF HOLDING ACCOUNT,Engineer Fees,62403
http://statistics.data.gov.uk/id/local-authority/12UE,Huntingdonshire District Council,200614,PHOENIX SOFTWARE LTD PHOENIX SOFTWARE LTD,41521,27/10/2020,OP/I879502,ICT HARDWARE,03/12/2020,474.72,2373.6,2848.32,3CICT NON STAFF HOLDING ACCOUNT,Ict Hardware,64070
http://statistics.data.gov.uk/id/local-authority/12UE,Huntingdonshire District Council,200614,PHOENIX SOFTWARE LTD PHOENIX SOFTWARE LTD,42501,02/11/2020,OP/I880126,ICT HARDWARE,23/12/2020,1280.88,6404.4,7685.28,3CICT NON STAFF HOLDING ACCOUNT,Ict Hardware,64070
http://statistics.data.gov.uk/id/local-authority/12UE,Huntingdonshire District Council,200614,PHOENIX SOFTWARE LTD PHOENIX SOFTWARE LTD,40103,06/10/2020,OP/I877829,HARDWARE,29/10/2020,59.8,299,358.8,3CICT NON STAFF HOLDING ACCOUNT,Ict Hardware,64070
http://statistics.data.gov.uk/id/local-authority/12UE,Huntingdonshire District Council,200459,KHIPU NETWORKS LTD KHIPU NETWORKS LTD,39459,28/09/2020,INV20341,ICT HARDWARE,22/10/2020,89.6,448,537.6,3CICT NON STAFF HOLDING ACCOUNT,Ict Hardware,64070
http://statistics.data.gov.uk/id/local-authority/12UE,Huntingdonshire District Council,200459,KHIPU NETWORKS LTD KHIPU NETWORKS LTD,39459,28/09/2020,INV20341,ICT HARDWARE,22/10/2020,5,25,30,3CICT NON STAFF HOLDING ACCOUNT,Ict Hardware,64070
http://statistics.data.gov.uk/id/local-authority/12UE,Huntingdonshire District Council,200614,PHOENIX SOFTWARE LTD PHOENIX SOFTWARE LTD,39052,14/09/2020,OP/I875731,SUBSCRIPTIONS,08/10/2020,27.72,138.6,166.32,3CICT NON STAFF HOLDING ACCOUNT,Ict Software,64071
http://statistics.data.gov.uk/id/local-authority/12UE,Huntingdonshire District Council,200614,PHOENIX SOFTWARE LTD PHOENIX SOFTWARE LTD,39052,14/09/2020,OP/I875731,SUBSCRIPTIONS,08/10/2020,254.52,1272.6,1527.12,3CICT NON STAFF HOLDING ACCOUNT,Ict Software,64071
http://statistics.data.gov.uk/id/local-authority/12UE,Huntingdonshire District Council,200614,PHOENIX SOFTWARE LTD PHOENIX SOFTWARE LTD,40253,21/09/2020,OP/I876349,SUBSCRIPTIONS,22/10/2020,55.44,277.2,332.64,3CICT NON STAFF HOLDING ACCOUNT,Ict Software,64071
http://statistics.data.gov.uk/id/local-authority/12UE,Huntingdonshire District Council,200614,PHOENIX SOFTWARE LTD PHOENIX SOFTWARE LTD,40267,15/09/2020,OP/I875947,ICT SOFTWARE,22/10/2020,389.8,1949.01,2338.81,3CICT NON STAFF HOLDING ACCOUNT,Ict Software,64071
http://statistics.data.gov.uk/id/local-authority/12UE,Huntingdonshire District Council,200614,PHOENIX SOFTWARE LTD PHOENIX SOFTWARE LTD,40266,18/08/2020,OP/I873930,ICT SOFTWARE,22/10/2020,369.4,1847.02,2216.42,3CICT NON STAFF HOLDING ACCOUNT,Ict Software,64071
http://statistics.data.gov.uk/id/local-authority/12UE,Huntingdonshire District Council,200149,CAMBRIDGE CITY COUNCIL CAMBRIDGE CITY COUNCIL,41353,28/10/2020,12051148,Q2 RECHARGE ICT COSTS,26/11/2020,64.8,324.01,388.81,3CICT NON STAFF HOLDING ACCOUNT,Land Line Rental,64077
http://statistics.data.gov.uk/id/local-authority/12UE,Huntingdonshire District Council,200770,TELEFONICA UK LTD TELEFONICA UK LTD,40229,20/09/2020,71785542,LINE RENTAL,22/10/2020,10.09,50.46,60.55,3CICT NON STAFF HOLDING ACCOUNT,Line Rental,64075
http://statistics.data.gov.uk/id/local-authority/12UE,Huntingdonshire District Council,200770,TELEFONICA UK LTD TELEFONICA UK LTD,40252,20/08/2020,69397801,LINE RENTAL,22/10/2020,7.74,38.7,46.44,3CICT NON STAFF HOLDING ACCOUNT,Line Rental,64075
http://statistics.data.gov.uk/id/local-authority/12UE,Huntingdonshire District Council,200770,TELEFONICA UK LTD TELEFONICA UK LTD,40228,20/09/2020,71792142,LINE RENTAL,22/10/2020,167.9,839.51,1007.41,3CICT NON STAFF HOLDING ACCOUNT,Line Rental,64075
http://statistics.data.gov.uk/id/local-authority/12UE,Huntingdonshire District Council,200770,TELEFONICA UK LTD TELEFONICA UK LTD,40250,20/08/2020,69419724,LINE RENTAL,22/10/2020,226.76,1133.79,1360.55,3CICT NON STAFF HOLDING ACCOUNT,Line Rental,64075
http://statistics.data.gov.uk/id/local-authority/12UE,Huntingdonshire District Council,200770,TELEFONICA UK LTD TELEFONICA UK LTD,41363,20/10/2020,74236610,LINE RENTAL,26/11/2020,5.5,27.51,33.01,3CICT NON STAFF HOLDING ACCOUNT,Line Rental,64075
http://statistics.data.gov.uk/id/local-authority/12UE,Huntingdonshire District Council,200770,TELEFONICA UK LTD TELEFONICA UK LTD,42130,20/11/2020,76822811,LINE RENTAL,17/12/2020,27.84,139.21,167.05,3CICT NON STAFF HOLDING ACCOUNT,Line Rental,64075
http://statistics.data.gov.uk/id/local-authority/12UE,Huntingdonshire District Council,200770,TELEFONICA UK LTD TELEFONICA UK LTD,41331,20/10/2020,74285708,3cict phones,26/11/2020,34.55,172.76,207.31,3CICT NON STAFF HOLDING ACCOUNT,Line Rental,64075
http://statistics.data.gov.uk/id/local-authority/12UE,Huntingdonshire District Council,200618,PITNEY BOWES SOFTWARE EUROPE LTD PITNEY BOWES SOFTWARE EUROPE LTD,39306,18/09/2020,IN254097,PROFESSIONAL SERVICES,15/10/2020,1166.6,5833,6999.6,3CICT NON STAFF HOLDING ACCOUNT,Professional Services - General,62402
http://statistics.data.gov.uk/id/local-authority/12UE,Huntingdonshire District Council,200728,SOCITM SOCITM,40268,12/10/2020,INV13857,ESSENTIAL MEMBERSHIP 2021,05/11/2020,379,1895,2274,3CICT NON STAFF HOLDING ACCOUNT,Registration Fee,64900
http://statistics.data.gov.uk/id/local-authority/12UE,Huntingdonshire District Council,200149,CAMBRIDGE CITY COUNCIL CAMBRIDGE CITY COUNCIL,41353,28/10/2020,12051148,Q2 RECHARGE ICT COSTS,26/11/2020,0.77,3.84,4.61,3CICT NON STAFF HOLDING ACCOUNT,Stationery,62002
http://statistics.data.gov.uk/id/local-authority/12UE,Huntingdonshire District Council,200765,TAYLOR MADE DESIGNS TAYLOR MADE DESIGNS,42112,15/10/2020,2009,WORK WEAR,10/12/2020,240.93,1204.63,1445.56,Active Lifestyles Gen Mng't,"Clothes, Uniform And Laundry",62000
http://statistics.data.gov.uk/id/local-authority/12UE,Huntingdonshire District Council,200164,CAMPBELL ASSOCIATES CAMPBELL ASSOCIATES,40531,11/09/2020,24816,EQUIPMENT,05/11/2020,659,3295,3954,Air Quality,Equipment,61713
http://statistics.data.gov.uk/id/local-authority/12UE,Huntingdonshire District Council,200164,CAMPBELL ASSOCIATES CAMPBELL ASSOCIATES,40531,11/09/2020,24816,EQUIPMENT,05/11/2020,99,495,594,Air Quality,Equipment,61713
http://statistics.data.gov.uk/id/local-authority/12UE,Huntingdonshire District Council,200164,CAMPBELL ASSOCIATES CAMPBELL ASSOCIATES,40531,11/09/2020,24816,EQUIPMENT,05/11/2020,27,135,162,Air Quality,Equipment,61713
http://statistics.data.gov.uk/id/local-authority/12UE,Huntingdonshire District Council,200164,CAMPBELL ASSOCIATES CAMPBELL ASSOCIATES,40531,11/09/2020,24816,EQUIPMENT,05/11/2020,17.8,89,106.8,Air Quality,Equipment,61713
http://statistics.data.gov.uk/id/local-authority/12UE,Huntingdonshire District Council,200164,CAMPBELL ASSOCIATES CAMPBELL ASSOCIATES,40531,11/09/2020,24816,EQUIPMENT,05/11/2020,5,25,30,Air Quality,Equipment,61713
http://statistics.data.gov.uk/id/local-authority/12UE,Huntingdonshire District Council,200164,CAMPBELL ASSOCIATES CAMPBELL ASSOCIATES,40531,11/09/2020,24816,EQUIPMENT,05/11/2020,-69.2,-346,-415.2,Air Quality,Equipment,61713
http://statistics.data.gov.uk/id/local-authority/12UE,Huntingdonshire District Council,202093,MARTIN CONTRACTING SERVICES LTD,39266,18/09/2020,8,ALMS CLOSE,08/10/2020,23529.92,117649.59,141179.51,Alms Close,Consultancy Fees,62400
http://statistics.data.gov.uk/id/local-authority/12UE,Huntingdonshire District Council,202093,MARTIN CONTRACTING SERVICES LTD,41426,18/11/2020,10,ALMS CLOSE,10/12/2020,12529.64,62648.22,75177.86,Alms Close,Consultancy Fees,62400
http://statistics.data.gov.uk/id/local-authority/12UE,Huntingdonshire District Council,202093,MARTIN CONTRACTING SERVICES LTD,40220,19/10/2020,9,ALMS CLOSE,12/11/2020,9334.1,46670.5,56004.6,Alms Close,Consultancy Fees,62400
http://statistics.data.gov.uk/id/local-authority/12UE,Huntingdonshire District Council,202093,MARTIN CONTRACTING SERVICES LTD,42199,10/12/2020,IN001272,ALMS CLOSE,31/12/2020,4600,23000,27600,Alms Close,Consultancy Fees,62400
http://statistics.data.gov.uk/id/local-authority/12UE,Huntingdonshire District Council,202093,MARTIN CONTRACTING SERVICES LTD,42198,10/12/2020,11,ALMS CLOSE,31/12/2020,3276.78,16383.9,19660.68,Alms Close,Consultancy Fees,62400
http://statistics.data.gov.uk/id/local-authority/12UE,Huntingdonshire District Council,200905,DAVID TURNOCK ARCHITECTS LTD D T ARCHITECTS,40310,21/10/2020,4020,ALMS CLOSE,29/10/2020,645,3225,3870,Alms Close,Consultancy Fees,62400
http://statistics.data.gov.uk/id/local-authority/12UE,Huntingdonshire District Council,200682,RIDGE AND PARTNERS LLP RIDGE AND PARTNERS LLP,39603,30/09/2020,182015,ALMS CLOSE,22/10/2020,80,400,480,Alms Close,Consultancy Fees,62400
http://statistics.data.gov.uk/id/local-authority/12UE,Huntingdonshire District Council,200682,RIDGE AND PARTNERS LLP RIDGE AND PARTNERS LLP,40613,30/10/2020,183730,ALMS CLOSE,26/11/2020,80,400,480,Alms Close,Consultancy Fees,62400
http://statistics.data.gov.uk/id/local-authority/12UE,Huntingdonshire District Council,201344,ANDREW FIREBRACE PARTNERSHIP LTD,40646,30/10/2020,7918,ALMS CLOSE,26/11/2020,800,4000,4800,Alms Close,Consultancy Fees,62400
http://statistics.data.gov.uk/id/local-authority/12UE,Huntingdonshire District Council,201138,BORNEY UK LTD,39978,05/10/2020,52076,TOTEM SIGNS,29/10/2020,3135,15675,18810,Alms Close,Signs,60299
http://statistics.data.gov.uk/id/local-authority/12UE,Huntingdonshire District Council,202439,CVL SYSTEMS LTD,42093,03/12/2020,INV-14468,ALMS CLOSE,10/12/2020,356,1780,2136,Alms Close,Site Alterations And Materials,60273
http://statistics.data.gov.uk/id/local-authority/12UE,Huntingdonshire District Council,200609,PENGELLY AND MIZEN PENGELLY AND MIZEN,40080,07/10/2020,672767427,YAXLEY RIDING SCHOOL INSPECTION,29/10/2020,91.67,458.33,550,Animal Licensing - Inspections,Vets,62407
http://statistics.data.gov.uk/id/local-authority/12UE,Huntingdonshire District Council,200474,LANDMARK TRADING LTD LANDMARK TRADING LTD,39806,21/08/2020,72633,GARDENING SUPPLIES,08/10/2020,69.14,345.72,414.86,Arboricultural Team,"Maintenance - Equipment, Furniture And Materials",61702
http://statistics.data.gov.uk/id/local-authority/12UE,Huntingdonshire District Council,201843,THE CGM GROUP (EAST ANGLIA) LTD,39341,22/09/2020,233364,TREE WORKS,15/10/2020,460,2300,2760,Arboricultural Team,Subcontractors,62401
http://statistics.data.gov.uk/id/local-authority/12UE,Huntingdonshire District Council,201843,THE CGM GROUP (EAST ANGLIA) LTD,40590,31/10/2020,234282,TREE WORKS,26/11/2020,438,2190,2628,Arboricultural Team,Subcontractors,62401
http://statistics.data.gov.uk/id/local-authority/12UE,Huntingdonshire District Council,201178,GARDENWORKS TREE SURGERY LTD,41655,30/11/2020,4175,TREE WORKS,10/12/2020,350,1750,2100,Arboricultural Team,Subcontractors,62401
http://statistics.data.gov.uk/id/local-authority/12UE,Huntingdonshire District Council,201843,THE CGM GROUP (EAST ANGLIA) LTD,40591,31/10/2020,234283,TREE WORKS,26/11/2020,272,1360,1632,Arboricultural Team,Subcontractors,62401
http://statistics.data.gov.uk/id/local-authority/12UE,Huntingdonshire District Council,201843,THE CGM GROUP (EAST ANGLIA) LTD,39460,29/09/2020,233456,TREE WORKS,22/10/2020,250,1250,1500,Arboricultural Team,Subcontractors,62401
http://statistics.data.gov.uk/id/local-authority/12UE,Huntingdonshire District Council,201843,THE CGM GROUP (EAST ANGLIA) LTD,39035,15/09/2020,233202,TREE WORKS,08/10/2020,195,975,1170,Arboricultural Team,Subcontractors,62401
http://statistics.data.gov.uk/id/local-authority/12UE,Huntingdonshire District Council,201843,THE CGM GROUP (EAST ANGLIA) LTD,39912,08/10/2020,234107,TREE WORKS,05/11/2020,180,900,1080,Arboricultural Team,Subcontractors,62401
http://statistics.data.gov.uk/id/local-authority/12UE,Huntingdonshire District Council,201360,GLOBAL TREE SOLUTIONS LTD,40242,14/10/2020,62616,TREE WORKS,05/11/2020,150,750,900,Arboricultural Team,Subcontractors,62401
http://statistics.data.gov.uk/id/local-authority/12UE,Huntingdonshire District Council,201360,GLOBAL TREE SOLUTIONS LTD,41386,23/11/2020,62726,TREE WORKS,10/12/2020,140,700,840,Arboricultural Team,Subcontractors,62401
http://statistics.data.gov.uk/id/local-authority/12UE,Huntingdonshire District Council,200676,RGS ARBORICULTURAL CONSULTANTS RGS ARBORICULTURAL CONSULTANTS,39731,19/08/2020,190820,TREE WORKS,08/10/2020,79,395,474,Arboricultural Team,Subcontractors,62401
http://statistics.data.gov.uk/id/local-authority/12UE,Huntingdonshire District Council,201360,GLOBAL TREE SOLUTIONS LTD,41241,17/11/2020,62720,ops tree cutting,10/12/2020,100,500,600,Arboricultural Team,Subcontractors,62401
http://statistics.data.gov.uk/id/local-authority/12UE,Huntingdonshire District Council,200676,RGS ARBORICULTURAL CONSULTANTS RGS ARBORICULTURAL CONSULTANTS,39731,19/08/2020,190820,TREE WORKS,08/10/2020,48,240,288,Arboricultural Team,Tree Works,64040
http://statistics.data.gov.uk/id/local-authority/12UE,Huntingdonshire District Council,200550,MORGAN HUNT PUBLIC UK LTD MORGAN HUNT PUBLIC UK LTD,41272,15/11/2020,1203380,BENEFITS STAFF,26/11/2020,257.14,1285.7,1542.84,Benefits Management,Agency Staff,60011
http://statistics.data.gov.uk/id/local-authority/12UE,Huntingdonshire District Council,200550,MORGAN HUNT PUBLIC UK LTD MORGAN HUNT PUBLIC UK LTD,41631,22/11/2020,1204349,REDACTED,03/12/2020,257.14,1285.7,1542.84,Benefits Management,Agency Staff,60011
http://statistics.data.gov.uk/id/local-authority/12UE,Huntingdonshire District Council,200550,MORGAN HUNT PUBLIC UK LTD MORGAN HUNT PUBLIC UK LTD,42005,29/11/2020,1205578,REDACTED,10/12/2020,257.14,1285.7,1542.84,Benefits Management,Agency Staff,60011
http://statistics.data.gov.uk/id/local-authority/12UE,Huntingdonshire District Council,200550,MORGAN HUNT PUBLIC UK LTD MORGAN HUNT PUBLIC UK LTD,42157,06/12/2020,1206731,REDACTED,17/12/2020,257.14,1285.7,1542.84,Benefits Management,Agency Staff,60011
http://statistics.data.gov.uk/id/local-authority/12UE,Huntingdonshire District Council,200550,MORGAN HUNT PUBLIC UK LTD MORGAN HUNT PUBLIC UK LTD,42694,20/12/2020,1208952,REDACTED,31/12/2020,257.14,1285.7,1542.84,Benefits Management,Agency Staff,60011
http://statistics.data.gov.uk/id/local-authority/12UE,Huntingdonshire District Council,200550,MORGAN HUNT PUBLIC UK LTD MORGAN HUNT PUBLIC UK LTD,42371,13/12/2020,1207826,REDACTED,23/12/2020,239.2,1196,1435.2,Benefits Management,Agency Staff,60011
http://statistics.data.gov.uk/id/local-authority/12UE,Huntingdonshire District Council,200550,MORGAN HUNT PUBLIC UK LTD MORGAN HUNT PUBLIC UK LTD,41270,15/11/2020,1203383,BENEFITS STAFF,26/11/2020,220.8,1104,1324.8,Benefits Management,Agency Staff,60011
http://statistics.data.gov.uk/id/local-authority/12UE,Huntingdonshire District Council,200550,MORGAN HUNT PUBLIC UK LTD MORGAN HUNT PUBLIC UK LTD,41630,22/11/2020,1204352,REDACTED,03/12/2020,220.8,1104,1324.8,Benefits Management,Agency Staff,60011
http://statistics.data.gov.uk/id/local-authority/12UE,Huntingdonshire District Council,200550,MORGAN HUNT PUBLIC UK LTD MORGAN HUNT PUBLIC UK LTD,42004,29/11/2020,1205581,REDACTED,10/12/2020,220.8,1104,1324.8,Benefits Management,Agency Staff,60011
http://statistics.data.gov.uk/id/local-authority/12UE,Huntingdonshire District Council,200550,MORGAN HUNT PUBLIC UK LTD MORGAN HUNT PUBLIC UK LTD,42155,06/12/2020,1206734,REDACTED,17/12/2020,220.8,1104,1324.8,Benefits Management,Agency Staff,60011
http://statistics.data.gov.uk/id/local-authority/12UE,Huntingdonshire District Council,200550,MORGAN HUNT PUBLIC UK LTD MORGAN HUNT PUBLIC UK LTD,42372,13/12/2020,1207829,REDACTED,23/12/2020,220.8,1104,1324.8,Benefits Management,Agency Staff,60011
http://statistics.data.gov.uk/id/local-authority/12UE,Huntingdonshire District Council,200550,MORGAN HUNT PUBLIC UK LTD MORGAN HUNT PUBLIC UK LTD,42695,20/12/2020,1208955,REDACTED,31/12/2020,220.8,1104,1324.8,Benefits Management,Agency Staff,60011
http://statistics.data.gov.uk/id/local-authority/12UE,Huntingdonshire District Council,200550,MORGAN HUNT PUBLIC UK LTD MORGAN HUNT PUBLIC UK LTD,39368,20/09/2020,1194864,REDACTED,01/10/2020,204.24,1021.2,1225.44,Benefits Management,Agency Staff,60011
http://statistics.data.gov.uk/id/local-authority/12UE,Huntingdonshire District Council,200550,MORGAN HUNT PUBLIC UK LTD MORGAN HUNT PUBLIC UK LTD,39612,27/09/2020,1196035,REDACTED,08/10/2020,204.24,1021.2,1225.44,Benefits Management,Agency Staff,60011
http://statistics.data.gov.uk/id/local-authority/12UE,Huntingdonshire District Council,200550,MORGAN HUNT PUBLIC UK LTD MORGAN HUNT PUBLIC UK LTD,39890,04/10/2020,1197180,REDACTED,15/10/2020,204.24,1021.2,1225.44,Benefits Management,Agency Staff,60011
http://statistics.data.gov.uk/id/local-authority/12UE,Huntingdonshire District Council,200550,MORGAN HUNT PUBLIC UK LTD MORGAN HUNT PUBLIC UK LTD,40097,11/10/2020,1198281,REDACTED,22/10/2020,204.24,1021.2,1225.44,Benefits Management,Agency Staff,60011
http://statistics.data.gov.uk/id/local-authority/12UE,Huntingdonshire District Council,200550,MORGAN HUNT PUBLIC UK LTD MORGAN HUNT PUBLIC UK LTD,41099,08/11/2020,1202434,REDACTED,19/11/2020,204.24,1021.2,1225.44,Benefits Management,Agency Staff,60011
http://statistics.data.gov.uk/id/local-authority/12UE,Huntingdonshire District Council,200550,MORGAN HUNT PUBLIC UK LTD MORGAN HUNT PUBLIC UK LTD,41269,15/11/2020,1203381,benefits staff,26/11/2020,204.24,1021.2,1225.44,Benefits Management,Agency Staff,60011
http://statistics.data.gov.uk/id/local-authority/12UE,Huntingdonshire District Council,200550,MORGAN HUNT PUBLIC UK LTD MORGAN HUNT PUBLIC UK LTD,41627,22/11/2020,1204350,REDACTED,03/12/2020,204.24,1021.2,1225.44,Benefits Management,Agency Staff,60011
http://statistics.data.gov.uk/id/local-authority/12UE,Huntingdonshire District Council,200550,MORGAN HUNT PUBLIC UK LTD MORGAN HUNT PUBLIC UK LTD,41628,22/11/2020,1204351,REDACTED,03/12/2020,204.24,1021.2,1225.44,Benefits Management,Agency Staff,60011
http://statistics.data.gov.uk/id/local-authority/12UE,Huntingdonshire District Council,200550,MORGAN HUNT PUBLIC UK LTD MORGAN HUNT PUBLIC UK LTD,42007,29/11/2020,1205580,REDACTED,10/12/2020,204.24,1021.2,1225.44,Benefits Management,Agency Staff,60011
http://statistics.data.gov.uk/id/local-authority/12UE,Huntingdonshire District Council,200550,MORGAN HUNT PUBLIC UK LTD MORGAN HUNT PUBLIC UK LTD,42009,29/11/2020,1205579,REDACTED,10/12/2020,204.24,1021.2,1225.44,Benefits Management,Agency Staff,60011
http://statistics.data.gov.uk/id/local-authority/12UE,Huntingdonshire District Council,200550,MORGAN HUNT PUBLIC UK LTD MORGAN HUNT PUBLIC UK LTD,42158,06/12/2020,1206733,REDACTED,17/12/2020,204.24,1021.2,1225.44,Benefits Management,Agency Staff,60011
http://statistics.data.gov.uk/id/local-authority/12UE,Huntingdonshire District Council,200550,MORGAN HUNT PUBLIC UK LTD MORGAN HUNT PUBLIC UK LTD,42159,06/12/2020,1206732,REDACTED,17/12/2020,204.24,1021.2,1225.44,Benefits Management,Agency Staff,60011
http://statistics.data.gov.uk/id/local-authority/12UE,Huntingdonshire District Council,200550,MORGAN HUNT PUBLIC UK LTD MORGAN HUNT PUBLIC UK LTD,42370,13/12/2020,1207827,REDACTED,23/12/2020,204.24,1021.2,1225.44,Benefits Management,Agency Staff,60011
http://statistics.data.gov.uk/id/local-authority/12UE,Huntingdonshire District Council,200550,MORGAN HUNT PUBLIC UK LTD MORGAN HUNT PUBLIC UK LTD,42692,20/12/2020,1208953,REDACTED,31/12/2020,204.24,1021.2,1225.44,Benefits Management,Agency Staff,60011
http://statistics.data.gov.uk/id/local-authority/12UE,Huntingdonshire District Council,200550,MORGAN HUNT PUBLIC UK LTD MORGAN HUNT PUBLIC UK LTD,42373,13/12/2020,1207828,REDACTED,23/12/2020,198.72,993.6,1192.32,Benefits Management,Agency Staff,60011
http://statistics.data.gov.uk/id/local-authority/12UE,Huntingdonshire District Council,200550,MORGAN HUNT PUBLIC UK LTD MORGAN HUNT PUBLIC UK LTD,42693,20/12/2020,1208954,REDACTED,31/12/2020,197.34,986.7,1184.04,Benefits Management,Agency Staff,60011
http://statistics.data.gov.uk/id/local-authority/12UE,Huntingdonshire District Council,200550,MORGAN HUNT PUBLIC UK LTD MORGAN HUNT PUBLIC UK LTD,40356,18/10/2020,1199402,REDACTED,29/10/2020,195.96,979.8,1175.76,Benefits Management,Agency Staff,60011
http://statistics.data.gov.uk/id/local-authority/12UE,Huntingdonshire District Council,200550,MORGAN HUNT PUBLIC UK LTD MORGAN HUNT PUBLIC UK LTD,41271,15/11/2020,1203382,BENEFITS STAFF,26/11/2020,195.96,979.8,1175.76,Benefits Management,Agency Staff,60011
http://statistics.data.gov.uk/id/local-authority/12UE,Huntingdonshire District Council,200550,MORGAN HUNT PUBLIC UK LTD MORGAN HUNT PUBLIC UK LTD,40834,01/11/2020,1201500,REDACTED,12/11/2020,193.2,966,1159.2,Benefits Management,Agency Staff,60011
http://statistics.data.gov.uk/id/local-authority/12UE,Huntingdonshire District Council,200550,MORGAN HUNT PUBLIC UK LTD MORGAN HUNT PUBLIC UK LTD,40551,25/10/2020,1200628,REDACTED,05/11/2020,184.92,924.6,1109.52,Benefits Management,Agency Staff,60011
http://statistics.data.gov.uk/id/local-authority/12UE,Huntingdonshire District Council,200148,CALLCREDIT LTD CALLCREDIT LTD,40635,01/09/2020,858547,ADDITONAL CHARGES,05/11/2020,268,1340,1608,Benefits Management,Enquiries,63400
http://statistics.data.gov.uk/id/local-authority/12UE,Huntingdonshire District Council,200148,CALLCREDIT LTD CALLCREDIT LTD,39749,01/10/2020,861427,USAGE,29/10/2020,112.14,560.7,672.84,Benefits Management,Enquiries,63400
http://statistics.data.gov.uk/id/local-authority/12UE,Huntingdonshire District Council,200148,CALLCREDIT LTD CALLCREDIT LTD,40693,01/11/2020,864553,USAGE,26/11/2020,111.51,557.55,669.06,Benefits Management,Enquiries,63400
http://statistics.data.gov.uk/id/local-authority/12UE,Huntingdonshire District Council,200148,CALLCREDIT LTD CALLCREDIT LTD,42100,01/12/2020,867875,USAGE,10/12/2020,73.5,367.5,441,Benefits Management,Enquiries,63400
http://statistics.data.gov.uk/id/local-authority/12UE,Huntingdonshire District Council,200968,NORTHGATE PUBLIC SERVICES UK LTD,41679,29/11/2020,91440777,SUPPORT AND MAINTENANCE,10/12/2020,780.45,3902.27,4682.72,Benefits Management,Ict Software,64071
http://statistics.data.gov.uk/id/local-authority/12UE,Huntingdonshire District Council,200698,ROYAL MAIL GROUP LTD ROYAL MAIL GROUP LTD,39381,14/09/2020,9061536007,POSTAGE,08/10/2020,289.3,1446.5,1735.8,Benefits Management,Postage And Courier Services,64100
http://statistics.data.gov.uk/id/local-authority/12UE,Huntingdonshire District Council,200698,ROYAL MAIL GROUP LTD ROYAL MAIL GROUP LTD,41751,16/11/2020,9061912275,POSTAGE,10/12/2020,265.64,1328.17,1593.81,Benefits Management,Postage And Courier Services,64100
http://statistics.data.gov.uk/id/local-authority/12UE,Huntingdonshire District Council,200698,ROYAL MAIL GROUP LTD ROYAL MAIL GROUP LTD,40824,19/10/2020,9061745739,POSTAGE,12/11/2020,282.23,1411.16,1693.39,Benefits Management,Postage And Courier Services,64100
http://statistics.data.gov.uk/id/local-authority/12UE,Huntingdonshire District Council,200698,ROYAL MAIL GROUP LTD ROYAL MAIL GROUP LTD,42090,23/11/2020,9061951844,POSTAGE,10/12/2020,226.3,1131.5,1357.8,Benefits Management,Postage And Courier Services,64100
http://statistics.data.gov.uk/id/local-authority/12UE,Huntingdonshire District Council,200698,ROYAL MAIL GROUP LTD ROYAL MAIL GROUP LTD,39382,31/08/2020,9061458631,POSTAGE,01/10/2020,60.21,301.03,361.24,Benefits Management,Postage And Courier Services,64100
http://statistics.data.gov.uk/id/local-authority/12UE,Huntingdonshire District Council,200698,ROYAL MAIL GROUP LTD ROYAL MAIL GROUP LTD,39385,21/09/2020,9061574925,POSTAGE,15/10/2020,55.47,277.35,332.82,Benefits Management,Postage And Courier Services,64100
http://statistics.data.gov.uk/id/local-authority/12UE,Huntingdonshire District Council,200698,ROYAL MAIL GROUP LTD ROYAL MAIL GROUP LTD,42226,30/11/2020,9061984453,POSTAGE,23/12/2020,85.06,425.28,510.34,Benefits Management,Postage And Courier Services,64100
http://statistics.data.gov.uk/id/local-authority/12UE,Huntingdonshire District Council,200698,ROYAL MAIL GROUP LTD ROYAL MAIL GROUP LTD,41278,02/11/2020,9061828846,doc centre - election mailing,26/11/2020,93.82,469.11,562.93,Benefits Management,Postage And Courier Services,64100
http://statistics.data.gov.uk/id/local-authority/12UE,Huntingdonshire District Council,200698,ROYAL MAIL GROUP LTD ROYAL MAIL GROUP LTD,40156,05/10/2020,9061662546,POSTAGE,29/10/2020,64.7,323.52,388.22,Benefits Management,Postage And Courier Services,64100
http://statistics.data.gov.uk/id/local-authority/12UE,Huntingdonshire District Council,200698,ROYAL MAIL GROUP LTD ROYAL MAIL GROUP LTD,41593,09/11/2020,9061871806,POSTAGE,03/12/2020,50.21,251.07,301.28,Benefits Management,Postage And Courier Services,64100
http://statistics.data.gov.uk/id/local-authority/12UE,Huntingdonshire District Council,200698,ROYAL MAIL GROUP LTD ROYAL MAIL GROUP LTD,39867,28/09/2020,9061620427,POSTAGE,22/10/2020,74.95,374.74,449.69,Benefits Management,Postage And Courier Services,64100
http://statistics.data.gov.uk/id/local-authority/12UE,Huntingdonshire District Council,200698,ROYAL MAIL GROUP LTD ROYAL MAIL GROUP LTD,39383,07/09/2020,9061500114,POSTAGE,01/10/2020,56.62,283.08,339.7,Benefits Management,Postage And Courier Services,64100
http://statistics.data.gov.uk/id/local-authority/12UE,Huntingdonshire District Council,200698,ROYAL MAIL GROUP LTD ROYAL MAIL GROUP LTD,39384,24/08/2020,9061421500,POSTAGE,01/10/2020,55.61,278.04,333.65,Benefits Management,Postage And Courier Services,64100
http://statistics.data.gov.uk/id/local-authority/12UE,Huntingdonshire District Council,200698,ROYAL MAIL GROUP LTD ROYAL MAIL GROUP LTD,40155,12/10/2020,9161703440,POSTAGE,05/11/2020,50.28,251.37,301.65,Benefits Management,Postage And Courier Services,64100
http://statistics.data.gov.uk/id/local-authority/12UE,Huntingdonshire District Council,200046,AMALGAMATED COMPUTER SUPPLIES AMALGAMATED COMPUTER SUPPLIES,39981,05/10/2020,SINV00640841,TONER CARTRIDGES,29/10/2020,90.76,453.82,544.58,Benefits Management,Stationery,62002
http://statistics.data.gov.uk/id/local-authority/12UE,Huntingdonshire District Council,200101,BID HUNTINGDON BID HUNTINGDON,42082,07/12/2020,INV-1882,NOVEMBER SETTLEMENT,10/12/2020,13765.33,68826.65,82591.98,Bid Revenue Account,Payment Of Amount Due,23003
http://statistics.data.gov.uk/id/local-authority/12UE,Huntingdonshire District Council,200101,BID HUNTINGDON BID HUNTINGDON,41975,06/11/2020,INV-1879,BID OCT SETTLEMENT,10/12/2020,361.3,1806.5,2167.8,Bid Revenue Account,Payment Of Amount Due,23003
http://statistics.data.gov.uk/id/local-authority/12UE,Huntingdonshire District Council,200101,BID HUNTINGDON BID HUNTINGDON,41974,23/11/2020,INV-1880,BID OCT SETTLEMENT,10/12/2020,218.4,1092,1310.4,Bid Revenue Account,Payment Of Amount Due,23003
http://statistics.data.gov.uk/id/local-authority/12UE,Huntingdonshire District Council,200101,BID HUNTINGDON BID HUNTINGDON,42083,07/12/2020,INV-1881,NOVEMBER SETTLEMENT,10/12/2020,168.8,844,1012.8,Bid Revenue Account,Payment Of Amount Due,23003
http://statistics.data.gov.uk/id/local-authority/12UE,Huntingdonshire District Council,200101,BID HUNTINGDON BID HUNTINGDON,40855,06/10/2020,INV-1878,BID SETTLEMENT SEPT 20,12/11/2020,56.25,281.25,337.5,Bid Revenue Account,Payment Of Amount Due,23003
http://statistics.data.gov.uk/id/local-authority/12UE,Huntingdonshire District Council,201544,REDACTED,39339,28/09/2020,PRF280920,PETTY CASH,01/10/2020,3,15,18,Bin Deliveries,Equipment,61713
http://statistics.data.gov.uk/id/local-authority/12UE,Huntingdonshire District Council,202133,THE RENEWABLE ENERGY COMPANY LTD,42229,28/08/2020,4356611,CARDINAL WAY HUNTINGDON,17/12/2020,23.47,469.38,492.85,Bridge Place (GOD),Electricity,60303
http://statistics.data.gov.uk/id/local-authority/12UE,Huntingdonshire District Council,202133,THE RENEWABLE ENERGY COMPANY LTD,42230,28/08/2020,4356612,CARDINAL WAY HUNTINGDON,17/12/2020,19.16,383.18,402.34,Bridge Place (GOD),Electricity,60303
http://statistics.data.gov.uk/id/local-authority/12UE,Huntingdonshire District Council,202133,THE RENEWABLE ENERGY COMPANY LTD,42240,28/08/2020,4356616,CARDINAL WAY HUNTINGDON,17/12/2020,19.16,383.18,402.34,Bridge Place (GOD),Electricity,60303
http://statistics.data.gov.uk/id/local-authority/12UE,Huntingdonshire District Council,200181,CFL ESTATE SERVICES CFL ESTATE SERVICES,42126,08/12/2020,HDC120,PROFESSIONAL ADVICE,31/12/2020,0,510,510,Bridge Place Car Park Const,Agency Staff,60011
http://statistics.data.gov.uk/id/local-authority/12UE,Huntingdonshire District Council,202469,HILL DICKINSON LLP,42314,28/08/2020,10440626,LEGAL SERVICES,17/12/2020,531.2,2656,3187.2,Bridge Place Car Park Const,Legal Fees,63200
http://statistics.data.gov.uk/id/local-authority/12UE,Huntingdonshire District Council,202469,HILL DICKINSON LLP,42317,30/09/2020,10444042,LEGAL SERVICES,17/12/2020,500,2500,3000,Bridge Place Car Park Const,Legal Fees,63200
http://statistics.data.gov.uk/id/local-authority/12UE,Huntingdonshire District Council,202469,HILL DICKINSON LLP,42318,30/10/2020,10447267,LEGAL FEES,17/12/2020,300,1500,1800,Bridge Place Car Park Const,Legal Fees,63200
http://statistics.data.gov.uk/id/local-authority/12UE,Huntingdonshire District Council,202469,HILL DICKINSON LLP,42334,30/11/2020,10451695,LEGAL FEES,23/12/2020,300,1500,1800,Bridge Place Car Park Const,Legal Fees,63200
http://statistics.data.gov.uk/id/local-authority/12UE,Huntingdonshire District Council,202413,RSM VILLAGE TRUST,40153,06/10/2020,0401047OUT,transfer of S106 funds,29/10/2020,0,14526.55,14526.55,Bridge Place Car Park Const,S106 Community Facilities (Parish) Payment,66454
http://statistics.data.gov.uk/id/local-authority/12UE,Huntingdonshire District Council,201313,DENNIS EASTON FUNERAL SERVICE,40126,07/10/2020,60267980/522642 0,FUNERAL SERVICE,22/10/2020,0,887,887,Burials Under Health Act,Cremation And Burial Costs,62600
http://statistics.data.gov.uk/id/local-authority/12UE,Huntingdonshire District Council,201313,DENNIS EASTON FUNERAL SERVICE,42368,15/12/2020,60273002/5226420,FUNERAL SERVICE,17/12/2020,0,887,887,Burials Under Health Act,Cremation And Burial Costs,62600
http://statistics.data.gov.uk/id/local-authority/12UE,Huntingdonshire District Council,200634,PRIMESIGHT  LTD PRIMESIGHT  LTD,41395,31/08/2020,2020/329,CLEANING HUNTINGDON BUS SHELTERS,26/11/2020,115.84,579.2,695.04,Bus Shelters,Cleaning Services,60501
http://statistics.data.gov.uk/id/local-authority/12UE,Huntingdonshire District Council,200634,PRIMESIGHT  LTD PRIMESIGHT  LTD,41396,30/09/2020,2020/335,CLEANING HUNTINGDON BUS SHELTERS,26/11/2020,115.84,579.2,695.04,Bus Shelters,Cleaning Services,60501
http://statistics.data.gov.uk/id/local-authority/12UE,Huntingdonshire District Council,200634,PRIMESIGHT  LTD PRIMESIGHT  LTD,41397,30/10/2020,2020/345,CLEANING HUNTINGDON BUS SHELTERS,26/11/2020,115.84,579.2,695.04,Bus Shelters,Cleaning Services,60501
http://statistics.data.gov.uk/id/local-authority/12UE,Huntingdonshire District Council,200634,PRIMESIGHT  LTD PRIMESIGHT  LTD,42124,30/11/2020,2020/351,BUS SHELTER CLEANING NOV 20,23/12/2020,115.84,579.2,695.04,Bus Shelters,Cleaning Services,60501
http://statistics.data.gov.uk/id/local-authority/12UE,Huntingdonshire District Council,202256,EASY CLEAN CONTRACTORS LTD,41078,31/08/2020,16819,Aug-20,19/11/2020,159.12,795.6,954.72,Bus Station Pc - Huntingdon,Cleaning Services,60501
http://statistics.data.gov.uk/id/local-authority/12UE,Huntingdonshire District Council,202256,EASY CLEAN CONTRACTORS LTD,39786,30/09/2020,16925,CLEANING SEPT 20,22/10/2020,107.39,536.94,644.33,Bus Station Pc - Huntingdon,Cleaning Services,60501
http://statistics.data.gov.uk/id/local-authority/12UE,Huntingdonshire District Council,202256,EASY CLEAN CONTRACTORS LTD,40993,31/10/2020,17079,Oct-20,26/11/2020,159.12,795.6,954.72,Bus Station Pc - Huntingdon,Cleaning Services,60501
http://statistics.data.gov.uk/id/local-authority/12UE,Huntingdonshire District Council,202256,EASY CLEAN CONTRACTORS LTD,42087,30/11/2020,17229,CLEANING NOV 20,10/12/2020,159.12,795.6,954.72,Bus Station Pc - Huntingdon,Cleaning Services,60501
http://statistics.data.gov.uk/id/local-authority/12UE,Huntingdonshire District Council,202133,THE RENEWABLE ENERGY COMPANY LTD,41710,28/08/2020,4356201,MILL COMMON HUNTINGDON,03/12/2020,391.14,1955.7,2346.84,Bus Station Pc - Huntingdon,Electricity,60303
http://statistics.data.gov.uk/id/local-authority/12UE,Huntingdonshire District Council,202133,THE RENEWABLE ENERGY COMPANY LTD,41891,28/08/2020,4356204,MILL COMMON HUNTINGDON,10/12/2020,338.83,1694.13,2032.96,Bus Station Pc - Huntingdon,Electricity,60303
http://statistics.data.gov.uk/id/local-authority/12UE,Huntingdonshire District Council,202133,THE RENEWABLE ENERGY COMPANY LTD,41779,28/08/2020,4356202,MILL COMMON HUNTINGDON,03/12/2020,229.59,1147.93,1377.52,Bus Station Pc - Huntingdon,Electricity,60303
http://statistics.data.gov.uk/id/local-authority/12UE,Huntingdonshire District Council,200827,VIVID RESOURCING LIMITED VIVID RESOURCING LIMITED,41117,11/11/2020,52258,REDACTED,03/12/2020,33.6,168,201.6,Business & Enterprise Support,Agency Staff,60011
http://statistics.data.gov.uk/id/local-authority/12UE,Huntingdonshire District Council,200827,VIVID RESOURCING LIMITED VIVID RESOURCING LIMITED,41330,18/11/2020,52457,REDACTED,10/12/2020,19.2,96,115.2,Business & Enterprise Support,Agency Staff,60011
http://statistics.data.gov.uk/id/local-authority/12UE,Huntingdonshire District Council,200827,VIVID RESOURCING LIMITED VIVID RESOURCING LIMITED,41580,25/11/2020,52678,REDACTED,10/12/2020,19.2,96,115.2,Business & Enterprise Support,Agency Staff,60011
http://statistics.data.gov.uk/id/local-authority/12UE,Huntingdonshire District Council,200827,VIVID RESOURCING LIMITED VIVID RESOURCING LIMITED,42122,02/12/2020,52954,REDACTED,23/12/2020,19.2,96,115.2,Business & Enterprise Support,Agency Staff,60011
http://statistics.data.gov.uk/id/local-authority/12UE,Huntingdonshire District Council,200827,VIVID RESOURCING LIMITED VIVID RESOURCING LIMITED,42171,09/12/2020,53253,REDACTED,31/12/2020,19.2,96,115.2,Business & Enterprise Support,Agency Staff,60011
http://statistics.data.gov.uk/id/local-authority/12UE,Huntingdonshire District Council,200827,VIVID RESOURCING LIMITED VIVID RESOURCING LIMITED,40698,28/10/2020,51748,REDACTED,19/11/2020,240,1200,1440,Business & Enterprise Support,Agency Staff,60011
http://statistics.data.gov.uk/id/local-authority/12UE,Huntingdonshire District Council,202399,SPRINGBOARD RESEARCH LTD,40300,01/10/2020,2015-27291,FOOTFALL COUNTING ST IVES,29/10/2020,360,1800,2160,Business & Enterprise Support,Consultancy Fees,62400
http://statistics.data.gov.uk/id/local-authority/12UE,Huntingdonshire District Council,200158,CAMBRIDGESHIRE CHAMBERS OF COMMERCE CAMBRIDGESHIRE CHAMBERS OF COMMERCE,40469,04/09/2020,187999,SUBSCRIPTION,29/10/2020,132.2,661,793.2,Business & Enterprise Support,Membership And Subscriptions,64800
http://statistics.data.gov.uk/id/local-authority/12UE,Huntingdonshire District Council,202361,WEALD COMPUTER SYSTEMS LTD,40294,19/10/2020,2013755,OPS - CRM LICENCES,26/10/2020,792,3960,4752,Business & Enterprise Support,Other Services,69150
http://statistics.data.gov.uk/id/local-authority/12UE,Huntingdonshire District Council,202453,UNIVERSITY OF CAMBRIDGE CENTRE FOR BUSINESS RESEARCH,42127,08/12/2020,XF 1109863,NW CAMBRIDGE CORRIDOR ECONOMIC STUDY,31/12/2020,400,2000,2400,Business & Enterprise Support,Other Services,69150
http://statistics.data.gov.uk/id/local-authority/12UE,Huntingdonshire District Council,202361,WEALD COMPUTER SYSTEMS LTD,40108,30/09/2020,2013745,CONFIGURATION AND SUPPORT,22/10/2020,360,1800,2160,Business & Enterprise Support,Other Services,69150
http://statistics.data.gov.uk/id/local-authority/12UE,Huntingdonshire District Council,202399,SPRINGBOARD RESEARCH LTD,39455,17/02/2020,2915-25485,FOOTFALL COUNTING ST NEOTS,01/10/2020,270,1350,1620,Business & Enterprise Support,Professional Services - General,62402
http://statistics.data.gov.uk/id/local-authority/12UE,Huntingdonshire District Council,202399,SPRINGBOARD RESEARCH LTD,39455,17/02/2020,2915-25485,FOOTFALL COUNTING ST NEOTS,01/10/2020,540,2700,3240,Business & Enterprise Support,Professional Services - General,62402
http://statistics.data.gov.uk/id/local-authority/12UE,Huntingdonshire District Council,202399,SPRINGBOARD RESEARCH LTD,40316,30/09/2020,2015-27360,FOOTFALL COUNTING ST NEOTS,29/10/2020,540,2700,3240,Business & Enterprise Support,Professional Services - General,62402
http://statistics.data.gov.uk/id/local-authority/12UE,Huntingdonshire District Council,202133,THE RENEWABLE ENERGY COMPANY LTD,41733,29/08/2020,4356831,OAKTREE HEALTH CENTRE,03/12/2020,13.81,276.16,289.97,Buttsgrove Way (HUN),General Fund Balances,30000
http://statistics.data.gov.uk/id/local-authority/12UE,Huntingdonshire District Council,202133,THE RENEWABLE ENERGY COMPANY LTD,41791,29/08/2020,4356832,OAKTREE HEALTH CENTRE,03/12/2020,12.58,251.68,264.26,Buttsgrove Way (HUN),General Fund Balances,30000
http://statistics.data.gov.uk/id/local-authority/12UE,Huntingdonshire District Council,202133,THE RENEWABLE ENERGY COMPANY LTD,41916,29/08/2020,4356833,OAKTREE HEALTH CENTRE,10/12/2020,12.58,251.68,264.26,Buttsgrove Way (HUN),General Fund Balances,30000
http://statistics.data.gov.uk/id/local-authority/12UE,Huntingdonshire District Council,201980,MLL TELECOM LTD,41846,02/10/2020,SI13558,3CICT RENTALS,07/12/2020,3458.04,17290.2,20748.24,Cambridge City Business Case ,Broadband Line Rental,64080
http://statistics.data.gov.uk/id/local-authority/12UE,Huntingdonshire District Council,201980,MLL TELECOM LTD,41848,02/10/2020,SI13560,3CICT RENTALS,07/12/2020,681.35,3406.75,4088.1,Cambridge City Business Case ,Broadband Line Rental,64080
http://statistics.data.gov.uk/id/local-authority/12UE,Huntingdonshire District Council,200828,VODAFONE CABLE & WIRELESS VODAFONE CABLE & WIRELESS,39441,16/06/2020,UK10/062020/1566,BROADBAND LINE RENTAL,01/10/2020,422.4,2111.99,2534.39,Cambridge City Business Case ,Broadband Line Rental,64080
http://statistics.data.gov.uk/id/local-authority/12UE,Huntingdonshire District Council,200828,VODAFONE CABLE & WIRELESS VODAFONE CABLE & WIRELESS,39437,17/06/2020,UK10/062020/1571,BROADBAND LINE RENTAL,01/10/2020,271.15,1355.74,1626.89,Cambridge City Business Case ,Broadband Line Rental,64080
http://statistics.data.gov.uk/id/local-authority/12UE,Huntingdonshire District Council,200951,ENTANET INTERNATIONAL LTD,40953,03/08/2020,EIL0065700,BROADBAND LINE RENTAL,12/11/2020,180,900,1080,Cambridge City Business Case ,Broadband Line Rental,64080
http://statistics.data.gov.uk/id/local-authority/12UE,Huntingdonshire District Council,200951,ENTANET INTERNATIONAL LTD,40954,02/09/2020,EIL0076072,BROADBAND LINE RENTAL,12/11/2020,180,900,1080,Cambridge City Business Case ,Broadband Line Rental,64080
http://statistics.data.gov.uk/id/local-authority/12UE,Huntingdonshire District Council,200951,ENTANET INTERNATIONAL LTD,40955,06/10/2020,EIL0085624,BROADBAND LINE RENTAL,12/11/2020,180,900,1080,Cambridge City Business Case ,Broadband Line Rental,64080
http://statistics.data.gov.uk/id/local-authority/12UE,Huntingdonshire District Council,200951,ENTANET INTERNATIONAL LTD,40956,03/11/2020,EIL0093836,BROADBAND LINE RENTAL,26/11/2020,180,900,1080,Cambridge City Business Case ,Broadband Line Rental,64080
http://statistics.data.gov.uk/id/local-authority/12UE,Huntingdonshire District Council,200770,TELEFONICA UK LTD TELEFONICA UK LTD,40262,20/09/2020,7192210,LINE RENTAL/LEASE,22/10/2020,199.87,999.37,1199.24,Cambridge City Business Case ,Ict Rental And Leases,64076
http://statistics.data.gov.uk/id/local-authority/12UE,Huntingdonshire District Council,200770,TELEFONICA UK LTD TELEFONICA UK LTD,40249,20/08/2020,69419854,LINE RENTAL/LEASE,22/10/2020,199.87,999.37,1199.24,Cambridge City Business Case ,Ict Rental And Leases,64076
http://statistics.data.gov.uk/id/local-authority/12UE,Huntingdonshire District Council,200770,TELEFONICA UK LTD TELEFONICA UK LTD,41332,20/10/2020,74285726,LINE RENTAL/LEASE,26/11/2020,199.87,999.37,1199.24,Cambridge City Business Case ,Ict Rental And Leases,64076
http://statistics.data.gov.uk/id/local-authority/12UE,Huntingdonshire District Council,200770,TELEFONICA UK LTD TELEFONICA UK LTD,42154,20/11/2020,76823266,LINE RENTAL,17/12/2020,332.41,1662.04,1994.45,Cambridge City Business Case ,Ict Rental And Leases,64076
http://statistics.data.gov.uk/id/local-authority/12UE,Huntingdonshire District Council,200149,CAMBRIDGE CITY COUNCIL CAMBRIDGE CITY COUNCIL,41353,28/10/2020,12051148,Q2 RECHARGE ICT COSTS,26/11/2020,3249.87,16249.34,19499.21,Cambridge City Business Case ,Ict Software,64071
http://statistics.data.gov.uk/id/local-authority/12UE,Huntingdonshire District Council,200401,IDOX IDOX,39026,16/09/2020,7030361,SOFTWARE & MAINTENANCE,08/10/2020,2800,14000,16800,Cambridge City Business Case ,Ict Software,64071
http://statistics.data.gov.uk/id/local-authority/12UE,Huntingdonshire District Council,200973,ROL SOLUTIONS LTD,41391,01/10/2020,6391,ICT SOFTWARE,26/11/2020,2567.6,12838,15405.6,Cambridge City Business Case ,Ict Software,64071
http://statistics.data.gov.uk/id/local-authority/12UE,Huntingdonshire District Council,200401,IDOX IDOX,41202,13/11/2020,115163,ICT SOFTWARE,10/12/2020,2119.57,10597.84,12717.41,Cambridge City Business Case ,Ict Software,64071
http://statistics.data.gov.uk/id/local-authority/12UE,Huntingdonshire District Council,200973,ROL SOLUTIONS LTD,41394,31/03/2020,6334,COMPLAINTS TRACKER ANNUAL SERVICE FEE,26/11/2020,673.31,3366.56,4039.87,Cambridge City Business Case ,Ict Software,64071
http://statistics.data.gov.uk/id/local-authority/12UE,Huntingdonshire District Council,200968,NORTHGATE PUBLIC SERVICES UK LTD,40936,20/10/2020,91439471,SUPPORT AND MAINTENANCE,12/11/2020,812.23,4061.16,4873.39,Cambridge City Business Case ,Ict Software,64071
http://statistics.data.gov.uk/id/local-authority/12UE,Huntingdonshire District Council,200968,NORTHGATE PUBLIC SERVICES UK LTD,40936,20/10/2020,91439471,SUPPORT AND MAINTENANCE,12/11/2020,84.23,421.13,505.36,Cambridge City Business Case ,Ict Software,64071
http://statistics.data.gov.uk/id/local-authority/12UE,Huntingdonshire District Council,200968,NORTHGATE PUBLIC SERVICES UK LTD,40936,20/10/2020,91439471,SUPPORT AND MAINTENANCE,12/11/2020,8.07,40.34,48.41,Cambridge City Business Case ,Ict Software,64071
http://statistics.data.gov.uk/id/local-authority/12UE,Huntingdonshire District Council,200968,NORTHGATE PUBLIC SERVICES UK LTD,40861,20/09/2020,91438445,SUPPORT AND MAINTENANCE,12/11/2020,380,1900,2280,Cambridge City Business Case ,Ict Software,64071
http://statistics.data.gov.uk/id/local-authority/12UE,Huntingdonshire District Council,200968,NORTHGATE PUBLIC SERVICES UK LTD,40861,20/09/2020,91438445,SUPPORT AND MAINTENANCE,12/11/2020,29.6,147.99,177.59,Cambridge City Business Case ,Ict Software,64071
http://statistics.data.gov.uk/id/local-authority/12UE,Huntingdonshire District Council,200968,NORTHGATE PUBLIC SERVICES UK LTD,40861,20/09/2020,91438445,SUPPORT AND MAINTENANCE,12/11/2020,2.05,10.24,12.29,Cambridge City Business Case ,Ict Software,64071
http://statistics.data.gov.uk/id/local-authority/12UE,Huntingdonshire District Council,200980,SNELLING BUSINESS SYSTEMS LTD,41813,27/11/2020,SL17562,LICENCES,10/12/2020,45,225,270,Cambridge City Business Case ,Ict Software,64071
http://statistics.data.gov.uk/id/local-authority/12UE,Huntingdonshire District Council,200968,NORTHGATE PUBLIC SERVICES UK LTD,40935,20/09/2020,91438446,SUPPORT AND MAINTENANCE,12/11/2020,125,625,750,Cambridge City Business Case ,Ict Software,64071
http://statistics.data.gov.uk/id/local-authority/12UE,Huntingdonshire District Council,200968,NORTHGATE PUBLIC SERVICES UK LTD,41383,18/10/2020,91439424,SUPPORT AND MAINTENANCE,26/11/2020,88.47,442.36,530.83,Cambridge City Business Case ,Ict Software,64071
http://statistics.data.gov.uk/id/local-authority/12UE,Huntingdonshire District Council,200605,PCF PCF,38628,04/09/2020,144624,BACS SOFTWARE,01/10/2020,68.5,342.5,411,Cambridge City Business Case ,Ict Software,64071
http://statistics.data.gov.uk/id/local-authority/12UE,Huntingdonshire District Council,200811,ATOS IT SERVICES UK LTD UNIFY,42128,24/11/2020,5584349908,LAND LINE RENTAL,17/12/2020,2371.13,11855.64,14226.77,Cambridge City Business Case ,Land Line Rental,64077
http://statistics.data.gov.uk/id/local-authority/12UE,Huntingdonshire District Council,200811,ATOS IT SERVICES UK LTD UNIFY,41335,28/10/2020,5584348295,LAND LINE RENTAL,26/11/2020,2196.11,10980.54,13176.65,Cambridge City Business Case ,Land Line Rental,64077
http://statistics.data.gov.uk/id/local-authority/12UE,Huntingdonshire District Council,200811,ATOS IT SERVICES UK LTD UNIFY,41334,24/09/2020,5584345548,LAND LINE RENTAL,26/11/2020,2177.23,10886.16,13063.39,Cambridge City Business Case ,Land Line Rental,64077
http://statistics.data.gov.uk/id/local-authority/12UE,Huntingdonshire District Council,200869,REDCENTRIC SOLUTIONS LTD REDCENTRIC SOLUTIONS LTD,41603,06/10/2020,SI000475,LAND LINE RENTAL,03/12/2020,119.38,596.9,716.28,Cambridge City Business Case ,Land Line Rental,64077
http://statistics.data.gov.uk/id/local-authority/12UE,Huntingdonshire District Council,200869,REDCENTRIC SOLUTIONS LTD REDCENTRIC SOLUTIONS LTD,41604,06/11/2020,SI001752,LAND LINE RENTAL,03/12/2020,119.38,596.9,716.28,Cambridge City Business Case ,Land Line Rental,64077
http://statistics.data.gov.uk/id/local-authority/12UE,Huntingdonshire District Council,200869,REDCENTRIC SOLUTIONS LTD REDCENTRIC SOLUTIONS LTD,41605,06/09/2020,295461,LAND LINE RENTAL,03/12/2020,119.38,596.9,716.28,Cambridge City Business Case ,Land Line Rental,64077
http://statistics.data.gov.uk/id/local-authority/12UE,Huntingdonshire District Council,200811,ATOS IT SERVICES UK LTD UNIFY,42128,24/11/2020,5584349908,LAND LINE RENTAL,17/12/2020,2.47,12.35,14.82,Cambridge City Business Case ,Landline Call Charges,64082
http://statistics.data.gov.uk/id/local-authority/12UE,Huntingdonshire District Council,200811,ATOS IT SERVICES UK LTD UNIFY,41334,24/09/2020,5584345548,LAND LINE RENTAL,26/11/2020,0.88,4.38,5.26,Cambridge City Business Case ,Landline Call Charges,64082
http://statistics.data.gov.uk/id/local-authority/12UE,Huntingdonshire District Council,200770,TELEFONICA UK LTD TELEFONICA UK LTD,40229,20/09/2020,71785542,LINE RENTAL,22/10/2020,398.5,1992.48,2390.98,Cambridge City Business Case ,Line Rental,64075
http://statistics.data.gov.uk/id/local-authority/12UE,Huntingdonshire District Council,200770,TELEFONICA UK LTD TELEFONICA UK LTD,40252,20/08/2020,69397801,LINE RENTAL,22/10/2020,384.48,1922.4,2306.88,Cambridge City Business Case ,Line Rental,64075
http://statistics.data.gov.uk/id/local-authority/12UE,Huntingdonshire District Council,200770,TELEFONICA UK LTD TELEFONICA UK LTD,40228,20/09/2020,71792142,LINE RENTAL,22/10/2020,87.24,436.2,523.44,Cambridge City Business Case ,Line Rental,64075
http://statistics.data.gov.uk/id/local-authority/12UE,Huntingdonshire District Council,200770,TELEFONICA UK LTD TELEFONICA UK LTD,40250,20/08/2020,69419724,LINE RENTAL,22/10/2020,126.21,631.04,757.25,Cambridge City Business Case ,Line Rental,64075
http://statistics.data.gov.uk/id/local-authority/12UE,Huntingdonshire District Council,200770,TELEFONICA UK LTD TELEFONICA UK LTD,41363,20/10/2020,74236610,LINE RENTAL,26/11/2020,376.33,1881.66,2257.99,Cambridge City Business Case ,Line Rental,64075
http://statistics.data.gov.uk/id/local-authority/12UE,Huntingdonshire District Council,200770,TELEFONICA UK LTD TELEFONICA UK LTD,42130,20/11/2020,76822811,LINE RENTAL,17/12/2020,16.97,84.85,101.82,Cambridge City Business Case ,Line Rental,64075
http://statistics.data.gov.uk/id/local-authority/12UE,Huntingdonshire District Council,200770,TELEFONICA UK LTD TELEFONICA UK LTD,41331,20/10/2020,74285708,3cict phones,26/11/2020,14.64,73.18,87.82,Cambridge City Business Case ,Line Rental,64075
http://statistics.data.gov.uk/id/local-authority/12UE,Huntingdonshire District Council,200939,CAPITA MANAGED IT SOLUTIONS,41244,22/10/2020,6077073125,3cict contract renewal,26/11/2020,2161.66,10808.29,12969.95,Cambridge City Business Case ,"Maintenance - Equipment, Furniture And Materials",61702
http://statistics.data.gov.uk/id/local-authority/12UE,Huntingdonshire District Council,200896,COLOURBYTE EUROPE LTD,38709,08/09/2020,205417,PRINTER INK,01/10/2020,8.6,43,51.6,Cambridge City Business Case ,"Maintenance - Equipment, Furniture And Materials",61702
http://statistics.data.gov.uk/id/local-authority/12UE,Huntingdonshire District Council,200896,COLOURBYTE EUROPE LTD,38709,08/09/2020,205417,PRINTER INK,01/10/2020,32.6,163,195.6,Cambridge City Business Case ,"Maintenance - Equipment, Furniture And Materials",61702
http://statistics.data.gov.uk/id/local-authority/12UE,Huntingdonshire District Council,200896,COLOURBYTE EUROPE LTD,38709,08/09/2020,205417,PRINTER INK,01/10/2020,32.6,163,195.6,Cambridge City Business Case ,"Maintenance - Equipment, Furniture And Materials",61702
http://statistics.data.gov.uk/id/local-authority/12UE,Huntingdonshire District Council,200896,COLOURBYTE EUROPE LTD,38709,08/09/2020,205417,PRINTER INK,01/10/2020,32.6,163,195.6,Cambridge City Business Case ,"Maintenance - Equipment, Furniture And Materials",61702
http://statistics.data.gov.uk/id/local-authority/12UE,Huntingdonshire District Council,200896,COLOURBYTE EUROPE LTD,38709,08/09/2020,205417,PRINTER INK,01/10/2020,32.6,163,195.6,Cambridge City Business Case ,"Maintenance - Equipment, Furniture And Materials",61702
http://statistics.data.gov.uk/id/local-authority/12UE,Huntingdonshire District Council,200896,COLOURBYTE EUROPE LTD,38709,08/09/2020,205417,PRINTER INK,01/10/2020,32.6,163,195.6,Cambridge City Business Case ,"Maintenance - Equipment, Furniture And Materials",61702
http://statistics.data.gov.uk/id/local-authority/12UE,Huntingdonshire District Council,200939,CAPITA MANAGED IT SOLUTIONS,42084,18/11/2020,6077073975,EQUIPMENT MAINTENANCE,10/12/2020,54.76,273.8,328.56,Cambridge City Business Case ,"Maintenance - Equipment, Furniture And Materials",61702
http://statistics.data.gov.uk/id/local-authority/12UE,Huntingdonshire District Council,200423,IRON MOUNTAIN UK LIMITED IRON MOUNTAIN UK LIMITED,41429,30/09/2020,18166337,NETWORK INFRASTRUCTURE,26/11/2020,232.09,1160.44,1392.53,Cambridge City Business Case ,Network Hardware,64069
http://statistics.data.gov.uk/id/local-authority/12UE,Huntingdonshire District Council,200423,IRON MOUNTAIN UK LIMITED IRON MOUNTAIN UK LIMITED,41430,31/10/2020,18166621,NETWORK INFRASTRUCTURE,26/11/2020,229.62,1148.1,1377.72,Cambridge City Business Case ,Network Hardware,64069
http://statistics.data.gov.uk/id/local-authority/12UE,Huntingdonshire District Council,200423,IRON MOUNTAIN UK LIMITED IRON MOUNTAIN UK LIMITED,41428,31/08/2020,18166045,NETWORK INFRASTRUCTURE,26/11/2020,220.24,1101.21,1321.45,Cambridge City Business Case ,Network Hardware,64069
http://statistics.data.gov.uk/id/local-authority/12UE,Huntingdonshire District Council,200968,NORTHGATE PUBLIC SERVICES UK LTD,40779,15/10/2020,91439346,SERVER MIGRATION,12/11/2020,2300,11500,13800,Cambridge City Business Case ,Professional Services - General,62402
http://statistics.data.gov.uk/id/local-authority/12UE,Huntingdonshire District Council,200579,ZELLIS UK LTD,42739,26/11/2020,IN0144519,PROFESSIONAL SERVICES,31/12/2020,340,1700,2040,Cambridge City Business Case ,Professional Services - General,62402
http://statistics.data.gov.uk/id/local-authority/12UE,Huntingdonshire District Council,200579,ZELLIS UK LTD,42738,29/10/2020,IN0140795,PROFESSIONAL SERVICES,31/12/2020,170,850,1020,Cambridge City Business Case ,Professional Services - General,62402
http://statistics.data.gov.uk/id/local-authority/12UE,Huntingdonshire District Council,200651,PWM TRAINING (UK) LTD PWM TRAINING (UK) LTD,39909,08/10/2020,INV-5362,TRAINING,05/11/2020,50,250,300,Cambridge City Business Case ,Staff Development And Training,60115
http://statistics.data.gov.uk/id/local-authority/12UE,Huntingdonshire District Council,200651,PWM TRAINING (UK) LTD PWM TRAINING (UK) LTD,39909,08/10/2020,INV-5362,TRAINING,05/11/2020,50,250,300,Cambridge City Business Case ,Staff Development And Training,60115
http://statistics.data.gov.uk/id/local-authority/12UE,Huntingdonshire District Council,201836,CORE LEARNING SERVICES LTD,42026,01/12/2020,2509,LICENCE,10/12/2020,100,500,600,Cambridge City Business Case ,Staff Development And Training,60115
http://statistics.data.gov.uk/id/local-authority/12UE,Huntingdonshire District Council,200651,PWM TRAINING (UK) LTD PWM TRAINING (UK) LTD,42033,27/11/2020,INV-5369,TRAINING,10/12/2020,50,250,300,Cambridge City Business Case ,Staff Development And Training,60115
http://statistics.data.gov.uk/id/local-authority/12UE,Huntingdonshire District Council,200651,PWM TRAINING (UK) LTD PWM TRAINING (UK) LTD,42033,27/11/2020,INV-5369,TRAINING,10/12/2020,50,250,300,Cambridge City Business Case ,Staff Development And Training,60115
http://statistics.data.gov.uk/id/local-authority/12UE,Huntingdonshire District Council,200614,PHOENIX SOFTWARE LTD PHOENIX SOFTWARE LTD,40265,02/09/2020,OP/I875039,SUBSCRIPTIONS,22/10/2020,133.8,668.99,802.79,Cambridge Live ,Ict Software,64071
http://statistics.data.gov.uk/id/local-authority/12UE,Huntingdonshire District Council,200101,BID HUNTINGDON BID HUNTINGDON,42206,08/12/2020,INV-1883,ADVERTISING,17/12/2020,729.1,3645.5,4374.6,Car Park Management,"Advertising, Publicity And Marketing",62005
http://statistics.data.gov.uk/id/local-authority/12UE,Huntingdonshire District Council,200429,J BREHENY CIVIL ENGINEERING LTD J BREHENY CIVIL ENGINEERING LTD,41999,02/12/2020,HMG/5106/33494,ROAD/FENCING REPAIRS,10/12/2020,189,945,1134,Car Park Management,Building Construction,60269
http://statistics.data.gov.uk/id/local-authority/12UE,Huntingdonshire District Council,201912,FLOWBIRD SMART CITY UK LTD,40449,04/09/2020,UK130757,CALE MACHINE UPGRADE,29/10/2020,3803.2,19016,22819.2,Car Park Management,Cark Park Machines,61707
http://statistics.data.gov.uk/id/local-authority/12UE,Huntingdonshire District Council,201912,FLOWBIRD SMART CITY UK LTD,40390,21/09/2020,UK13182,P&D MACHINE CALL OUTS,29/10/2020,265.52,1327.6,1593.12,Car Park Management,Cark Park Machines,61707
http://statistics.data.gov.uk/id/local-authority/12UE,Huntingdonshire District Council,201912,FLOWBIRD SMART CITY UK LTD,40389,01/09/2020,UK130718,MACHINE SERVICES,29/10/2020,257.18,1285.88,1543.06,Car Park Management,Cark Park Machines,61707
http://statistics.data.gov.uk/id/local-authority/12UE,Huntingdonshire District Council,201912,FLOWBIRD SMART CITY UK LTD,40391,22/09/2020,UK131313,P&D MACHINE CALL OUTS,29/10/2020,233.15,1165.75,1398.9,Car Park Management,Cark Park Machines,61707
http://statistics.data.gov.uk/id/local-authority/12UE,Huntingdonshire District Council,201051,REDACTED,42651,25/02/2020,PRF250220A,PETTY CASH,31/12/2020,0,2,2,Car Park Management,Cark Park Machines,61707
http://statistics.data.gov.uk/id/local-authority/12UE,Huntingdonshire District Council,200526,MASKEARAID LTD MASKEARAID LTD,38711,07/09/2020,72454,DISINFECTANT WIPES,01/10/2020,72.6,363,435.6,Car Park Management,Cleaning Materials,61300
http://statistics.data.gov.uk/id/local-authority/12UE,Huntingdonshire District Council,200526,MASKEARAID LTD MASKEARAID LTD,38711,07/09/2020,72454,DISINFECTANT WIPES,01/10/2020,24,120,144,Car Park Management,Cleaning Materials,61300
http://statistics.data.gov.uk/id/local-authority/12UE,Huntingdonshire District Council,202256,EASY CLEAN CONTRACTORS LTD,41078,31/08/2020,16819,Aug-20,19/11/2020,66.72,333.58,400.3,Car Park Management,Cleaning Services,60501
http://statistics.data.gov.uk/id/local-authority/12UE,Huntingdonshire District Council,202256,EASY CLEAN CONTRACTORS LTD,39786,30/09/2020,16925,CLEANING SEPT 20,22/10/2020,15.4,76.98,92.38,Car Park Management,Cleaning Services,60501
http://statistics.data.gov.uk/id/local-authority/12UE,Huntingdonshire District Council,202256,EASY CLEAN CONTRACTORS LTD,40247,30/09/2020,16973,MULTI STOREY CAR PARK,22/10/2020,537.46,2687.32,3224.78,Car Park Management,Cleaning Services,60501
http://statistics.data.gov.uk/id/local-authority/12UE,Huntingdonshire District Council,200526,MASKEARAID LTD MASKEARAID LTD,41633,22/09/2020,72601,SOAP DISPENSERS,03/12/2020,60.04,300.2,360.24,Car Park Management,Cleaning Services,60501
http://statistics.data.gov.uk/id/local-authority/12UE,Huntingdonshire District Council,200725,SMI INT GROUP LTD SMI GROUP,40367,09/10/2020,INV796617,WORK WEAR,05/11/2020,63.32,316.6,379.92,Car Park Management,"Clothes, Uniform And Laundry",62000
http://statistics.data.gov.uk/id/local-authority/12UE,Huntingdonshire District Council,200434,JADE SECURITY SERVICES LTD JADE SECURITY SERVICES LTD,40730,31/10/2020,687,CASH COLLECTION - PARKING,26/11/2020,902.4,4512,5414.4,Car Park Management,Contract Charges ,61800
http://statistics.data.gov.uk/id/local-authority/12UE,Huntingdonshire District Council,200434,JADE SECURITY SERVICES LTD JADE SECURITY SERVICES LTD,42161,30/11/2020,854,CASH COLLECTION - PARKING,23/12/2020,834,4170,5004,Car Park Management,Contract Charges ,61800
http://statistics.data.gov.uk/id/local-authority/12UE,Huntingdonshire District Council,200434,JADE SECURITY SERVICES LTD JADE SECURITY SERVICES LTD,41260,30/09/2020,583,ops - parking,26/11/2020,264,1320,1584,Car Park Management,Contract Charges ,61800
http://statistics.data.gov.uk/id/local-authority/12UE,Huntingdonshire District Council,200190,CHIPSIDE CHIPSIDE,42162,01/12/2020,S211065,MIPERMIT FEES,23/12/2020,129.58,647.92,777.5,Car Park Management,Contract Charges ,61800
http://statistics.data.gov.uk/id/local-authority/12UE,Huntingdonshire District Council,200190,CHIPSIDE CHIPSIDE,42162,01/12/2020,S211065,MIPERMIT FEES,23/12/2020,0.6,3,3.6,Car Park Management,Contract Charges ,61800
http://statistics.data.gov.uk/id/local-authority/12UE,Huntingdonshire District Council,201544,REDACTED,39339,28/09/2020,PRF280920,PETTY CASH,01/10/2020,0,13,13,Car Park Management,Equipment,61713
http://statistics.data.gov.uk/id/local-authority/12UE,Huntingdonshire District Council,201051,REDACTED,42651,25/02/2020,PRF250220A,PETTY CASH,31/12/2020,0,23.76,23.76,Car Park Management,Equipment,61713
http://statistics.data.gov.uk/id/local-authority/12UE,Huntingdonshire District Council,201051,REDACTED,42651,25/02/2020,PRF250220A,PETTY CASH,31/12/2020,1.56,7.8,9.36,Car Park Management,Equipment,61713
http://statistics.data.gov.uk/id/local-authority/12UE,Huntingdonshire District Council,201051,REDACTED,42651,25/02/2020,PRF250220A,PETTY CASH,31/12/2020,1.03,5.17,6.2,Car Park Management,Equipment,61713
http://statistics.data.gov.uk/id/local-authority/12UE,Huntingdonshire District Council,201131,HUNTINGDON TOWN COUNCIL,42706,21/12/2020,15844,CHRISTMAS TREES/WREATHS,31/12/2020,424,2120,2544,Car Park Management,Events,62900
http://statistics.data.gov.uk/id/local-authority/12UE,Huntingdonshire District Council,200149,CAMBRIDGE CITY COUNCIL CAMBRIDGE CITY COUNCIL,41471,23/11/2020,12052272,SHARED LEGAL INCOME,10/12/2020,0,13641.01,13641.01,Car Park Management,Legal Fees,63200
http://statistics.data.gov.uk/id/local-authority/12UE,Huntingdonshire District Council,200429,J BREHENY CIVIL ENGINEERING LTD J BREHENY CIVIL ENGINEERING LTD,41999,02/12/2020,HMG/5106/33494,ROAD/FENCING REPAIRS,10/12/2020,732,3660,4392,Car Park Management,Maintenance - Building,60201
http://statistics.data.gov.uk/id/local-authority/12UE,Huntingdonshire District Council,200429,J BREHENY CIVIL ENGINEERING LTD J BREHENY CIVIL ENGINEERING LTD,41999,02/12/2020,HMG/5106/33494,ROAD/FENCING REPAIRS,10/12/2020,337.2,1686,2023.2,Car Park Management,Maintenance - Building,60201
http://statistics.data.gov.uk/id/local-authority/12UE,Huntingdonshire District Council,200429,J BREHENY CIVIL ENGINEERING LTD J BREHENY CIVIL ENGINEERING LTD,41999,02/12/2020,HMG/5106/33494,ROAD/FENCING REPAIRS,10/12/2020,374.4,1872,2246.4,Car Park Management,Maintenance - Building,60201
http://statistics.data.gov.uk/id/local-authority/12UE,Huntingdonshire District Council,202428,DRAINAGE 2000 LTD,41750,12/10/2020,11573,GULLY & INTERCEPTOR MAINTENANCE,03/12/2020,1228.46,6142.3,7370.76,Car Park Management,Maintenance - Building,60201
http://statistics.data.gov.uk/id/local-authority/12UE,Huntingdonshire District Council,201544,REDACTED,39339,28/09/2020,PRF280920,PETTY CASH,01/10/2020,0,18,18,Car Park Management,Materials,61709
http://statistics.data.gov.uk/id/local-authority/12UE,Huntingdonshire District Council,201544,REDACTED,39339,28/09/2020,PRF280920,PETTY CASH,01/10/2020,0,1,1,Car Park Management,Parking Charges Casual,51504
http://statistics.data.gov.uk/id/local-authority/12UE,Huntingdonshire District Council,201544,REDACTED,39339,28/09/2020,PRF280920,PETTY CASH,01/10/2020,0,2.8,2.8,Car Park Management,Parking Charges Casual,51504
http://statistics.data.gov.uk/id/local-authority/12UE,Huntingdonshire District Council,202391,UNIPORT BUSINESS SYSTEMS LTD,39336,21/09/2020,REDACTED,REFUND,01/10/2020,0,500,500,Cashiers Suspense Account,Overpayments Recovered,12020
http://statistics.data.gov.uk/id/local-authority/12UE,Huntingdonshire District Council,200451,K & M LIGHTING SERVICES LTD K & M LIGHTING SERVICES LTD,40771,03/11/2020,6084,CATTLE MARKET CAR PARK,26/11/2020,102,510,612,Cattle Market Long (STI),Maintenance - Building,60201
http://statistics.data.gov.uk/id/local-authority/12UE,Huntingdonshire District Council,200655,QUADRANT SECURITY GROUP QUADRANT SECURITY GROUP,41365,27/05/2020,SIN091460,CCTV,26/11/2020,18288.43,91442.15,109730.58,Cctv - Camera Replacements,Equipment,61713
http://statistics.data.gov.uk/id/local-authority/12UE,Huntingdonshire District Council,200655,QUADRANT SECURITY GROUP QUADRANT SECURITY GROUP,41366,18/08/2020,SCR002190,CCTV,26/11/2020,-18288.43,-91442.15,-109730.58,Cctv - Camera Replacements,Equipment,61713
http://statistics.data.gov.uk/id/local-authority/12UE,Huntingdonshire District Council,202232,KLAXON LTD,42064,30/11/2020,KL2213,CONSULTANCY,10/12/2020,96.88,484.38,581.26,Cctv Huntingdonshire,Consultancy Fees,62400
http://statistics.data.gov.uk/id/local-authority/12UE,Huntingdonshire District Council,202232,KLAXON LTD,42065,30/11/2020,KL2212,CONSULTANCY,10/12/2020,71.88,359.38,431.26,Cctv Huntingdonshire,Consultancy Fees,62400
http://statistics.data.gov.uk/id/local-authority/12UE,Huntingdonshire District Council,202232,KLAXON LTD,39647,01/10/2020,KL2191,CONSULTANCY,08/10/2020,65.63,328.13,393.76,Cctv Huntingdonshire,Consultancy Fees,62400
http://statistics.data.gov.uk/id/local-authority/12UE,Huntingdonshire District Council,202232,KLAXON LTD,40854,02/11/2020,KL2202,CONSULTANCY,12/11/2020,62.5,312.5,375,Cctv Huntingdonshire,Consultancy Fees,62400
http://statistics.data.gov.uk/id/local-authority/12UE,Huntingdonshire District Council,200655,QUADRANT SECURITY GROUP QUADRANT SECURITY GROUP,41354,21/07/2020,SIN091819,CCTV,26/11/2020,2322.38,11611.92,13934.3,Cctv Huntingdonshire,Subcontractors,62401
http://statistics.data.gov.uk/id/local-authority/12UE,Huntingdonshire District Council,200655,QUADRANT SECURITY GROUP QUADRANT SECURITY GROUP,40887,06/11/2020,SIN092453,CCTV CAMERAS,03/12/2020,636.62,3183.08,3819.7,Cctv Huntingdonshire,Subcontractors,62401
http://statistics.data.gov.uk/id/local-authority/12UE,Huntingdonshire District Council,201051,REDACTED,42651,25/02/2020,PRF250220A,PETTY CASH,31/12/2020,0,5.6,5.6,Cctv Huntingdonshire,Travel Allowance - Other,60022
http://statistics.data.gov.uk/id/local-authority/12UE,Huntingdonshire District Council,200135,BT REDCARE BT REDCARE,42192,03/11/2020,20030945,CCTV,17/12/2020,374.82,1874.08,2248.9,Cctv Shared Service - City,Cctv Cameras,69319
http://statistics.data.gov.uk/id/local-authority/12UE,Huntingdonshire District Council,200655,QUADRANT SECURITY GROUP QUADRANT SECURITY GROUP,38794,08/09/2020,SIN092082,CCTV MAINTENANCE - CAMBRIDGE,01/10/2020,653.4,3267,3920.4,Cctv Shared Service - City,"Maintenance - Equipment, Furniture And Materials",61702
http://statistics.data.gov.uk/id/local-authority/12UE,Huntingdonshire District Council,200655,QUADRANT SECURITY GROUP QUADRANT SECURITY GROUP,39634,29/09/2020,SIN092180,CCTV MAINTENANCE - CAMBRIDGE,22/10/2020,653.4,3267,3920.4,Cctv Shared Service - City,"Maintenance - Equipment, Furniture And Materials",61702
http://statistics.data.gov.uk/id/local-authority/12UE,Huntingdonshire District Council,200655,QUADRANT SECURITY GROUP QUADRANT SECURITY GROUP,40495,28/10/2020,SIN92398,CCTV MAINTENANCE - CAMBRIDGE,19/11/2020,653.4,3267,3920.4,Cctv Shared Service - City,"Maintenance - Equipment, Furniture And Materials",61702
http://statistics.data.gov.uk/id/local-authority/12UE,Huntingdonshire District Council,200655,QUADRANT SECURITY GROUP QUADRANT SECURITY GROUP,41500,24/11/2020,SIN092525,CCTV MAINTENANCE - CAMBRIDGE,10/12/2020,653.4,3267,3920.4,Cctv Shared Service - City,"Maintenance - Equipment, Furniture And Materials",61702
http://statistics.data.gov.uk/id/local-authority/12UE,Huntingdonshire District Council,200825,VIRGIN MEDIA BUSINESS VIRGIN MEDIA BUSINESS,42267,04/12/2020,242159-167,CCTV,31/12/2020,360,1800,2160,Cctv Shared Service - City,Telecommunications,60301
http://statistics.data.gov.uk/id/local-authority/12UE,Huntingdonshire District Council,200825,VIRGIN MEDIA BUSINESS VIRGIN MEDIA BUSINESS,42267,04/12/2020,242159-167,CCTV,31/12/2020,0,70,70,Cctv Shared Service - City,Telecommunications,60301
http://statistics.data.gov.uk/id/local-authority/12UE,Huntingdonshire District Council,200825,VIRGIN MEDIA BUSINESS VIRGIN MEDIA BUSINESS,42268,04/12/2020,242159-155,CCTV,31/12/2020,360,1800,2160,Cctv Shared Service - City,Telecommunications,60301
http://statistics.data.gov.uk/id/local-authority/12UE,Huntingdonshire District Council,200129,BRITISH TELECOMMUNICATIONS PLC BRITISH TELECOMMUNICATIONS PLC,39708,18/09/2020,20030518,CCTV CONTROL ROOM,08/10/2020,284.14,1420.72,1704.86,Cctv Shared Service - HDC,Line Rental,64075
http://statistics.data.gov.uk/id/local-authority/12UE,Huntingdonshire District Council,200655,QUADRANT SECURITY GROUP QUADRANT SECURITY GROUP,38793,08/09/2020,SIN092081,CCTV MAINTENANCE - HUNTS,01/10/2020,322.5,1612.5,1935,Cctv Shared Service - HDC,"Maintenance - Equipment, Furniture And Materials",61702
http://statistics.data.gov.uk/id/local-authority/12UE,Huntingdonshire District Council,200655,QUADRANT SECURITY GROUP QUADRANT SECURITY GROUP,39635,29/09/2020,SIN092179,CCTV MAINTENANCE - HUNTS,22/10/2020,322.5,1612.5,1935,Cctv Shared Service - HDC,"Maintenance - Equipment, Furniture And Materials",61702
http://statistics.data.gov.uk/id/local-authority/12UE,Huntingdonshire District Council,200655,QUADRANT SECURITY GROUP QUADRANT SECURITY GROUP,40494,28/10/2020,SIN092397,CCTV MAINTENANCE - HUNTS,19/11/2020,322.5,1612.5,1935,Cctv Shared Service - HDC,"Maintenance - Equipment, Furniture And Materials",61702
http://statistics.data.gov.uk/id/local-authority/12UE,Huntingdonshire District Council,200655,QUADRANT SECURITY GROUP QUADRANT SECURITY GROUP,41499,24/11/2020,SIN092524,CCTV MAINTENANCE - HUNTS,10/12/2020,322.5,1612.5,1935,Cctv Shared Service - HDC,"Maintenance - Equipment, Furniture And Materials",61702
http://statistics.data.gov.uk/id/local-authority/12UE,Huntingdonshire District Council,200655,QUADRANT SECURITY GROUP QUADRANT SECURITY GROUP,41282,12/11/2020,SIN092494,cctv - engineer,10/12/2020,60.9,304.5,365.4,Cctv Shared Service - HDC,"Maintenance - Equipment, Furniture And Materials",61702
http://statistics.data.gov.uk/id/local-authority/12UE,Huntingdonshire District Council,200655,QUADRANT SECURITY GROUP QUADRANT SECURITY GROUP,41422,09/09/2020,SIN092117,CCTV,26/11/2020,700,3500,4200,Cctv Shared Service Hosting,Cctv Cameras,69319
http://statistics.data.gov.uk/id/local-authority/12UE,Huntingdonshire District Council,200934,BAGNALLS PAINTING & DECORATING,42189,30/11/2020,KLI-100776,REDACTED,23/12/2020,107,535,642,Cctv Shared Service Hosting,Decoration,60204
http://statistics.data.gov.uk/id/local-authority/12UE,Huntingdonshire District Council,200149,CAMBRIDGE CITY COUNCIL CAMBRIDGE CITY COUNCIL,41626,26/11/2020,12052618,CCTV COSTS,10/12/2020,2017.3,10086.5,12103.8,Cctv Shared Service Hosting,Equipment,61713
http://statistics.data.gov.uk/id/local-authority/12UE,Huntingdonshire District Council,200999,"HARRISONS ELECTRICAL, MECHANICAL AND PROPERTY SERVICES",42261,30/10/2020,36064,EASTFIELD HOUSE,17/12/2020,113.65,568.25,681.9,Cctv Shared Service Hosting,Equipment,61713
http://statistics.data.gov.uk/id/local-authority/12UE,Huntingdonshire District Council,201368,STORACALL VOICE SYSTEMS,39894,17/08/2020,1219,STANDARD CARE COVER,15/10/2020,220.38,1101.89,1322.27,Cctv Shared Service Hosting,Maintenance - Mechanical And Electrical,60203
http://statistics.data.gov.uk/id/local-authority/12UE,Huntingdonshire District Council,200149,CAMBRIDGE CITY COUNCIL CAMBRIDGE CITY COUNCIL,41626,26/11/2020,12052618,CCTV COSTS,10/12/2020,652,3260,3912,Cctv Shared Service Hosting,Premises Hire - Facilities,60402
http://statistics.data.gov.uk/id/local-authority/12UE,Huntingdonshire District Council,200210,COMPUTERSHARE VOUCHERS LTD COMPUTERSHARE VOUCHERS LTD,40486,26/10/2020,C-0003128962,TAX FREE VOUCHERS,29/10/2020,9.77,48.85,58.62,Child Care Vouchers - Payroll,Deductions Paid To Third Party,23014
http://statistics.data.gov.uk/id/local-authority/12UE,Huntingdonshire District Council,200210,COMPUTERSHARE VOUCHERS LTD COMPUTERSHARE VOUCHERS LTD,41398,24/11/2020,C-0003140303,TAX FREE VOUCHERS,26/11/2020,9.32,46.6,55.92,Child Care Vouchers - Payroll,Deductions Paid To Third Party,23014
http://statistics.data.gov.uk/id/local-authority/12UE,Huntingdonshire District Council,200210,COMPUTERSHARE VOUCHERS LTD COMPUTERSHARE VOUCHERS LTD,42451,22/12/2020,C-0003151546,TAX FREE VOUCHERS,23/12/2020,8.61,43.03,51.64,Child Care Vouchers - Payroll,Deductions Paid To Third Party,23014
http://statistics.data.gov.uk/id/local-authority/12UE,Huntingdonshire District Council,201199,Bluntisham Parish Council,40027,15/10/2020,CIL PAYMENT OCT 2020,CIL PAYMENT OCT 2020,22/10/2020,0,5114.43,5114.43,Cil Capital Grant Element,Cil Payment To Parishes,66402
http://statistics.data.gov.uk/id/local-authority/12UE,Huntingdonshire District Council,201200,Brampton Parish Council,40028,15/10/2020,CIL PAYMENT OCT 2020,CIL PAYMENT OCT 2020,22/10/2020,0,94226.36,94226.36,Cil Capital Grant Element,Cil Payment To Parishes,66402
http://statistics.data.gov.uk/id/local-authority/12UE,Huntingdonshire District Council,201220,Ellington Parish Council,40029,15/10/2020,CIL PAYMENT OCT 2020,CIL PAYMENT OCT 2020,22/10/2020,0,6947.55,6947.55,Cil Capital Grant Element,Cil Payment To Parishes,66402
http://statistics.data.gov.uk/id/local-authority/12UE,Huntingdonshire District Council,201108,ELTON PARISH COUNCIL,40030,15/10/2020,CIL PAYMENT OCT 2020,CIL PAYMENT OCT 2020,22/10/2020,0,782.85,782.85,Cil Capital Grant Element,Cil Payment To Parishes,66402
http://statistics.data.gov.uk/id/local-authority/12UE,Huntingdonshire District Council,201222,Folksworth & Washingley Parish Council,40031,15/10/2020,CIL PAYMENT OCT 2020,CIL PAYMENT OCT 2020,22/10/2020,0,2979.51,2979.51,Cil Capital Grant Element,Cil Payment To Parishes,66402
http://statistics.data.gov.uk/id/local-authority/12UE,Huntingdonshire District Council,201233,Hemingford Abbots Parish Council,40032,15/10/2020,CIL PAYMENT OCT 2020,CIL PAYMENT OCT 2020,22/10/2020,0,1432.23,1432.23,Cil Capital Grant Element,Cil Payment To Parishes,66402
http://statistics.data.gov.uk/id/local-authority/12UE,Huntingdonshire District Council,201235,Hilton Parish Council,40033,15/10/2020,CIL PAYMENT OCT 2020,CIL PAYMENT OCT 2020,22/10/2020,0,628.66,628.66,Cil Capital Grant Element,Cil Payment To Parishes,66402
http://statistics.data.gov.uk/id/local-authority/12UE,Huntingdonshire District Council,201131,HUNTINGDON TOWN COUNCIL,40034,15/10/2020,CIL PAYMENT OCT 2020,CIL PAYMENT OCT 2020,22/10/2020,0,4754.65,4754.65,Cil Capital Grant Element,Cil Payment To Parishes,66402
http://statistics.data.gov.uk/id/local-authority/12UE,Huntingdonshire District Council,201243,Old Weston Parish Council,40035,15/10/2020,CIL PAYMENT OCT 2020,CIL PAYMENT OCT 2020,22/10/2020,0,2740.87,2740.87,Cil Capital Grant Element,Cil Payment To Parishes,66402
http://statistics.data.gov.uk/id/local-authority/12UE,Huntingdonshire District Council,201247,Pidley-Cum-Fenton Parish Council,40036,15/10/2020,CIL PAYMENT OCT 2020,CIL PAYMENT OCT 2020,22/10/2020,0,2325.67,2325.67,Cil Capital Grant Element,Cil Payment To Parishes,66402
http://statistics.data.gov.uk/id/local-authority/12UE,Huntingdonshire District Council,201248,Ramsey Town Council,40037,15/10/2020,CIL PAYMENT OCT 2020,CIL PAYMENT OCT 2020,22/10/2020,0,3836.08,3836.08,Cil Capital Grant Element,Cil Payment To Parishes,66402
http://statistics.data.gov.uk/id/local-authority/12UE,Huntingdonshire District Council,200923,ST IVES TOWN COUNCIL,40038,15/10/2020,CIL PAYMENT OCT 2020,CIL PAYMENT OCT 2020,22/10/2020,0,44608.91,44608.91,Cil Capital Grant Element,Cil Payment To Parishes,66402
http://statistics.data.gov.uk/id/local-authority/12UE,Huntingdonshire District Council,201249,Sawtry Parish Council,40039,15/10/2020,CIL PAYMENT OCT 2020,CIL PAYMENT OCT 2020,22/10/2020,0,37133.74,37133.74,Cil Capital Grant Element,Cil Payment To Parishes,66402
http://statistics.data.gov.uk/id/local-authority/12UE,Huntingdonshire District Council,201251,Somersham Parish Council,40040,15/10/2020,CIL PAYMENT OCT 2020,CIL PAYMENT OCT 2020,22/10/2020,0,2460.15,2460.15,Cil Capital Grant Element,Cil Payment To Parishes,66402
http://statistics.data.gov.uk/id/local-authority/12UE,Huntingdonshire District Council,201255,Stilton Parish Council,40041,15/10/2020,CIL PAYMENT OCT 2020,CIL PAYMENT OCT 2020,22/10/2020,0,1960.28,1960.28,Cil Capital Grant Element,Cil Payment To Parishes,66402
http://statistics.data.gov.uk/id/local-authority/12UE,Huntingdonshire District Council,201257,Stukeley Parish Council,40042,15/10/2020,CIL PAYMENT OCT 2020,CIL PAYMENT OCT 2020,22/10/2020,0,110502.77,110502.77,Cil Capital Grant Element,Cil Payment To Parishes,66402
http://statistics.data.gov.uk/id/local-authority/12UE,Huntingdonshire District Council,201259,Tilbrook Parish Council,40043,15/10/2020,CIL PAYMENT OCT 2020,CIL PAYMENT OCT 2020,22/10/2020,0,294.54,294.54,Cil Capital Grant Element,Cil Payment To Parishes,66402
http://statistics.data.gov.uk/id/local-authority/12UE,Huntingdonshire District Council,201047,WARBOYS PARISH COUNCIL,40044,15/10/2020,CIL PAYMENT OCT 2020,CIL PAYMENT OCT 2020,22/10/2020,0,60706.13,60706.13,Cil Capital Grant Element,Cil Payment To Parishes,66402
http://statistics.data.gov.uk/id/local-authority/12UE,Huntingdonshire District Council,201264,Wistow Parish Council,40045,15/10/2020,CIL PAYMENT OCT 2020,CIL PAYMENT OCT 2020,12/11/2020,0,1014.53,1014.53,Cil Capital Grant Element,Cil Payment To Parishes,66402
http://statistics.data.gov.uk/id/local-authority/12UE,Huntingdonshire District Council,201268,Yaxley Parish Council,40046,15/10/2020,CIL PAYMENT OCT 2020,CIL PAYMENT OCT 2020,22/10/2020,0,4840.44,4840.44,Cil Capital Grant Element,Cil Payment To Parishes,66402
http://statistics.data.gov.uk/id/local-authority/12UE,Huntingdonshire District Council,201254,St Neots Town Council,40047,15/10/2020,CIL PAYMENT OCT 2020,CIL PAYMENT OCT 2020,22/10/2020,0,161969.05,161969.05,Cil Capital Grant Element,Cil Payment To Parishes,66402
http://statistics.data.gov.uk/id/local-authority/12UE,Huntingdonshire District Council,200026,ADVANTAGE ADVANTAGE,39375,16/09/2020,133648,REDACTED,01/10/2020,205,1025,1230,City Digital Extra,Agency Staff,60011
http://statistics.data.gov.uk/id/local-authority/12UE,Huntingdonshire District Council,200026,ADVANTAGE ADVANTAGE,39376,21/09/2020,133685,REDACTED,01/10/2020,205,1025,1230,City Digital Extra,Agency Staff,60011
http://statistics.data.gov.uk/id/local-authority/12UE,Huntingdonshire District Council,200026,ADVANTAGE ADVANTAGE,39609,28/09/2020,133724,REDACTED,08/10/2020,205,1025,1230,City Digital Extra,Agency Staff,60011
http://statistics.data.gov.uk/id/local-authority/12UE,Huntingdonshire District Council,200026,ADVANTAGE ADVANTAGE,40969,05/10/2020,133746,REDACTED,12/11/2020,205,1025,1230,City Digital Extra,Agency Staff,60011
http://statistics.data.gov.uk/id/local-authority/12UE,Huntingdonshire District Council,200026,ADVANTAGE ADVANTAGE,39374,09/09/2020,133612,REDACTED,01/10/2020,164,820,984,City Digital Extra,Agency Staff,60011
http://statistics.data.gov.uk/id/local-authority/12UE,Huntingdonshire District Council,200614,PHOENIX SOFTWARE LTD PHOENIX SOFTWARE LTD,42581,25/11/2020,OP/I882094,LICENCES,23/12/2020,64.8,324.02,388.82,City Digital Extra,Ict Software,64071
http://statistics.data.gov.uk/id/local-authority/12UE,Huntingdonshire District Council,202461,OSCAR ASSOCIATES (UK) LTD,42072,03/12/2020,32133,STAFF RECRUITMENT,10/12/2020,634.04,3170.18,3804.22,City Digital Extra,Staff Recruitment Costs,60116
http://statistics.data.gov.uk/id/local-authority/12UE,Huntingdonshire District Council,202461,OSCAR ASSOCIATES (UK) LTD,42360,01/12/2020,32118,RECRUITMENT,17/12/2020,563.84,2819.17,3383.01,City Digital Extra,Staff Recruitment Costs,60116
http://statistics.data.gov.uk/id/local-authority/12UE,Huntingdonshire District Council,200026,ADVANTAGE ADVANTAGE,39372,14/09/2020,133645,REDACTED,01/10/2020,200,1000,1200,City Recoverable,Agency Staff,60011
http://statistics.data.gov.uk/id/local-authority/12UE,Huntingdonshire District Council,200026,ADVANTAGE ADVANTAGE,39373,21/09/2020,133674,REDACTED,01/10/2020,200,1000,1200,City Recoverable,Agency Staff,60011
http://statistics.data.gov.uk/id/local-authority/12UE,Huntingdonshire District Council,200630,PREMIER GROUP RECRUITMENT LTD,41346,17/11/2020,R042245,REDACTED,26/11/2020,120,600,720,City Recoverable,Agency Staff,60011
http://statistics.data.gov.uk/id/local-authority/12UE,Huntingdonshire District Council,200026,ADVANTAGE ADVANTAGE,39371,09/09/2020,133620,REDACTED,01/10/2020,160,800,960,City Recoverable,Agency Staff,60011
http://statistics.data.gov.uk/id/local-authority/12UE,Huntingdonshire District Council,200401,IDOX IDOX,42031,26/11/2020,7031307,CONSULTANCY,10/12/2020,185,925,1110,City Recoverable,Consultancy Fees,62400
http://statistics.data.gov.uk/id/local-authority/12UE,Huntingdonshire District Council,200968,NORTHGATE PUBLIC SERVICES UK LTD,42211,08/12/2020,91441093,CONSULTANCY,31/12/2020,2000,10000,12000,City Recoverable,Consultancy Fees,62400
http://statistics.data.gov.uk/id/local-authority/12UE,Huntingdonshire District Council,200968,NORTHGATE PUBLIC SERVICES UK LTD,42210,09/12/2020,91441141,CONSULTANCY,31/12/2020,1000,5000,6000,City Recoverable,Consultancy Fees,62400
http://statistics.data.gov.uk/id/local-authority/12UE,Huntingdonshire District Council,200614,PHOENIX SOFTWARE LTD PHOENIX SOFTWARE LTD,41531,09/11/2020,OP/I880576,ICT HARDWARE,03/12/2020,158.24,791.2,949.44,City Recoverable,Ict Hardware,64070
http://statistics.data.gov.uk/id/local-authority/12UE,Huntingdonshire District Council,200614,PHOENIX SOFTWARE LTD PHOENIX SOFTWARE LTD,41521,27/10/2020,OP/I879502,ICT HARDWARE,03/12/2020,474.72,2373.6,2848.32,City Recoverable,Ict Hardware,64070
http://statistics.data.gov.uk/id/local-authority/12UE,Huntingdonshire District Council,200614,PHOENIX SOFTWARE LTD PHOENIX SOFTWARE LTD,41533,12/11/2020,OP/I880849,ICT HARDWARE,10/12/2020,53.82,269.1,322.92,City Recoverable,Ict Hardware,64070
http://statistics.data.gov.uk/id/local-authority/12UE,Huntingdonshire District Council,200751,STORM TECHNOLOGIES STORM TECHNOLOGIES,39830,10/09/2020,729806,SAMSUNG CASES,15/10/2020,62.84,314.2,377.04,City Recoverable,Ict Hardware,64070
http://statistics.data.gov.uk/id/local-authority/12UE,Huntingdonshire District Council,200614,PHOENIX SOFTWARE LTD PHOENIX SOFTWARE LTD,39052,14/09/2020,OP/I875731,SUBSCRIPTIONS,08/10/2020,1053.36,5266.8,6320.16,City Recoverable,Ict Software,64071
http://statistics.data.gov.uk/id/local-authority/12UE,Huntingdonshire District Council,200614,PHOENIX SOFTWARE LTD PHOENIX SOFTWARE LTD,39052,14/09/2020,OP/I875731,SUBSCRIPTIONS,08/10/2020,127.26,636.3,763.56,City Recoverable,Ict Software,64071
http://statistics.data.gov.uk/id/local-authority/12UE,Huntingdonshire District Council,200614,PHOENIX SOFTWARE LTD PHOENIX SOFTWARE LTD,39052,14/09/2020,OP/I875731,SUBSCRIPTIONS,08/10/2020,61.74,308.7,370.44,City Recoverable,Ict Software,64071
http://statistics.data.gov.uk/id/local-authority/12UE,Huntingdonshire District Council,200614,PHOENIX SOFTWARE LTD PHOENIX SOFTWARE LTD,39052,14/09/2020,OP/I875731,SUBSCRIPTIONS,08/10/2020,109.22,546.08,655.3,City Recoverable,Ict Software,64071
http://statistics.data.gov.uk/id/local-authority/12UE,Huntingdonshire District Council,200614,PHOENIX SOFTWARE LTD PHOENIX SOFTWARE LTD,39052,14/09/2020,OP/I875731,SUBSCRIPTIONS,08/10/2020,54.61,273.04,327.65,City Recoverable,Ict Software,64071
http://statistics.data.gov.uk/id/local-authority/12UE,Huntingdonshire District Council,200973,ROL SOLUTIONS LTD,41394,31/03/2020,6334,COMPLAINTS TRACKER ANNUAL SERVICE FEE,26/11/2020,597.09,2985.44,3582.53,City Recoverable,Ict Software,64071
http://statistics.data.gov.uk/id/local-authority/12UE,Huntingdonshire District Council,200614,PHOENIX SOFTWARE LTD PHOENIX SOFTWARE LTD,40260,09/10/2020,OP/I878157,SUBSCRIPTION,05/11/2020,42.94,214.68,257.62,City Recoverable,Ict Software,64071
http://statistics.data.gov.uk/id/local-authority/12UE,Huntingdonshire District Council,200614,PHOENIX SOFTWARE LTD PHOENIX SOFTWARE LTD,40253,21/09/2020,OP/I876349,SUBSCRIPTIONS,22/10/2020,194.04,970.2,1164.24,City Recoverable,Ict Software,64071
http://statistics.data.gov.uk/id/local-authority/12UE,Huntingdonshire District Council,200166,CAPITA CAPITA,41994,09/10/2020,6004012125,ICT SOFTWARE,10/12/2020,680,3400,4080,City Recoverable,Ict Software,64071
http://statistics.data.gov.uk/id/local-authority/12UE,Huntingdonshire District Council,200614,PHOENIX SOFTWARE LTD PHOENIX SOFTWARE LTD,41313,23/10/2020,OP/I879294,LICENCES,26/11/2020,39.91,199.57,239.48,City Recoverable,Ict Software,64071
http://statistics.data.gov.uk/id/local-authority/12UE,Huntingdonshire District Council,200614,PHOENIX SOFTWARE LTD PHOENIX SOFTWARE LTD,41312,21/10/2020,OP/I879095,LICENCING SUBSCRIPTION,26/11/2020,25.41,127.05,152.46,City Recoverable,Ict Software,64071
http://statistics.data.gov.uk/id/local-authority/12UE,Huntingdonshire District Council,200614,PHOENIX SOFTWARE LTD PHOENIX SOFTWARE LTD,40263,15/10/2020,OP/I878531,LICENCES,12/11/2020,2186.43,10932.14,13118.57,City Recoverable,Ict Software,64071
http://statistics.data.gov.uk/id/local-authority/12UE,Huntingdonshire District Council,200614,PHOENIX SOFTWARE LTD PHOENIX SOFTWARE LTD,40260,09/10/2020,OP/I878157,SUBSCRIPTION,05/11/2020,787.16,3935.8,4722.96,City Recoverable,Ict Software,64071
http://statistics.data.gov.uk/id/local-authority/12UE,Huntingdonshire District Council,200620,PLAYFORDS LTD PLAYFORDS LTD,40608,29/10/2020,20159,DATA CABLING,26/11/2020,454.25,2271.25,2725.5,City Recoverable,Installation Fees,64073
http://statistics.data.gov.uk/id/local-authority/12UE,Huntingdonshire District Council,200620,PLAYFORDS LTD PLAYFORDS LTD,40608,29/10/2020,20159,DATA CABLING,26/11/2020,77.05,385.25,462.3,City Recoverable,Installation Fees,64073
http://statistics.data.gov.uk/id/local-authority/12UE,Huntingdonshire District Council,200620,PLAYFORDS LTD PLAYFORDS LTD,39004,10/09/2020,19923,INSTALLATION FEES,08/10/2020,116.23,581.15,697.38,City Recoverable,Installation Fees,64073
http://statistics.data.gov.uk/id/local-authority/12UE,Huntingdonshire District Council,200770,TELEFONICA UK LTD TELEFONICA UK LTD,40229,20/09/2020,71785542,LINE RENTAL,22/10/2020,2016.88,10084.38,12101.26,City Recoverable,Line Rental,64075
http://statistics.data.gov.uk/id/local-authority/12UE,Huntingdonshire District Council,200770,TELEFONICA UK LTD TELEFONICA UK LTD,40252,20/08/2020,69397801,LINE RENTAL,22/10/2020,1728.45,8642.26,10370.71,City Recoverable,Line Rental,64075
http://statistics.data.gov.uk/id/local-authority/12UE,Huntingdonshire District Council,200987,YOTTA,42032,18/09/2020,12502,PROFESSIONAL SERVICES,10/12/2020,450,2250,2700,City Recoverable,Professional Services - General,62402
http://statistics.data.gov.uk/id/local-authority/12UE,Huntingdonshire District Council,200614,PHOENIX SOFTWARE LTD PHOENIX SOFTWARE LTD,39785,08/10/2020,OP/I877790,CONSULTANCY,05/11/2020,52,260,312,City Recoverable,Staff Development And Training,60115
http://statistics.data.gov.uk/id/local-authority/12UE,Huntingdonshire District Council,200770,TELEFONICA UK LTD TELEFONICA UK LTD,38944,11/09/2020,70992447,IPHONE X 4,08/10/2020,273.6,1368,1641.6,City Recoverable,Telephone Equipment,64078
http://statistics.data.gov.uk/id/local-authority/12UE,Huntingdonshire District Council,200770,TELEFONICA UK LTD TELEFONICA UK LTD,40371,25/09/2020,72122254,IPHONE X 2,29/10/2020,136.8,684,820.8,City Recoverable,Telephone Equipment,64078
http://statistics.data.gov.uk/id/local-authority/12UE,Huntingdonshire District Council,200770,TELEFONICA UK LTD TELEFONICA UK LTD,40373,06/10/2020,73062029,IPHONE X 2,29/10/2020,136.8,684,820.8,City Recoverable,Telephone Equipment,64078
http://statistics.data.gov.uk/id/local-authority/12UE,Huntingdonshire District Council,200770,TELEFONICA UK LTD TELEFONICA UK LTD,40377,06/10/2020,73061694,IPHONE X 2,29/10/2020,136.8,684,820.8,City Recoverable,Telephone Equipment,64078
http://statistics.data.gov.uk/id/local-authority/12UE,Huntingdonshire District Council,200770,TELEFONICA UK LTD TELEFONICA UK LTD,39399,19/09/2020,71649020,IPHONE,15/10/2020,68.4,342,410.4,City Recoverable,Telephone Equipment,64078
http://statistics.data.gov.uk/id/local-authority/12UE,Huntingdonshire District Council,200770,TELEFONICA UK LTD TELEFONICA UK LTD,40111,09/07/2019,36152240,IPHONE,22/10/2020,57.8,289,346.8,City Recoverable,Telephone Equipment,64078
http://statistics.data.gov.uk/id/local-authority/12UE,Huntingdonshire District Council,200770,TELEFONICA UK LTD TELEFONICA UK LTD,40112,05/06/2019,33254412,IPHONE,22/10/2020,57.8,289,346.8,City Recoverable,Telephone Equipment,64078
http://statistics.data.gov.uk/id/local-authority/12UE,Huntingdonshire District Council,200770,TELEFONICA UK LTD TELEFONICA UK LTD,40109,10/07/2019,36219407,IPHONE,22/10/2020,55.8,279,334.8,City Recoverable,Telephone Equipment,64078
http://statistics.data.gov.uk/id/local-authority/12UE,Huntingdonshire District Council,200770,TELEFONICA UK LTD TELEFONICA UK LTD,40110,10/07/2019,36218846,IPHONE,22/10/2020,55.8,279,334.8,City Recoverable,Telephone Equipment,64078
http://statistics.data.gov.uk/id/local-authority/12UE,Huntingdonshire District Council,201766,ST JAMES PARISH CENTRE,41578,19/11/2020,191120,GRASS CUTTING,10/12/2020,0,305.75,305.75,Closed Churchyards,Maintenance - Building,60201
http://statistics.data.gov.uk/id/local-authority/12UE,Huntingdonshire District Council,201766,ST JAMES PARISH CENTRE,41578,19/11/2020,191120,GRASS CUTTING,10/12/2020,0,305.75,305.75,Closed Churchyards,Maintenance - Building,60201
http://statistics.data.gov.uk/id/local-authority/12UE,Huntingdonshire District Council,200840,WEIGHTMANS WEIGHTMANS,41124,10/09/2020,1970365,PROFESSIONAL SERVICES,19/11/2020,155,775,930,Commercial Investment Strategy,Legal Fees,63200
http://statistics.data.gov.uk/id/local-authority/12UE,Huntingdonshire District Council,202207,LEE BARON LTD,40364,02/03/2020,242662,REDACTED,29/10/2020,207.65,1038.25,1245.9,Commercial Investment Strategy,Service Charges,60401
http://statistics.data.gov.uk/id/local-authority/12UE,Huntingdonshire District Council,202207,LEE BARON LTD,40364,02/03/2020,242662,REDACTED,29/10/2020,207.65,1038.25,1245.9,Commercial Investment Strategy,Service Charges,60401
http://statistics.data.gov.uk/id/local-authority/12UE,Huntingdonshire District Council,202207,LEE BARON LTD,40364,02/03/2020,242662,REDACTED,29/10/2020,207.65,1038.25,1245.9,Commercial Investment Strategy,Service Charges,60401
http://statistics.data.gov.uk/id/local-authority/12UE,Huntingdonshire District Council,200894,Workman,42040,16/11/2020,835580/182,REDACTED,10/12/2020,347.83,1739.14,2086.97,Commercial Investment Strategy,Service Charges,60401
http://statistics.data.gov.uk/id/local-authority/12UE,Huntingdonshire District Council,200894,Workman,42041,16/11/2020,835580/187,REDACTED,10/12/2020,318.18,1590.91,1909.09,Commercial Investment Strategy,Service Charges,60401
http://statistics.data.gov.uk/id/local-authority/12UE,Huntingdonshire District Council,200894,Workman,42039,16/11/2020,809900/788,REDACTED,10/12/2020,142.73,713.65,856.38,Commercial Investment Strategy,Service Charges,60401
http://statistics.data.gov.uk/id/local-authority/12UE,Huntingdonshire District Council,200894,Workman,42042,16/11/2020,809900/783,REDACTED,10/12/2020,142.73,713.65,856.38,Commercial Investment Strategy,Service Charges,60401
http://statistics.data.gov.uk/id/local-authority/12UE,Huntingdonshire District Council,200083,BARKER STOREY MATTHEWS BARKER STOREY MATTHEWS,39551,28/09/2020,602031176,REDACTED,22/10/2020,340,1700,2040,Commercial Properties,Consultancy Fees,62400
http://statistics.data.gov.uk/id/local-authority/12UE,Huntingdonshire District Council,200083,BARKER STOREY MATTHEWS BARKER STOREY MATTHEWS,40865,06/11/2020,602032833,PROFESSIONAL SERVICES,03/12/2020,420,2100,2520,Commercial Properties,Consultancy Fees,62400
http://statistics.data.gov.uk/id/local-authority/12UE,Huntingdonshire District Council,201660,TOTAL ENVIRONMENTAL COMPLIANCE LTD,39782,05/10/2020,35040,REDACTED,29/10/2020,49.4,247,296.4,Commercial Properties,Maintenance - Building,60201
http://statistics.data.gov.uk/id/local-authority/12UE,Huntingdonshire District Council,201660,TOTAL ENVIRONMENTAL COMPLIANCE LTD,39782,05/10/2020,35040,REDACTED,29/10/2020,14,70,84,Commercial Properties,Maintenance - Building,60201
http://statistics.data.gov.uk/id/local-authority/12UE,Huntingdonshire District Council,202239,ADT FIRE AND SECURITY PLC,40093,01/07/2020,44840317-41,FIRE ALARM ETC SERVICING,22/10/2020,195,975,1170,Commercial Properties,Maintenance - Building,60201
http://statistics.data.gov.uk/id/local-authority/12UE,Huntingdonshire District Council,202239,ADT FIRE AND SECURITY PLC,40093,01/07/2020,44840317-41,FIRE ALARM ETC SERVICING,22/10/2020,1.6,8.01,9.61,Commercial Properties,Maintenance - Building,60201
http://statistics.data.gov.uk/id/local-authority/12UE,Huntingdonshire District Council,201618,ABBEY ROOFING,41685,18/11/2020,11047,MAYFIELD ROAD SHOPS,03/12/2020,552,2760,3312,Commercial Properties,Maintenance - Building,60201
http://statistics.data.gov.uk/id/local-authority/12UE,Huntingdonshire District Council,202239,ADT FIRE AND SECURITY PLC,40094,01/07/2020,44840319-41,EMERGENCY LIGHTING MAINTENANCE,22/10/2020,56,280,336,Commercial Properties,Maintenance - Building,60201
http://statistics.data.gov.uk/id/local-authority/12UE,Huntingdonshire District Council,202239,ADT FIRE AND SECURITY PLC,40094,01/07/2020,44840319-41,EMERGENCY LIGHTING MAINTENANCE,22/10/2020,0.46,2.3,2.76,Commercial Properties,Maintenance - Building,60201
http://statistics.data.gov.uk/id/local-authority/12UE,Huntingdonshire District Council,200827,VIVID RESOURCING LIMITED VIVID RESOURCING LIMITED,39362,23/09/2020,50518,REDACTED,15/10/2020,774,3870,4644,Commercial Team,Consultancy Fees,62400
http://statistics.data.gov.uk/id/local-authority/12UE,Huntingdonshire District Council,200827,VIVID RESOURCING LIMITED VIVID RESOURCING LIMITED,39616,30/09/2020,50758,REDACTED,22/10/2020,400.5,2002.5,2403,Commercial Team,Consultancy Fees,62400
http://statistics.data.gov.uk/id/local-authority/12UE,Huntingdonshire District Council,200827,VIVID RESOURCING LIMITED VIVID RESOURCING LIMITED,41315,18/11/2020,52454,REDACTED,10/12/2020,400.5,2002.5,2403,Commercial Team,Consultancy Fees,62400
http://statistics.data.gov.uk/id/local-authority/12UE,Huntingdonshire District Council,200827,VIVID RESOURCING LIMITED VIVID RESOURCING LIMITED,41080,11/11/2020,52255,REDACTED,03/12/2020,391.5,1957.5,2349,Commercial Team,Consultancy Fees,62400
http://statistics.data.gov.uk/id/local-authority/12UE,Huntingdonshire District Council,200827,VIVID RESOURCING LIMITED VIVID RESOURCING LIMITED,40196,07/10/2020,51043,REDACTED,29/10/2020,382.5,1912.5,2295,Commercial Team,Consultancy Fees,62400
http://statistics.data.gov.uk/id/local-authority/12UE,Huntingdonshire District Council,200827,VIVID RESOURCING LIMITED VIVID RESOURCING LIMITED,40197,14/10/2020,51285,REDACTED,05/11/2020,373.5,1867.5,2241,Commercial Team,Consultancy Fees,62400
http://statistics.data.gov.uk/id/local-authority/12UE,Huntingdonshire District Council,200827,VIVID RESOURCING LIMITED VIVID RESOURCING LIMITED,40570,28/10/2020,51745,REDACTED,19/11/2020,373.5,1867.5,2241,Commercial Team,Consultancy Fees,62400
http://statistics.data.gov.uk/id/local-authority/12UE,Huntingdonshire District Council,200827,VIVID RESOURCING LIMITED VIVID RESOURCING LIMITED,40757,04/11/2020,52012,REDACTED,26/11/2020,346.5,1732.5,2079,Commercial Team,Consultancy Fees,62400
http://statistics.data.gov.uk/id/local-authority/12UE,Huntingdonshire District Council,200827,VIVID RESOURCING LIMITED VIVID RESOURCING LIMITED,38995,09/09/2020,50107,REDACTED,01/10/2020,333,1665,1998,Commercial Team,Consultancy Fees,62400
http://statistics.data.gov.uk/id/local-authority/12UE,Huntingdonshire District Council,200827,VIVID RESOURCING LIMITED VIVID RESOURCING LIMITED,40352,21/10/2020,51491,REDACTED,12/11/2020,315,1575,1890,Commercial Team,Consultancy Fees,62400
http://statistics.data.gov.uk/id/local-authority/12UE,Huntingdonshire District Council,200215,CORNERSTONE BARRISTERS CORNERSTONE BARRISTERS,39413,24/09/2020,149387,PROFESSIONAL SERVICES,22/10/2020,100,500,600,Committee Management,Enquiries,63400
http://statistics.data.gov.uk/id/local-authority/12UE,Huntingdonshire District Council,200215,CORNERSTONE BARRISTERS CORNERSTONE BARRISTERS,39289,22/09/2020,148752 22/09/20,PROFESSIONAL FEES,15/10/2020,60,300,360,Committee Management,Enquiries,63400
http://statistics.data.gov.uk/id/local-authority/12UE,Huntingdonshire District Council,200255,EAST OF ENGLAND LGA EAST OF ENGLAND LGA,41579,28/07/2020,1001544,SUBSCRIPTION,03/12/2020,1823.81,9119.06,10942.87,Committee Management,Membership And Subscriptions,64800
http://statistics.data.gov.uk/id/local-authority/12UE,Huntingdonshire District Council,200234,DELOITTE DELOITTE,40819,18/09/2020,8001367702,HUNTINGDON LINK ROAD PROJECT,12/11/2020,442.52,2212.6,2655.12,Community Infrastructure,Grants And Contributions,64600
http://statistics.data.gov.uk/id/local-authority/12UE,Huntingdonshire District Council,200234,DELOITTE DELOITTE,40819,18/09/2020,8001367702,HUNTINGDON LINK ROAD PROJECT,12/11/2020,583.08,2915.4,3498.48,Community Infrastructure,Grants And Contributions,64600
http://statistics.data.gov.uk/id/local-authority/12UE,Huntingdonshire District Council,202356,CHRISTINE GRAHAM CONSULTANCY LTD,39686,01/10/2020,2020-016,CONSULTANCY,29/10/2020,350,1750,2100,Community Safety,Grants And Contributions,64600
http://statistics.data.gov.uk/id/local-authority/12UE,Huntingdonshire District Council,200354,HACT HACT,40843,13/10/2020,INV-CT0438,May-20,12/11/2020,0,1933.13,1933.13,Concessionary Fares,Grants And Contributions,64600
http://statistics.data.gov.uk/id/local-authority/12UE,Huntingdonshire District Council,200354,HACT HACT,40844,13/10/2020,INV-CT0439,Jun-20,12/11/2020,0,1933.13,1933.13,Concessionary Fares,Grants And Contributions,64600
http://statistics.data.gov.uk/id/local-authority/12UE,Huntingdonshire District Council,200354,HACT HACT,40850,13/10/2020,INV-CT0440,Jul-20,12/11/2020,0,1933.13,1933.13,Concessionary Fares,Grants And Contributions,64600
http://statistics.data.gov.uk/id/local-authority/12UE,Huntingdonshire District Council,200354,HACT HACT,40851,13/10/2020,INV-CT0441,Aug-20,12/11/2020,0,1933.13,1933.13,Concessionary Fares,Grants And Contributions,64600
http://statistics.data.gov.uk/id/local-authority/12UE,Huntingdonshire District Council,200354,HACT HACT,41978,01/11/2020,INV-CT0482,CONCESSIONARY FARES,10/12/2020,0,1933.13,1933.13,Concessionary Fares,Grants And Contributions,64600
http://statistics.data.gov.uk/id/local-authority/12UE,Huntingdonshire District Council,200354,HACT HACT,41988,01/12/2020,INV-CT0529,CONCESSIONARY FARES,10/12/2020,0,1933.13,1933.13,Concessionary Fares,Grants And Contributions,64600
http://statistics.data.gov.uk/id/local-authority/12UE,Huntingdonshire District Council,200354,HACT HACT,40852,13/10/2020,INV-CT0442,Sep-20,12/11/2020,0,1243.38,1243.38,Concessionary Fares,Grants And Contributions,64600
http://statistics.data.gov.uk/id/local-authority/12UE,Huntingdonshire District Council,200354,HACT HACT,40842,01/10/2020,INV-CT0419,Sep-20,12/11/2020,0,689.75,689.75,Concessionary Fares,Grants And Contributions,64600
http://statistics.data.gov.uk/id/local-authority/12UE,Huntingdonshire District Council,201061,CONINGTON & HOLME IDB,39739,10/06/2020,100620,SPECIAL LEVY,08/10/2020,0,4445,4445,Connington & Holme,Levies Paid,69110
http://statistics.data.gov.uk/id/local-authority/12UE,Huntingdonshire District Council,202155,WEST DEVON BOROUGH COUNCIL,39787,02/04/2020,80000267861,SUBSCRIPTION,08/10/2020,0,942,942,Corporate Director (Delivery),Membership And Subscriptions,64800
http://statistics.data.gov.uk/id/local-authority/12UE,Huntingdonshire District Council,200280,ERNST & YOUNG ERNST & YOUNG,39968,27/08/2020,GB01G000112016,AUDIT SERVICES,15/10/2020,7120,35600,42720,Corporate Finance,Audit Fees,62100
http://statistics.data.gov.uk/id/local-authority/12UE,Huntingdonshire District Council,201054,NORTHAMPTONSHIRE PENSION FUND,39740,06/10/2020,4.233E+11,PENSION DEFICIT 20/21,29/10/2020,0,1584000,1584000,Corporate Finance,Pensions - Employers Contribution,60002
http://statistics.data.gov.uk/id/local-authority/12UE,Huntingdonshire District Council,201138,BORNEY UK LTD,39509,30/09/2020,52054,BANNERS,22/10/2020,221.5,1107.5,1329,Covid-19,"Advertising, Publicity And Marketing",62005
http://statistics.data.gov.uk/id/local-authority/12UE,Huntingdonshire District Council,201138,BORNEY UK LTD,39509,30/09/2020,52054,BANNERS,22/10/2020,91.5,457.5,549,Covid-19,"Advertising, Publicity And Marketing",62005
http://statistics.data.gov.uk/id/local-authority/12UE,Huntingdonshire District Council,201138,BORNEY UK LTD,41196,16/11/2020,52318,ADVERTISING,10/12/2020,197.6,988,1185.6,Covid-19,"Advertising, Publicity And Marketing",62005
http://statistics.data.gov.uk/id/local-authority/12UE,Huntingdonshire District Council,200103,BIGPRINTING BIGPRINTING,38601,03/09/2020,1713222,OL ST IVES,01/10/2020,138.6,693,831.6,Covid-19,"Advertising, Publicity And Marketing",62005
http://statistics.data.gov.uk/id/local-authority/12UE,Huntingdonshire District Council,200103,BIGPRINTING BIGPRINTING,38572,03/09/2020,1713219,STICKERS,01/10/2020,118.2,591,709.2,Covid-19,"Advertising, Publicity And Marketing",62005
http://statistics.data.gov.uk/id/local-authority/12UE,Huntingdonshire District Council,202315,KEYSTONE MARKETING LTD,41874,30/11/2020,SI-1415772,ADVERTISING,10/12/2020,82.37,411.83,494.2,Covid-19,"Advertising, Publicity And Marketing",62005
http://statistics.data.gov.uk/id/local-authority/12UE,Huntingdonshire District Council,201114,XP RECRUITMENT LTD,40144,14/10/2020,10017,WAREHOUSE W/E 10/10/20,05/11/2020,1141.28,5706.4,6847.68,Covid-19,Agency Staff,60011
http://statistics.data.gov.uk/id/local-authority/12UE,Huntingdonshire District Council,201114,XP RECRUITMENT LTD,40403,21/10/2020,10047,WAREHOUSE W/E 17/10/20,12/11/2020,1080.65,5403.25,6483.9,Covid-19,Agency Staff,60011
http://statistics.data.gov.uk/id/local-authority/12UE,Huntingdonshire District Council,201114,XP RECRUITMENT LTD,42257,09/12/2020,10259,WAREHOUSE W/E 05/12/20,31/12/2020,853.61,4268.05,5121.66,Covid-19,Agency Staff,60011
http://statistics.data.gov.uk/id/local-authority/12UE,Huntingdonshire District Council,201114,XP RECRUITMENT LTD,42257,09/12/2020,10259,WAREHOUSE W/E 05/12/20,31/12/2020,157.82,789.12,946.94,Covid-19,Agency Staff,60011
http://statistics.data.gov.uk/id/local-authority/12UE,Huntingdonshire District Council,201114,XP RECRUITMENT LTD,40744,28/10/2020,10068,WAREHOUSE W/E 24/10/20,19/11/2020,928.43,4642.15,5570.58,Covid-19,Agency Staff,60011
http://statistics.data.gov.uk/id/local-authority/12UE,Huntingdonshire District Council,201114,XP RECRUITMENT LTD,39942,07/10/2020,9974,WAREHOUSE W/E 03/10/20,29/10/2020,925.78,4628.9,5554.68,Covid-19,Agency Staff,60011
http://statistics.data.gov.uk/id/local-authority/12UE,Huntingdonshire District Council,201114,XP RECRUITMENT LTD,41373,17/11/2020,10176,WAREHOUSE W/E 14/11/20,10/12/2020,842,4210,5052,Covid-19,Agency Staff,60011
http://statistics.data.gov.uk/id/local-authority/12UE,Huntingdonshire District Council,201114,XP RECRUITMENT LTD,42741,25/11/2020,10203,WAREHOUSE W/E 21/11/20,31/12/2020,831.68,4158.4,4990.08,Covid-19,Agency Staff,60011
http://statistics.data.gov.uk/id/local-authority/12UE,Huntingdonshire District Council,201114,XP RECRUITMENT LTD,42135,02/12/2020,10234,WAREHOUSE W/E 28/11/20,23/12/2020,812.33,4061.65,4873.98,Covid-19,Agency Staff,60011
http://statistics.data.gov.uk/id/local-authority/12UE,Huntingdonshire District Council,201114,XP RECRUITMENT LTD,41155,11/11/2020,10146,WAREHOUSE W/E 07/11/20,03/12/2020,773.63,3868.15,4641.78,Covid-19,Agency Staff,60011
http://statistics.data.gov.uk/id/local-authority/12UE,Huntingdonshire District Council,201114,XP RECRUITMENT LTD,40927,04/11/2020,10114,WAREHOUSE W/E 31/10/20,26/11/2020,522.08,2610.4,3132.48,Covid-19,Agency Staff,60011
http://statistics.data.gov.uk/id/local-authority/12UE,Huntingdonshire District Council,200550,MORGAN HUNT PUBLIC UK LTD MORGAN HUNT PUBLIC UK LTD,39611,27/09/2020,1196033,REDACTED,08/10/2020,257.14,1285.7,1542.84,Covid-19,Agency Staff,60011
http://statistics.data.gov.uk/id/local-authority/12UE,Huntingdonshire District Council,200550,MORGAN HUNT PUBLIC UK LTD MORGAN HUNT PUBLIC UK LTD,40355,18/10/2020,1199400,REDACTED,29/10/2020,257.14,1285.7,1542.84,Covid-19,Agency Staff,60011
http://statistics.data.gov.uk/id/local-authority/12UE,Huntingdonshire District Council,200550,MORGAN HUNT PUBLIC UK LTD MORGAN HUNT PUBLIC UK LTD,40549,25/10/2020,1200626,REDACTED,05/11/2020,257.14,1285.7,1542.84,Covid-19,Agency Staff,60011
http://statistics.data.gov.uk/id/local-authority/12UE,Huntingdonshire District Council,200550,MORGAN HUNT PUBLIC UK LTD MORGAN HUNT PUBLIC UK LTD,41096,08/11/2020,1202432,REDACTED,19/11/2020,257.14,1285.7,1542.84,Covid-19,Agency Staff,60011
http://statistics.data.gov.uk/id/local-authority/12UE,Huntingdonshire District Council,200550,MORGAN HUNT PUBLIC UK LTD MORGAN HUNT PUBLIC UK LTD,40099,11/10/2020,1198279,REDACTED,22/10/2020,252.66,1263.28,1515.94,Covid-19,Agency Staff,60011
http://statistics.data.gov.uk/id/local-authority/12UE,Huntingdonshire District Council,200550,MORGAN HUNT PUBLIC UK LTD MORGAN HUNT PUBLIC UK LTD,40837,01/11/2020,1201498,REDACTED,12/11/2020,240.7,1203.48,1444.18,Covid-19,Agency Staff,60011
http://statistics.data.gov.uk/id/local-authority/12UE,Huntingdonshire District Council,200550,MORGAN HUNT PUBLIC UK LTD MORGAN HUNT PUBLIC UK LTD,39365,20/09/2020,1194863,REDACTED,01/10/2020,239.2,1196,1435.2,Covid-19,Agency Staff,60011
http://statistics.data.gov.uk/id/local-authority/12UE,Huntingdonshire District Council,200550,MORGAN HUNT PUBLIC UK LTD MORGAN HUNT PUBLIC UK LTD,39363,20/09/2020,1194866,REDACTED,01/10/2020,220.8,1104,1324.8,Covid-19,Agency Staff,60011
http://statistics.data.gov.uk/id/local-authority/12UE,Huntingdonshire District Council,200550,MORGAN HUNT PUBLIC UK LTD MORGAN HUNT PUBLIC UK LTD,39613,27/09/2020,1196036,REDACTED,08/10/2020,220.8,1104,1324.8,Covid-19,Agency Staff,60011
http://statistics.data.gov.uk/id/local-authority/12UE,Huntingdonshire District Council,200550,MORGAN HUNT PUBLIC UK LTD MORGAN HUNT PUBLIC UK LTD,39891,04/10/2020,1197181,REDACTED,15/10/2020,220.8,1104,1324.8,Covid-19,Agency Staff,60011
http://statistics.data.gov.uk/id/local-authority/12UE,Huntingdonshire District Council,200550,MORGAN HUNT PUBLIC UK LTD MORGAN HUNT PUBLIC UK LTD,40101,11/10/2020,1198282,REDACTED,22/10/2020,220.8,1104,1324.8,Covid-19,Agency Staff,60011
http://statistics.data.gov.uk/id/local-authority/12UE,Huntingdonshire District Council,200550,MORGAN HUNT PUBLIC UK LTD MORGAN HUNT PUBLIC UK LTD,40358,18/10/2020,1199403,REDACTED,29/10/2020,220.8,1104,1324.8,Covid-19,Agency Staff,60011
http://statistics.data.gov.uk/id/local-authority/12UE,Huntingdonshire District Council,200550,MORGAN HUNT PUBLIC UK LTD MORGAN HUNT PUBLIC UK LTD,40552,25/10/2020,1200629,REDACTED,05/11/2020,220.8,1104,1324.8,Covid-19,Agency Staff,60011
http://statistics.data.gov.uk/id/local-authority/12UE,Huntingdonshire District Council,200550,MORGAN HUNT PUBLIC UK LTD MORGAN HUNT PUBLIC UK LTD,40835,01/11/2020,1201501,REDACTED,12/11/2020,220.8,1104,1324.8,Covid-19,Agency Staff,60011
http://statistics.data.gov.uk/id/local-authority/12UE,Huntingdonshire District Council,200550,MORGAN HUNT PUBLIC UK LTD MORGAN HUNT PUBLIC UK LTD,41098,08/11/2020,1202435,REDACTED,19/11/2020,220.8,1104,1324.8,Covid-19,Agency Staff,60011
http://statistics.data.gov.uk/id/local-authority/12UE,Huntingdonshire District Council,200550,MORGAN HUNT PUBLIC UK LTD MORGAN HUNT PUBLIC UK LTD,39364,20/09/2020,1194865,REDACTED,01/10/2020,204.24,1021.2,1225.44,Covid-19,Agency Staff,60011
http://statistics.data.gov.uk/id/local-authority/12UE,Huntingdonshire District Council,200550,MORGAN HUNT PUBLIC UK LTD MORGAN HUNT PUBLIC UK LTD,39610,27/09/2020,1196034,REDACTED,08/10/2020,204.24,1021.2,1225.44,Covid-19,Agency Staff,60011
http://statistics.data.gov.uk/id/local-authority/12UE,Huntingdonshire District Council,200550,MORGAN HUNT PUBLIC UK LTD MORGAN HUNT PUBLIC UK LTD,39889,04/10/2020,1197179,REDACTED,15/10/2020,204.24,1021.2,1225.44,Covid-19,Agency Staff,60011
http://statistics.data.gov.uk/id/local-authority/12UE,Huntingdonshire District Council,200550,MORGAN HUNT PUBLIC UK LTD MORGAN HUNT PUBLIC UK LTD,40357,18/10/2020,1199401,REDACTED,29/10/2020,204.24,1021.2,1225.44,Covid-19,Agency Staff,60011
http://statistics.data.gov.uk/id/local-authority/12UE,Huntingdonshire District Council,200550,MORGAN HUNT PUBLIC UK LTD MORGAN HUNT PUBLIC UK LTD,40833,01/11/2020,1201499,REDACTED,12/11/2020,204.24,1021.2,1225.44,Covid-19,Agency Staff,60011
http://statistics.data.gov.uk/id/local-authority/12UE,Huntingdonshire District Council,200550,MORGAN HUNT PUBLIC UK LTD MORGAN HUNT PUBLIC UK LTD,41097,08/11/2020,1202433,REDACTED,19/11/2020,204.24,1021.2,1225.44,Covid-19,Agency Staff,60011
http://statistics.data.gov.uk/id/local-authority/12UE,Huntingdonshire District Council,200550,MORGAN HUNT PUBLIC UK LTD MORGAN HUNT PUBLIC UK LTD,40098,11/10/2020,1198280,REDACTED,22/10/2020,195.96,979.8,1175.76,Covid-19,Agency Staff,60011
http://statistics.data.gov.uk/id/local-authority/12UE,Huntingdonshire District Council,200550,MORGAN HUNT PUBLIC UK LTD MORGAN HUNT PUBLIC UK LTD,40550,25/10/2020,1200627,REDACTED,05/11/2020,194.58,972.9,1167.48,Covid-19,Agency Staff,60011
http://statistics.data.gov.uk/id/local-authority/12UE,Huntingdonshire District Council,200550,MORGAN HUNT PUBLIC UK LTD MORGAN HUNT PUBLIC UK LTD,39888,04/10/2020,1197178,REDACTED,15/10/2020,137.54,687.7,825.24,Covid-19,Agency Staff,60011
http://statistics.data.gov.uk/id/local-authority/12UE,Huntingdonshire District Council,200113,BOOKER CASH AND CARRY BOOKER CASH AND CARRY,42284,19/11/2020,2112175934,COUNTRY PARK,17/12/2020,64.95,324.75,389.7,Covid-19,Catering Supplies,61900
http://statistics.data.gov.uk/id/local-authority/12UE,Huntingdonshire District Council,200526,MASKEARAID LTD MASKEARAID LTD,38710,07/09/2020,72445,SOAP DISPENSERS/SANITISER,01/10/2020,1681.63,8408.14,10089.77,Covid-19,Cleaning Materials,61300
http://statistics.data.gov.uk/id/local-authority/12UE,Huntingdonshire District Council,200526,MASKEARAID LTD MASKEARAID LTD,38710,07/09/2020,72445,SOAP DISPENSERS/SANITISER,01/10/2020,210.14,1050.7,1260.84,Covid-19,Cleaning Materials,61300
http://statistics.data.gov.uk/id/local-authority/12UE,Huntingdonshire District Council,200526,MASKEARAID LTD MASKEARAID LTD,42123,07/12/2020,73426,OL ST IVES,31/12/2020,22.38,111.9,134.28,Covid-19,Cleaning Materials,61300
http://statistics.data.gov.uk/id/local-authority/12UE,Huntingdonshire District Council,200526,MASKEARAID LTD MASKEARAID LTD,42123,07/12/2020,73426,OL ST IVES,31/12/2020,99,495,594,Covid-19,Cleaning Materials,61300
http://statistics.data.gov.uk/id/local-authority/12UE,Huntingdonshire District Council,200526,MASKEARAID LTD MASKEARAID LTD,42123,07/12/2020,73426,OL ST IVES,31/12/2020,7.98,39.92,47.9,Covid-19,Cleaning Materials,61300
http://statistics.data.gov.uk/id/local-authority/12UE,Huntingdonshire District Council,200526,MASKEARAID LTD MASKEARAID LTD,40232,15/10/2020,72876,OL HUNTINGDON,12/11/2020,111.35,556.75,668.1,Covid-19,Cleaning Materials,61300
http://statistics.data.gov.uk/id/local-authority/12UE,Huntingdonshire District Council,200526,MASKEARAID LTD MASKEARAID LTD,38996,07/09/2020,72453,OL HUNTINGDON,01/10/2020,96.22,481.12,577.34,Covid-19,Cleaning Materials,61300
http://statistics.data.gov.uk/id/local-authority/12UE,Huntingdonshire District Council,200526,MASKEARAID LTD MASKEARAID LTD,40234,16/10/2020,72908,OL HUNTINGDON,12/11/2020,96.1,480.5,576.6,Covid-19,Cleaning Materials,61300
http://statistics.data.gov.uk/id/local-authority/12UE,Huntingdonshire District Council,200526,MASKEARAID LTD MASKEARAID LTD,41634,22/09/2020,72602,SOAP DISPENSERS,03/12/2020,90.06,450.3,540.36,Covid-19,Cleaning Materials,61300
http://statistics.data.gov.uk/id/local-authority/12UE,Huntingdonshire District Council,200526,MASKEARAID LTD MASKEARAID LTD,39215,11/09/2020,72502,HAND TOWELS/SANITISER,08/10/2020,34.48,172.4,206.88,Covid-19,Cleaning Materials,61300
http://statistics.data.gov.uk/id/local-authority/12UE,Huntingdonshire District Council,202256,EASY CLEAN CONTRACTORS LTD,40960,30/10/2020,17161,PFH,26/11/2020,495,2475,2970,Covid-19,Cleaning Services,60501
http://statistics.data.gov.uk/id/local-authority/12UE,Huntingdonshire District Council,202256,EASY CLEAN CONTRACTORS LTD,40444,30/09/2020,16972,PFH,29/10/2020,483,2415,2898,Covid-19,Cleaning Services,60501
http://statistics.data.gov.uk/id/local-authority/12UE,Huntingdonshire District Council,202256,EASY CLEAN CONTRACTORS LTD,42721,30/11/2020,17281,CLEANING PFH,31/12/2020,187.63,938.16,1125.79,Covid-19,Cleaning Services,60501
http://statistics.data.gov.uk/id/local-authority/12UE,Huntingdonshire District Council,202256,EASY CLEAN CONTRACTORS LTD,42721,30/11/2020,17281,CLEANING PFH,31/12/2020,284.87,1424.34,1709.21,Covid-19,Cleaning Services,60501
http://statistics.data.gov.uk/id/local-authority/12UE,Huntingdonshire District Council,202256,EASY CLEAN CONTRACTORS LTD,40439,30/09/2020,16924,EASTFIELD HOUSE,29/10/2020,462,2310,2772,Covid-19,Cleaning Services,60501
http://statistics.data.gov.uk/id/local-authority/12UE,Huntingdonshire District Council,202256,EASY CLEAN CONTRACTORS LTD,40959,30/10/2020,17160,EASTFIELD HOUSE,26/11/2020,462,2310,2772,Covid-19,Cleaning Services,60501
http://statistics.data.gov.uk/id/local-authority/12UE,Huntingdonshire District Council,202256,EASY CLEAN CONTRACTORS LTD,42088,30/11/2020,17282,CLEANING EFH NOV 20,10/12/2020,441,2205,2646,Covid-19,Cleaning Services,60501
http://statistics.data.gov.uk/id/local-authority/12UE,Huntingdonshire District Council,202256,EASY CLEAN CONTRACTORS LTD,40440,31/08/2020,16861,EASTFIELD HOUSE,29/10/2020,420,2100,2520,Covid-19,Cleaning Services,60501
http://statistics.data.gov.uk/id/local-authority/12UE,Huntingdonshire District Council,202256,EASY CLEAN CONTRACTORS LTD,40443,30/09/2020,16971,PFH,29/10/2020,408.94,2044.68,2453.62,Covid-19,Cleaning Services,60501
http://statistics.data.gov.uk/id/local-authority/12UE,Huntingdonshire District Council,202256,EASY CLEAN CONTRACTORS LTD,40961,30/10/2020,17162,PFH,26/11/2020,408.94,2044.68,2453.62,Covid-19,Cleaning Services,60501
http://statistics.data.gov.uk/id/local-authority/12UE,Huntingdonshire District Council,202256,EASY CLEAN CONTRACTORS LTD,40441,31/07/2020,16756,CLEANING,29/10/2020,399,1995,2394,Covid-19,Cleaning Services,60501
http://statistics.data.gov.uk/id/local-authority/12UE,Huntingdonshire District Council,202256,EASY CLEAN CONTRACTORS LTD,42086,30/11/2020,17280,PFH NOV 20,10/12/2020,390.35,1951.74,2342.09,Covid-19,Cleaning Services,60501
http://statistics.data.gov.uk/id/local-authority/12UE,Huntingdonshire District Council,202256,EASY CLEAN CONTRACTORS LTD,40445,31/08/2020,16860,PFH,29/10/2020,371.76,1858.8,2230.56,Covid-19,Cleaning Services,60501
http://statistics.data.gov.uk/id/local-authority/12UE,Huntingdonshire District Council,200725,SMI INT GROUP LTD SMI GROUP,39575,30/09/2020,INV792611,WORK WEAR,22/10/2020,1844.57,9222.84,11067.41,Covid-19,"Clothes, Uniform And Laundry",62000
http://statistics.data.gov.uk/id/local-authority/12UE,Huntingdonshire District Council,200725,SMI INT GROUP LTD SMI GROUP,39575,30/09/2020,INV792611,WORK WEAR,22/10/2020,141.05,705.25,846.3,Covid-19,"Clothes, Uniform And Laundry",62000
http://statistics.data.gov.uk/id/local-authority/12UE,Huntingdonshire District Council,200725,SMI INT GROUP LTD SMI GROUP,40186,19/10/2020,INV800471,WORK WEAR,12/11/2020,548.08,2740.4,3288.48,Covid-19,"Clothes, Uniform And Laundry",62000
http://statistics.data.gov.uk/id/local-authority/12UE,Huntingdonshire District Council,200725,SMI INT GROUP LTD SMI GROUP,40186,19/10/2020,INV800471,WORK WEAR,12/11/2020,446.6,2233,2679.6,Covid-19,"Clothes, Uniform And Laundry",62000
http://statistics.data.gov.uk/id/local-authority/12UE,Huntingdonshire District Council,200725,SMI INT GROUP LTD SMI GROUP,40186,19/10/2020,INV800471,WORK WEAR,12/11/2020,784.36,3921.82,4706.18,Covid-19,"Clothes, Uniform And Laundry",62000
http://statistics.data.gov.uk/id/local-authority/12UE,Huntingdonshire District Council,200725,SMI INT GROUP LTD SMI GROUP,40186,19/10/2020,INV800471,WORK WEAR,12/11/2020,119.8,599,718.8,Covid-19,"Clothes, Uniform And Laundry",62000
http://statistics.data.gov.uk/id/local-authority/12UE,Huntingdonshire District Council,200725,SMI INT GROUP LTD SMI GROUP,40186,19/10/2020,INV800471,WORK WEAR,12/11/2020,3.31,16.57,19.88,Covid-19,"Clothes, Uniform And Laundry",62000
http://statistics.data.gov.uk/id/local-authority/12UE,Huntingdonshire District Council,200725,SMI INT GROUP LTD SMI GROUP,40186,19/10/2020,INV800471,WORK WEAR,12/11/2020,99.55,497.76,597.31,Covid-19,"Clothes, Uniform And Laundry",62000
http://statistics.data.gov.uk/id/local-authority/12UE,Huntingdonshire District Council,200725,SMI INT GROUP LTD SMI GROUP,40186,19/10/2020,INV800471,WORK WEAR,12/11/2020,13.65,68.25,81.9,Covid-19,"Clothes, Uniform And Laundry",62000
http://statistics.data.gov.uk/id/local-authority/12UE,Huntingdonshire District Council,200725,SMI INT GROUP LTD SMI GROUP,39677,02/10/2020,INV794106,WORK WEAR,29/10/2020,316.94,1584.7,1901.64,Covid-19,"Clothes, Uniform And Laundry",62000
http://statistics.data.gov.uk/id/local-authority/12UE,Huntingdonshire District Council,200725,SMI INT GROUP LTD SMI GROUP,39677,02/10/2020,INV794106,WORK WEAR,29/10/2020,375.76,1878.8,2254.56,Covid-19,"Clothes, Uniform And Laundry",62000
http://statistics.data.gov.uk/id/local-authority/12UE,Huntingdonshire District Council,200725,SMI INT GROUP LTD SMI GROUP,39677,02/10/2020,INV794106,WORK WEAR,29/10/2020,791.16,3955.8,4746.96,Covid-19,"Clothes, Uniform And Laundry",62000
http://statistics.data.gov.uk/id/local-authority/12UE,Huntingdonshire District Council,200725,SMI INT GROUP LTD SMI GROUP,39677,02/10/2020,INV794106,WORK WEAR,29/10/2020,318.37,1591.85,1910.22,Covid-19,"Clothes, Uniform And Laundry",62000
http://statistics.data.gov.uk/id/local-authority/12UE,Huntingdonshire District Council,200725,SMI INT GROUP LTD SMI GROUP,39677,02/10/2020,INV794106,WORK WEAR,29/10/2020,41.64,208.2,249.84,Covid-19,"Clothes, Uniform And Laundry",62000
http://statistics.data.gov.uk/id/local-authority/12UE,Huntingdonshire District Council,200381,HOWSAFE LTD HOWSAFE LTD,40910,22/10/2020,SIS0710183,SHOES,19/11/2020,1216,6080,7296,Covid-19,"Clothes, Uniform And Laundry",62000
http://statistics.data.gov.uk/id/local-authority/12UE,Huntingdonshire District Council,200725,SMI INT GROUP LTD SMI GROUP,40659,30/10/2020,INV805647,WORK WEAR,26/11/2020,372.06,1860.3,2232.36,Covid-19,"Clothes, Uniform And Laundry",62000
http://statistics.data.gov.uk/id/local-authority/12UE,Huntingdonshire District Council,200725,SMI INT GROUP LTD SMI GROUP,40659,30/10/2020,INV805647,WORK WEAR,26/11/2020,828.64,4143.18,4971.82,Covid-19,"Clothes, Uniform And Laundry",62000
http://statistics.data.gov.uk/id/local-authority/12UE,Huntingdonshire District Council,200725,SMI INT GROUP LTD SMI GROUP,41674,30/11/2020,INV819057,GLOVES,10/12/2020,288.23,1441.15,1729.38,Covid-19,"Clothes, Uniform And Laundry",62000
http://statistics.data.gov.uk/id/local-authority/12UE,Huntingdonshire District Council,200725,SMI INT GROUP LTD SMI GROUP,41674,30/11/2020,INV819057,GLOVES,10/12/2020,804.39,4021.94,4826.33,Covid-19,"Clothes, Uniform And Laundry",62000
http://statistics.data.gov.uk/id/local-authority/12UE,Huntingdonshire District Council,200725,SMI INT GROUP LTD SMI GROUP,40187,14/10/2020,INV798517,WORK WEAR,05/11/2020,4.15,20.74,24.89,Covid-19,"Clothes, Uniform And Laundry",62000
http://statistics.data.gov.uk/id/local-authority/12UE,Huntingdonshire District Council,200725,SMI INT GROUP LTD SMI GROUP,40187,14/10/2020,INV798517,WORK WEAR,05/11/2020,299.52,1497.6,1797.12,Covid-19,"Clothes, Uniform And Laundry",62000
http://statistics.data.gov.uk/id/local-authority/12UE,Huntingdonshire District Council,200725,SMI INT GROUP LTD SMI GROUP,40187,14/10/2020,INV798517,WORK WEAR,05/11/2020,6.55,32.76,39.31,Covid-19,"Clothes, Uniform And Laundry",62000
http://statistics.data.gov.uk/id/local-authority/12UE,Huntingdonshire District Council,200725,SMI INT GROUP LTD SMI GROUP,40187,14/10/2020,INV798517,WORK WEAR,05/11/2020,14.99,74.95,89.94,Covid-19,"Clothes, Uniform And Laundry",62000
http://statistics.data.gov.uk/id/local-authority/12UE,Huntingdonshire District Council,200725,SMI INT GROUP LTD SMI GROUP,40187,14/10/2020,INV798517,WORK WEAR,05/11/2020,56.24,281.19,337.43,Covid-19,"Clothes, Uniform And Laundry",62000
http://statistics.data.gov.uk/id/local-authority/12UE,Huntingdonshire District Council,200725,SMI INT GROUP LTD SMI GROUP,40187,14/10/2020,INV798517,WORK WEAR,05/11/2020,48.36,241.8,290.16,Covid-19,"Clothes, Uniform And Laundry",62000
http://statistics.data.gov.uk/id/local-authority/12UE,Huntingdonshire District Council,200725,SMI INT GROUP LTD SMI GROUP,40187,14/10/2020,INV798517,WORK WEAR,05/11/2020,7.2,35.98,43.18,Covid-19,"Clothes, Uniform And Laundry",62000
http://statistics.data.gov.uk/id/local-authority/12UE,Huntingdonshire District Council,200725,SMI INT GROUP LTD SMI GROUP,40187,14/10/2020,INV798517,WORK WEAR,05/11/2020,0,376,376,Covid-19,"Clothes, Uniform And Laundry",62000
http://statistics.data.gov.uk/id/local-authority/12UE,Huntingdonshire District Council,200725,SMI INT GROUP LTD SMI GROUP,40187,14/10/2020,INV798517,WORK WEAR,05/11/2020,45.6,228,273.6,Covid-19,"Clothes, Uniform And Laundry",62000
http://statistics.data.gov.uk/id/local-authority/12UE,Huntingdonshire District Council,200725,SMI INT GROUP LTD SMI GROUP,40100,15/10/2020,INV799332,WORK WEAR,12/11/2020,9.32,46.58,55.9,Covid-19,"Clothes, Uniform And Laundry",62000
http://statistics.data.gov.uk/id/local-authority/12UE,Huntingdonshire District Council,200725,SMI INT GROUP LTD SMI GROUP,40100,15/10/2020,INV799332,WORK WEAR,12/11/2020,41.64,208.2,249.84,Covid-19,"Clothes, Uniform And Laundry",62000
http://statistics.data.gov.uk/id/local-authority/12UE,Huntingdonshire District Council,200725,SMI INT GROUP LTD SMI GROUP,40450,26/08/2020,INV779797,GLOVES,29/10/2020,71.92,359.6,431.52,Covid-19,"Clothes, Uniform And Laundry",62000
http://statistics.data.gov.uk/id/local-authority/12UE,Huntingdonshire District Council,200725,SMI INT GROUP LTD SMI GROUP,40450,26/08/2020,INV779797,GLOVES,29/10/2020,143.84,719.2,863.04,Covid-19,"Clothes, Uniform And Laundry",62000
http://statistics.data.gov.uk/id/local-authority/12UE,Huntingdonshire District Council,200725,SMI INT GROUP LTD SMI GROUP,40450,26/08/2020,INV779797,GLOVES,29/10/2020,143.84,719.2,863.04,Covid-19,"Clothes, Uniform And Laundry",62000
http://statistics.data.gov.uk/id/local-authority/12UE,Huntingdonshire District Council,200725,SMI INT GROUP LTD SMI GROUP,41575,25/11/2020,INV817331,GLOVES,10/12/2020,41.91,209.56,251.47,Covid-19,"Clothes, Uniform And Laundry",62000
http://statistics.data.gov.uk/id/local-authority/12UE,Huntingdonshire District Council,200725,SMI INT GROUP LTD SMI GROUP,41575,25/11/2020,INV817331,GLOVES,10/12/2020,121.77,608.85,730.62,Covid-19,"Clothes, Uniform And Laundry",62000
http://statistics.data.gov.uk/id/local-authority/12UE,Huntingdonshire District Council,200725,SMI INT GROUP LTD SMI GROUP,41575,25/11/2020,INV817331,GLOVES,10/12/2020,190,950,1140,Covid-19,"Clothes, Uniform And Laundry",62000
http://statistics.data.gov.uk/id/local-authority/12UE,Huntingdonshire District Council,200725,SMI INT GROUP LTD SMI GROUP,40061,14/10/2020,INV798145,UNIFORM LOGOS,05/11/2020,68.4,342,410.4,Covid-19,"Clothes, Uniform And Laundry",62000
http://statistics.data.gov.uk/id/local-authority/12UE,Huntingdonshire District Council,200725,SMI INT GROUP LTD SMI GROUP,40061,14/10/2020,INV798145,UNIFORM LOGOS,05/11/2020,187.2,936,1123.2,Covid-19,"Clothes, Uniform And Laundry",62000
http://statistics.data.gov.uk/id/local-authority/12UE,Huntingdonshire District Council,200725,SMI INT GROUP LTD SMI GROUP,39837,07/10/2020,INV795716,WORK WEAR,29/10/2020,9.32,46.58,55.9,Covid-19,"Clothes, Uniform And Laundry",62000
http://statistics.data.gov.uk/id/local-authority/12UE,Huntingdonshire District Council,200725,SMI INT GROUP LTD SMI GROUP,39837,07/10/2020,INV795716,WORK WEAR,29/10/2020,102.48,512.4,614.88,Covid-19,"Clothes, Uniform And Laundry",62000
http://statistics.data.gov.uk/id/local-authority/12UE,Huntingdonshire District Council,200725,SMI INT GROUP LTD SMI GROUP,39837,07/10/2020,INV795716,WORK WEAR,29/10/2020,103.35,516.75,620.1,Covid-19,"Clothes, Uniform And Laundry",62000
http://statistics.data.gov.uk/id/local-authority/12UE,Huntingdonshire District Council,200725,SMI INT GROUP LTD SMI GROUP,39578,30/09/2020,INV792613,JACKETS,22/10/2020,63.8,319,382.8,Covid-19,"Clothes, Uniform And Laundry",62000
http://statistics.data.gov.uk/id/local-authority/12UE,Huntingdonshire District Council,200725,SMI INT GROUP LTD SMI GROUP,39578,30/09/2020,INV792613,JACKETS,22/10/2020,63.8,319,382.8,Covid-19,"Clothes, Uniform And Laundry",62000
http://statistics.data.gov.uk/id/local-authority/12UE,Huntingdonshire District Council,200725,SMI INT GROUP LTD SMI GROUP,39578,30/09/2020,INV792613,JACKETS,22/10/2020,63.8,319,382.8,Covid-19,"Clothes, Uniform And Laundry",62000
http://statistics.data.gov.uk/id/local-authority/12UE,Huntingdonshire District Council,200526,MASKEARAID LTD MASKEARAID LTD,41292,11/11/2020,73178,WIPES,03/12/2020,180,900,1080,Covid-19,"Clothes, Uniform And Laundry",62000
http://statistics.data.gov.uk/id/local-authority/12UE,Huntingdonshire District Council,200725,SMI INT GROUP LTD SMI GROUP,40558,28/10/2020,INV803975,POLO SHIRTS,19/11/2020,137.8,689,826.8,Covid-19,"Clothes, Uniform And Laundry",62000
http://statistics.data.gov.uk/id/local-authority/12UE,Huntingdonshire District Council,200725,SMI INT GROUP LTD SMI GROUP,39617,30/09/2020,INV793285,WATERPROOF TROUSERS,22/10/2020,41.13,205.65,246.78,Covid-19,"Clothes, Uniform And Laundry",62000
http://statistics.data.gov.uk/id/local-authority/12UE,Huntingdonshire District Council,200725,SMI INT GROUP LTD SMI GROUP,39617,30/09/2020,INV793285,WATERPROOF TROUSERS,22/10/2020,41.13,205.65,246.78,Covid-19,"Clothes, Uniform And Laundry",62000
http://statistics.data.gov.uk/id/local-authority/12UE,Huntingdonshire District Council,200725,SMI INT GROUP LTD SMI GROUP,39617,30/09/2020,INV793285,WATERPROOF TROUSERS,22/10/2020,27.42,137.1,164.52,Covid-19,"Clothes, Uniform And Laundry",62000
http://statistics.data.gov.uk/id/local-authority/12UE,Huntingdonshire District Council,200455,KEN BOOTH & CO KEN BOOTH & CO,41051,04/11/2020,352639,"GLOVES, APRONS",26/11/2020,0,486.73,486.73,Covid-19,"Clothes, Uniform And Laundry",62000
http://statistics.data.gov.uk/id/local-authority/12UE,Huntingdonshire District Council,200725,SMI INT GROUP LTD SMI GROUP,40458,26/08/2020,INV779796,GLOVES,29/10/2020,97.09,485.46,582.55,Covid-19,"Clothes, Uniform And Laundry",62000
http://statistics.data.gov.uk/id/local-authority/12UE,Huntingdonshire District Council,200725,SMI INT GROUP LTD SMI GROUP,38948,10/09/2020,INV785433,WORK WEAR,08/10/2020,32.8,164,196.8,Covid-19,"Clothes, Uniform And Laundry",62000
http://statistics.data.gov.uk/id/local-authority/12UE,Huntingdonshire District Council,200725,SMI INT GROUP LTD SMI GROUP,38948,10/09/2020,INV785433,WORK WEAR,08/10/2020,32.8,164,196.8,Covid-19,"Clothes, Uniform And Laundry",62000
http://statistics.data.gov.uk/id/local-authority/12UE,Huntingdonshire District Council,200725,SMI INT GROUP LTD SMI GROUP,40459,28/10/2020,CR404995,GLOVES,29/10/2020,-97.09,-485.46,-582.55,Covid-19,"Clothes, Uniform And Laundry",62000
http://statistics.data.gov.uk/id/local-authority/12UE,Huntingdonshire District Council,200060,ARTHUR IBBETT LTD ARTHUR IBBETT LTD,41635,30/11/2020,186336,"CHAIN LINK, PADLOCKS",10/12/2020,63.96,319.8,383.76,Covid-19,Equipment,61713
http://statistics.data.gov.uk/id/local-authority/12UE,Huntingdonshire District Council,201544,REDACTED,39339,28/09/2020,PRF280920,PETTY CASH,01/10/2020,0,11.94,11.94,Covid-19,Equipment,61713
http://statistics.data.gov.uk/id/local-authority/12UE,Huntingdonshire District Council,200250,DTS SOLUTIONS (UK) LTD DTS SOLUTIONS (UK) LTD,40505,24/08/2020,S006135,RADIOS,29/10/2020,378.4,1892,2270.4,Covid-19,Health And Safety Supplies And Services,60207
http://statistics.data.gov.uk/id/local-authority/12UE,Huntingdonshire District Council,200968,NORTHGATE PUBLIC SERVICES UK LTD,39694,02/10/2020,91438905,SELF ISOLATION PAYMENTS,29/10/2020,420,2100,2520,Covid-19,Ict Software,64071
http://statistics.data.gov.uk/id/local-authority/12UE,Huntingdonshire District Council,200341,GLADSTONE MRM GLADSTONE MRM,41639,27/11/2020,4015933,SUBSCRIPTION,10/12/2020,119.5,597.5,717,Covid-19,Ict Software,64071
http://statistics.data.gov.uk/id/local-authority/12UE,Huntingdonshire District Council,200694,ROGER WILSON ELECTRONICS ROGER WILSON ELECTRONICS,39261,20/09/2020,10482,OL ST IVES,01/10/2020,96.6,483,579.6,Covid-19,Maintenance - Building,60201
http://statistics.data.gov.uk/id/local-authority/12UE,Huntingdonshire District Council,200694,ROGER WILSON ELECTRONICS ROGER WILSON ELECTRONICS,39297,20/09/2020,10483,OL ST NEOTS,01/10/2020,98,490,588,Covid-19,Maintenance - Building,60201
http://statistics.data.gov.uk/id/local-authority/12UE,Huntingdonshire District Council,200694,ROGER WILSON ELECTRONICS ROGER WILSON ELECTRONICS,40315,21/10/2020,10502,OL ST IVES,29/10/2020,55.8,279,334.8,Covid-19,Maintenance - Building,60201
http://statistics.data.gov.uk/id/local-authority/12UE,Huntingdonshire District Council,200694,ROGER WILSON ELECTRONICS ROGER WILSON ELECTRONICS,39278,20/09/2020,10481,OL ST IVES,01/10/2020,97.33,486.67,584,Covid-19,Maintenance - Building,60201
http://statistics.data.gov.uk/id/local-authority/12UE,Huntingdonshire District Council,200526,MASKEARAID LTD MASKEARAID LTD,39215,11/09/2020,72502,HAND TOWELS/SANITISER,08/10/2020,25.16,125.82,150.98,Covid-19,Maintenance - Building,60201
http://statistics.data.gov.uk/id/local-authority/12UE,Huntingdonshire District Council,200225,DACLA PROPERTY SERVICES DACLA PROPERTY SERVICES,39354,22/09/2020,199,OL RAMSEY,01/10/2020,0,297.96,297.96,Covid-19,Maintenance - Building,60201
http://statistics.data.gov.uk/id/local-authority/12UE,Huntingdonshire District Council,200694,ROGER WILSON ELECTRONICS ROGER WILSON ELECTRONICS,39279,20/09/2020,10484,OL HUNTINGDON,01/10/2020,58,290,348,Covid-19,Maintenance - Building,60201
http://statistics.data.gov.uk/id/local-authority/12UE,Huntingdonshire District Council,200542,MIRAMAR ENGINEERING LTD MIRAMAR ENGINEERING LTD,42594,01/12/2020,4845,PAVILLIONS,23/12/2020,63,315,378,Covid-19,Maintenance - Building,60201
http://statistics.data.gov.uk/id/local-authority/12UE,Huntingdonshire District Council,200542,MIRAMAR ENGINEERING LTD MIRAMAR ENGINEERING LTD,42594,01/12/2020,4845,PAVILLIONS,23/12/2020,63,315,378,Covid-19,Maintenance - Building,60201
http://statistics.data.gov.uk/id/local-authority/12UE,Huntingdonshire District Council,200542,MIRAMAR ENGINEERING LTD MIRAMAR ENGINEERING LTD,42594,01/12/2020,4845,PAVILLIONS,23/12/2020,21,105,126,Covid-19,Maintenance - Building,60201
http://statistics.data.gov.uk/id/local-authority/12UE,Huntingdonshire District Council,200542,MIRAMAR ENGINEERING LTD MIRAMAR ENGINEERING LTD,42594,01/12/2020,4845,PAVILLIONS,23/12/2020,63,315,378,Covid-19,Maintenance - Building,60201
http://statistics.data.gov.uk/id/local-authority/12UE,Huntingdonshire District Council,200308,FRANK RATCLIFFE & SON FRANK RATCLIFFE & SON,39395,22/09/2020,98546,REMOVE SHIPPING CONTAINER,15/10/2020,120,600,720,Covid-19,"Maintenance - Equipment, Furniture And Materials",61702
http://statistics.data.gov.uk/id/local-authority/12UE,Huntingdonshire District Council,200390,HEVEY BUILDING SUPPLIES LTD HUNTINGDON TIMBER SUPPLIES,42183,08/12/2020,618654,COUNTRY PARK,31/12/2020,128.28,641.4,769.68,Covid-19,Materials,61709
http://statistics.data.gov.uk/id/local-authority/12UE,Huntingdonshire District Council,200390,HEVEY BUILDING SUPPLIES LTD HUNTINGDON TIMBER SUPPLIES,42183,08/12/2020,618654,COUNTRY PARK,31/12/2020,18.96,94.8,113.76,Covid-19,Materials,61709
http://statistics.data.gov.uk/id/local-authority/12UE,Huntingdonshire District Council,200390,HEVEY BUILDING SUPPLIES LTD HUNTINGDON TIMBER SUPPLIES,42183,08/12/2020,618654,COUNTRY PARK,31/12/2020,12.85,64.26,77.11,Covid-19,Materials,61709
http://statistics.data.gov.uk/id/local-authority/12UE,Huntingdonshire District Council,200390,HEVEY BUILDING SUPPLIES LTD HUNTINGDON TIMBER SUPPLIES,42183,08/12/2020,618654,COUNTRY PARK,31/12/2020,12.9,64.5,77.4,Covid-19,Materials,61709
http://statistics.data.gov.uk/id/local-authority/12UE,Huntingdonshire District Council,200390,HEVEY BUILDING SUPPLIES LTD HUNTINGDON TIMBER SUPPLIES,42183,08/12/2020,618654,COUNTRY PARK,31/12/2020,4.2,21,25.2,Covid-19,Materials,61709
http://statistics.data.gov.uk/id/local-authority/12UE,Huntingdonshire District Council,200390,HEVEY BUILDING SUPPLIES LTD HUNTINGDON TIMBER SUPPLIES,42183,08/12/2020,618654,COUNTRY PARK,31/12/2020,2.45,12.24,14.69,Covid-19,Materials,61709
http://statistics.data.gov.uk/id/local-authority/12UE,Huntingdonshire District Council,200390,HEVEY BUILDING SUPPLIES LTD HUNTINGDON TIMBER SUPPLIES,42183,08/12/2020,618654,COUNTRY PARK,31/12/2020,2.64,13.2,15.84,Covid-19,Materials,61709
http://statistics.data.gov.uk/id/local-authority/12UE,Huntingdonshire District Council,200390,HEVEY BUILDING SUPPLIES LTD HUNTINGDON TIMBER SUPPLIES,42183,08/12/2020,618654,COUNTRY PARK,31/12/2020,3.16,15.81,18.97,Covid-19,Materials,61709
http://statistics.data.gov.uk/id/local-authority/12UE,Huntingdonshire District Council,200390,HEVEY BUILDING SUPPLIES LTD HUNTINGDON TIMBER SUPPLIES,42183,08/12/2020,618654,COUNTRY PARK,31/12/2020,15.49,77.46,92.95,Covid-19,Materials,61709
http://statistics.data.gov.uk/id/local-authority/12UE,Huntingdonshire District Council,200390,HEVEY BUILDING SUPPLIES LTD HUNTINGDON TIMBER SUPPLIES,42183,08/12/2020,618654,COUNTRY PARK,31/12/2020,30.26,151.3,181.56,Covid-19,Materials,61709
http://statistics.data.gov.uk/id/local-authority/12UE,Huntingdonshire District Council,200060,ARTHUR IBBETT LTD ARTHUR IBBETT LTD,41635,30/11/2020,186336,"CHAIN LINK, PADLOCKS",10/12/2020,26.64,133.2,159.84,Covid-19,Materials,61709
http://statistics.data.gov.uk/id/local-authority/12UE,Huntingdonshire District Council,201894,REDACTED,40629,03/11/2020,PRF031120,WOODEN CABLE REELS,05/11/2020,0,300,300,Covid-19,Materials,61709
http://statistics.data.gov.uk/id/local-authority/12UE,Huntingdonshire District Council,200698,ROYAL MAIL GROUP LTD ROYAL MAIL GROUP LTD,39381,14/09/2020,9061536007,POSTAGE,08/10/2020,35.23,176.13,211.36,Covid-19,Parking Charges Season Tickets,51507
http://statistics.data.gov.uk/id/local-authority/12UE,Huntingdonshire District Council,200156,CAMBRIDGE VENDING LTD T/A THE VENDING PEOPLE CAMBRIDGE VENDING,41209,23/10/2020,210970,OPS VENDING MACHINE,19/11/2020,99.95,499.75,599.7,Covid-19,Sale Of Food & Drink,51209
http://statistics.data.gov.uk/id/local-authority/12UE,Huntingdonshire District Council,200156,CAMBRIDGE VENDING LTD T/A THE VENDING PEOPLE CAMBRIDGE VENDING,41209,23/10/2020,210970,OPS VENDING MACHINE,19/11/2020,139.56,697.82,837.38,Covid-19,Sale Of Food & Drink,51209
http://statistics.data.gov.uk/id/local-authority/12UE,Huntingdonshire District Council,200156,CAMBRIDGE VENDING LTD T/A THE VENDING PEOPLE CAMBRIDGE VENDING,42002,20/11/2020,211059,VENDING MACHINES,10/12/2020,30.78,153.92,184.7,Covid-19,Sale Of Food & Drink,51209
http://statistics.data.gov.uk/id/local-authority/12UE,Huntingdonshire District Council,200156,CAMBRIDGE VENDING LTD T/A THE VENDING PEOPLE CAMBRIDGE VENDING,42002,20/11/2020,211059,VENDING MACHINES,10/12/2020,75.48,377.38,452.86,Covid-19,Sale Of Food & Drink,51209
http://statistics.data.gov.uk/id/local-authority/12UE,Huntingdonshire District Council,200429,J BREHENY CIVIL ENGINEERING LTD J BREHENY CIVIL ENGINEERING LTD,42193,02/12/2020,HMG/5106/33492,COVID SIGNS,23/12/2020,1150,5750,6900,Covid-19,Signs,60299
http://statistics.data.gov.uk/id/local-authority/12UE,Huntingdonshire District Council,200429,J BREHENY CIVIL ENGINEERING LTD J BREHENY CIVIL ENGINEERING LTD,42193,02/12/2020,HMG/5106/33492,COVID SIGNS,23/12/2020,204.88,1024.4,1229.28,Covid-19,Signs,60299
http://statistics.data.gov.uk/id/local-authority/12UE,Huntingdonshire District Council,201138,BORNEY UK LTD,39066,10/09/2020,51900,SIGNS,08/10/2020,441.76,2208.8,2650.56,Covid-19,Signs,60299
http://statistics.data.gov.uk/id/local-authority/12UE,Huntingdonshire District Council,201138,BORNEY UK LTD,40233,06/10/2020,52089,SIGNS,29/10/2020,128.4,642,770.4,Covid-19,Signs,60299
http://statistics.data.gov.uk/id/local-authority/12UE,Huntingdonshire District Council,202249.01,M&D FLOORING LTD,41356,21/11/2020,699,PAXTON PITS,26/11/2020,518.75,2593.75,3112.5,Covid-19,Site Alterations And Materials,60273
http://statistics.data.gov.uk/id/local-authority/12UE,Huntingdonshire District Council,201698,HOT LEARNING LTD T/A ENGAGE IN LEARNING,42296,27/11/2020,INV-04074,TRAINING,23/12/2020,192.6,963,1155.6,Covid-19,Staff Development And Training,60115
http://statistics.data.gov.uk/id/local-authority/12UE,Huntingdonshire District Council,202333,CMYK BURNLEY LTD,41194,12/11/2020,3078,FLOOR GRAPHICS,10/12/2020,120,600,720,Covid-19,Statutory Advertising,62006
http://statistics.data.gov.uk/id/local-authority/12UE,Huntingdonshire District Council,202333,CMYK BURNLEY LTD,41194,12/11/2020,3078,FLOOR GRAPHICS,10/12/2020,1.6,7.99,9.59,Covid-19,Statutory Advertising,62006
http://statistics.data.gov.uk/id/local-authority/12UE,Huntingdonshire District Council,202251,REDACTED,40763,19/10/2020,1028,VEHICLE CLEANING,05/11/2020,0,600,600,Covid-19,Vehicle Cleaning,60923
http://statistics.data.gov.uk/id/local-authority/12UE,Huntingdonshire District Council,202251,REDACTED,40763,19/10/2020,1028,VEHICLE CLEANING,05/11/2020,0,30,30,Covid-19,Vehicle Cleaning,60923
http://statistics.data.gov.uk/id/local-authority/12UE,Huntingdonshire District Council,202251,REDACTED,40763,19/10/2020,1028,VEHICLE CLEANING,05/11/2020,0,150,150,Covid-19,Vehicle Cleaning,60923
http://statistics.data.gov.uk/id/local-authority/12UE,Huntingdonshire District Council,202251,REDACTED,40763,19/10/2020,1028,VEHICLE CLEANING,05/11/2020,0,150,150,Covid-19,Vehicle Cleaning,60923
http://statistics.data.gov.uk/id/local-authority/12UE,Huntingdonshire District Council,202251,REDACTED,39479,21/09/2020,1024,VEHICLE CLEANING,01/10/2020,0,580,580,Covid-19,Vehicle Cleaning,60923
http://statistics.data.gov.uk/id/local-authority/12UE,Huntingdonshire District Council,202251,REDACTED,39479,21/09/2020,1024,VEHICLE CLEANING,01/10/2020,0,30,30,Covid-19,Vehicle Cleaning,60923
http://statistics.data.gov.uk/id/local-authority/12UE,Huntingdonshire District Council,202251,REDACTED,39479,21/09/2020,1024,VEHICLE CLEANING,01/10/2020,0,150,150,Covid-19,Vehicle Cleaning,60923
http://statistics.data.gov.uk/id/local-authority/12UE,Huntingdonshire District Council,202251,REDACTED,39479,21/09/2020,1024,VEHICLE CLEANING,01/10/2020,0,150,150,Covid-19,Vehicle Cleaning,60923
http://statistics.data.gov.uk/id/local-authority/12UE,Huntingdonshire District Council,202251,REDACTED,40764,26/10/2020,1029,VEHICLE CLEANING,05/11/2020,0,580,580,Covid-19,Vehicle Cleaning,60923
http://statistics.data.gov.uk/id/local-authority/12UE,Huntingdonshire District Council,202251,REDACTED,40764,26/10/2020,1029,VEHICLE CLEANING,05/11/2020,0,30,30,Covid-19,Vehicle Cleaning,60923
http://statistics.data.gov.uk/id/local-authority/12UE,Huntingdonshire District Council,202251,REDACTED,40764,26/10/2020,1029,VEHICLE CLEANING,05/11/2020,0,150,150,Covid-19,Vehicle Cleaning,60923
http://statistics.data.gov.uk/id/local-authority/12UE,Huntingdonshire District Council,202251,REDACTED,40764,26/10/2020,1029,VEHICLE CLEANING,05/11/2020,0,150,150,Covid-19,Vehicle Cleaning,60923
http://statistics.data.gov.uk/id/local-authority/12UE,Huntingdonshire District Council,202251,REDACTED,42105,09/11/2020,1031,VEHICLE CLEANING,10/12/2020,0,580,580,Covid-19,Vehicle Cleaning,60923
http://statistics.data.gov.uk/id/local-authority/12UE,Huntingdonshire District Council,202251,REDACTED,42105,09/11/2020,1031,VEHICLE CLEANING,10/12/2020,0,30,30,Covid-19,Vehicle Cleaning,60923
http://statistics.data.gov.uk/id/local-authority/12UE,Huntingdonshire District Council,202251,REDACTED,42105,09/11/2020,1031,VEHICLE CLEANING,10/12/2020,0,150,150,Covid-19,Vehicle Cleaning,60923
http://statistics.data.gov.uk/id/local-authority/12UE,Huntingdonshire District Council,202251,REDACTED,42105,09/11/2020,1031,VEHICLE CLEANING,10/12/2020,0,150,150,Covid-19,Vehicle Cleaning,60923
http://statistics.data.gov.uk/id/local-authority/12UE,Huntingdonshire District Council,202251,REDACTED,42107,16/11/2020,1032,VEHICLE CLEANING,10/12/2020,0,580,580,Covid-19,Vehicle Cleaning,60923
http://statistics.data.gov.uk/id/local-authority/12UE,Huntingdonshire District Council,202251,REDACTED,42107,16/11/2020,1032,VEHICLE CLEANING,10/12/2020,0,30,30,Covid-19,Vehicle Cleaning,60923
http://statistics.data.gov.uk/id/local-authority/12UE,Huntingdonshire District Council,202251,REDACTED,42107,16/11/2020,1032,VEHICLE CLEANING,10/12/2020,0,150,150,Covid-19,Vehicle Cleaning,60923
http://statistics.data.gov.uk/id/local-authority/12UE,Huntingdonshire District Council,202251,REDACTED,42107,16/11/2020,1032,VEHICLE CLEANING,10/12/2020,0,150,150,Covid-19,Vehicle Cleaning,60923
http://statistics.data.gov.uk/id/local-authority/12UE,Huntingdonshire District Council,202251,REDACTED,42312,07/12/2020,1035,VEHICLE CLEANING,17/12/2020,0,560,560,Covid-19,Vehicle Cleaning,60923
http://statistics.data.gov.uk/id/local-authority/12UE,Huntingdonshire District Council,202251,REDACTED,42312,07/12/2020,1035,VEHICLE CLEANING,17/12/2020,0,30,30,Covid-19,Vehicle Cleaning,60923
http://statistics.data.gov.uk/id/local-authority/12UE,Huntingdonshire District Council,202251,REDACTED,42312,07/12/2020,1035,VEHICLE CLEANING,17/12/2020,0,150,150,Covid-19,Vehicle Cleaning,60923
http://statistics.data.gov.uk/id/local-authority/12UE,Huntingdonshire District Council,202251,REDACTED,42312,07/12/2020,1035,VEHICLE CLEANING,17/12/2020,0,150,150,Covid-19,Vehicle Cleaning,60923
http://statistics.data.gov.uk/id/local-authority/12UE,Huntingdonshire District Council,202251,REDACTED,42312,07/12/2020,1035,VEHICLE CLEANING,17/12/2020,0,15,15,Covid-19,Vehicle Cleaning,60923
http://statistics.data.gov.uk/id/local-authority/12UE,Huntingdonshire District Council,202251,REDACTED,42313,14/12/2020,1036,VEHICLE CLEANING,17/12/2020,0,560,560,Covid-19,Vehicle Cleaning,60923
http://statistics.data.gov.uk/id/local-authority/12UE,Huntingdonshire District Council,202251,REDACTED,42313,14/12/2020,1036,VEHICLE CLEANING,17/12/2020,0,30,30,Covid-19,Vehicle Cleaning,60923
http://statistics.data.gov.uk/id/local-authority/12UE,Huntingdonshire District Council,202251,REDACTED,42313,14/12/2020,1036,VEHICLE CLEANING,17/12/2020,0,150,150,Covid-19,Vehicle Cleaning,60923
http://statistics.data.gov.uk/id/local-authority/12UE,Huntingdonshire District Council,202251,REDACTED,42313,14/12/2020,1036,VEHICLE CLEANING,17/12/2020,0,150,150,Covid-19,Vehicle Cleaning,60923
http://statistics.data.gov.uk/id/local-authority/12UE,Huntingdonshire District Council,202251,REDACTED,42313,14/12/2020,1036,VEHICLE CLEANING,17/12/2020,0,15,15,Covid-19,Vehicle Cleaning,60923
http://statistics.data.gov.uk/id/local-authority/12UE,Huntingdonshire District Council,202251,REDACTED,39478,14/09/2020,1023,VEHICLE CLEANING,01/10/2020,0,580,580,Covid-19,Vehicle Cleaning,60923
http://statistics.data.gov.uk/id/local-authority/12UE,Huntingdonshire District Council,202251,REDACTED,39478,14/09/2020,1023,VEHICLE CLEANING,01/10/2020,0,30,30,Covid-19,Vehicle Cleaning,60923
http://statistics.data.gov.uk/id/local-authority/12UE,Huntingdonshire District Council,202251,REDACTED,39478,14/09/2020,1023,VEHICLE CLEANING,01/10/2020,0,150,150,Covid-19,Vehicle Cleaning,60923
http://statistics.data.gov.uk/id/local-authority/12UE,Huntingdonshire District Council,202251,REDACTED,39478,14/09/2020,1023,VEHICLE CLEANING,01/10/2020,0,135,135,Covid-19,Vehicle Cleaning,60923
http://statistics.data.gov.uk/id/local-authority/12UE,Huntingdonshire District Council,202251,REDACTED,40760,28/09/2020,1025,VEHICLE CLEANING,05/11/2020,0,560,560,Covid-19,Vehicle Cleaning,60923
http://statistics.data.gov.uk/id/local-authority/12UE,Huntingdonshire District Council,202251,REDACTED,40760,28/09/2020,1025,VEHICLE CLEANING,05/11/2020,0,30,30,Covid-19,Vehicle Cleaning,60923
http://statistics.data.gov.uk/id/local-authority/12UE,Huntingdonshire District Council,202251,REDACTED,40760,28/09/2020,1025,VEHICLE CLEANING,05/11/2020,0,150,150,Covid-19,Vehicle Cleaning,60923
http://statistics.data.gov.uk/id/local-authority/12UE,Huntingdonshire District Council,202251,REDACTED,40760,28/09/2020,1025,VEHICLE CLEANING,05/11/2020,0,150,150,Covid-19,Vehicle Cleaning,60923
http://statistics.data.gov.uk/id/local-authority/12UE,Huntingdonshire District Council,202251,REDACTED,40761,05/10/2020,1026,VEHICLE CLEANING,05/11/2020,0,560,560,Covid-19,Vehicle Cleaning,60923
http://statistics.data.gov.uk/id/local-authority/12UE,Huntingdonshire District Council,202251,REDACTED,40761,05/10/2020,1026,VEHICLE CLEANING,05/11/2020,0,30,30,Covid-19,Vehicle Cleaning,60923
http://statistics.data.gov.uk/id/local-authority/12UE,Huntingdonshire District Council,202251,REDACTED,40761,05/10/2020,1026,VEHICLE CLEANING,05/11/2020,0,150,150,Covid-19,Vehicle Cleaning,60923
http://statistics.data.gov.uk/id/local-authority/12UE,Huntingdonshire District Council,202251,REDACTED,40761,05/10/2020,1026,VEHICLE CLEANING,05/11/2020,0,150,150,Covid-19,Vehicle Cleaning,60923
http://statistics.data.gov.uk/id/local-authority/12UE,Huntingdonshire District Council,202251,REDACTED,40762,12/10/2020,1027,VEHICLE CLEANING,05/11/2020,0,560,560,Covid-19,Vehicle Cleaning,60923
http://statistics.data.gov.uk/id/local-authority/12UE,Huntingdonshire District Council,202251,REDACTED,40762,12/10/2020,1027,VEHICLE CLEANING,05/11/2020,0,30,30,Covid-19,Vehicle Cleaning,60923
http://statistics.data.gov.uk/id/local-authority/12UE,Huntingdonshire District Council,202251,REDACTED,40762,12/10/2020,1027,VEHICLE CLEANING,05/11/2020,0,150,150,Covid-19,Vehicle Cleaning,60923
http://statistics.data.gov.uk/id/local-authority/12UE,Huntingdonshire District Council,202251,REDACTED,40762,12/10/2020,1027,VEHICLE CLEANING,05/11/2020,0,150,150,Covid-19,Vehicle Cleaning,60923
http://statistics.data.gov.uk/id/local-authority/12UE,Huntingdonshire District Council,202251,REDACTED,41073,02/11/2020,1030,VEHICLE CLEANING,19/11/2020,0,560,560,Covid-19,Vehicle Cleaning,60923
http://statistics.data.gov.uk/id/local-authority/12UE,Huntingdonshire District Council,202251,REDACTED,41073,02/11/2020,1030,VEHICLE CLEANING,19/11/2020,0,30,30,Covid-19,Vehicle Cleaning,60923
http://statistics.data.gov.uk/id/local-authority/12UE,Huntingdonshire District Council,202251,REDACTED,41073,02/11/2020,1030,VEHICLE CLEANING,19/11/2020,0,150,150,Covid-19,Vehicle Cleaning,60923
http://statistics.data.gov.uk/id/local-authority/12UE,Huntingdonshire District Council,202251,REDACTED,41073,02/11/2020,1030,VEHICLE CLEANING,19/11/2020,0,150,150,Covid-19,Vehicle Cleaning,60923
http://statistics.data.gov.uk/id/local-authority/12UE,Huntingdonshire District Council,202251,REDACTED,42108,23/11/2020,1033,VEHICLE CLEANING,10/12/2020,0,560,560,Covid-19,Vehicle Cleaning,60923
http://statistics.data.gov.uk/id/local-authority/12UE,Huntingdonshire District Council,202251,REDACTED,42108,23/11/2020,1033,VEHICLE CLEANING,10/12/2020,0,30,30,Covid-19,Vehicle Cleaning,60923
http://statistics.data.gov.uk/id/local-authority/12UE,Huntingdonshire District Council,202251,REDACTED,42108,23/11/2020,1033,VEHICLE CLEANING,10/12/2020,0,150,150,Covid-19,Vehicle Cleaning,60923
http://statistics.data.gov.uk/id/local-authority/12UE,Huntingdonshire District Council,202251,REDACTED,42108,23/11/2020,1033,VEHICLE CLEANING,10/12/2020,0,150,150,Covid-19,Vehicle Cleaning,60923
http://statistics.data.gov.uk/id/local-authority/12UE,Huntingdonshire District Council,202251,REDACTED,42125,30/11/2020,1034,VEHICLE CLEANING,17/12/2020,0,560,560,Covid-19,Vehicle Cleaning,60923
http://statistics.data.gov.uk/id/local-authority/12UE,Huntingdonshire District Council,202251,REDACTED,42125,30/11/2020,1034,VEHICLE CLEANING,17/12/2020,0,30,30,Covid-19,Vehicle Cleaning,60923
http://statistics.data.gov.uk/id/local-authority/12UE,Huntingdonshire District Council,202251,REDACTED,42125,30/11/2020,1034,VEHICLE CLEANING,17/12/2020,0,150,150,Covid-19,Vehicle Cleaning,60923
http://statistics.data.gov.uk/id/local-authority/12UE,Huntingdonshire District Council,202251,REDACTED,42125,30/11/2020,1034,VEHICLE CLEANING,17/12/2020,0,150,150,Covid-19,Vehicle Cleaning,60923
http://statistics.data.gov.uk/id/local-authority/12UE,Huntingdonshire District Council,200614,PHOENIX SOFTWARE LTD PHOENIX SOFTWARE LTD,39052,14/09/2020,OP/I875731,SUBSCRIPTIONS,08/10/2020,138.6,693,831.6,CPCA Recharge,Ict Software,64071
http://statistics.data.gov.uk/id/local-authority/12UE,Huntingdonshire District Council,200614,PHOENIX SOFTWARE LTD PHOENIX SOFTWARE LTD,39052,14/09/2020,OP/I875731,SUBSCRIPTIONS,08/10/2020,127.26,636.3,763.56,CPCA Recharge,Ict Software,64071
http://statistics.data.gov.uk/id/local-authority/12UE,Huntingdonshire District Council,200770,TELEFONICA UK LTD TELEFONICA UK LTD,40228,20/09/2020,71792142,LINE RENTAL,22/10/2020,108.71,543.53,652.24,CPCA Recharge,Line Rental,64075
http://statistics.data.gov.uk/id/local-authority/12UE,Huntingdonshire District Council,200770,TELEFONICA UK LTD TELEFONICA UK LTD,40250,20/08/2020,69419724,LINE RENTAL,22/10/2020,18.94,94.72,113.66,CPCA Recharge,Line Rental,64075
http://statistics.data.gov.uk/id/local-authority/12UE,Huntingdonshire District Council,200770,TELEFONICA UK LTD TELEFONICA UK LTD,42130,20/11/2020,76822811,LINE RENTAL,17/12/2020,3.3,16.5,19.8,CPCA Recharge,Line Rental,64075
http://statistics.data.gov.uk/id/local-authority/12UE,Huntingdonshire District Council,200770,TELEFONICA UK LTD TELEFONICA UK LTD,41331,20/10/2020,74285708,3cict phones,26/11/2020,26.1,130.5,156.6,CPCA Recharge,Line Rental,64075
http://statistics.data.gov.uk/id/local-authority/12UE,Huntingdonshire District Council,200159,CAMBRIDGESHIRE COUNTY COUNCIL CAMBRIDGESHIRE COUNTY COUNCIL,39425,18/09/2020,4.23002E+11,RAMSEY LIBRARY - GROUND FLOOR,15/10/2020,0,986.25,986.25,Customer Service Centres,Profit Share Payable,67100
http://statistics.data.gov.uk/id/local-authority/12UE,Huntingdonshire District Council,200827,VIVID RESOURCING LIMITED VIVID RESOURCING LIMITED,40347,07/10/2020,51045,REDACTED,29/10/2020,537.5,2687.52,3225.02,Development Management,Agency Staff,60011
http://statistics.data.gov.uk/id/local-authority/12UE,Huntingdonshire District Council,200827,VIVID RESOURCING LIMITED VIVID RESOURCING LIMITED,40949,28/10/2020,51747,REDACTED,19/11/2020,519.2,2596,3115.2,Development Management,Agency Staff,60011
http://statistics.data.gov.uk/id/local-authority/12UE,Huntingdonshire District Council,200827,VIVID RESOURCING LIMITED VIVID RESOURCING LIMITED,40350,14/10/2020,51287,REDACTED,05/11/2020,325.6,1628,1953.6,Development Management,Agency Staff,60011
http://statistics.data.gov.uk/id/local-authority/12UE,Huntingdonshire District Council,200827,VIVID RESOURCING LIMITED VIVID RESOURCING LIMITED,40947,04/11/2020,52014,REDACTED,26/11/2020,325.6,1628,1953.6,Development Management,Agency Staff,60011
http://statistics.data.gov.uk/id/local-authority/12UE,Huntingdonshire District Council,200827,VIVID RESOURCING LIMITED VIVID RESOURCING LIMITED,41116,11/11/2020,52257,REDACTED,03/12/2020,325.6,1628,1953.6,Development Management,Agency Staff,60011
http://statistics.data.gov.uk/id/local-authority/12UE,Huntingdonshire District Council,200827,VIVID RESOURCING LIMITED VIVID RESOURCING LIMITED,41385,18/11/2020,52456,REDACTED,10/12/2020,325.6,1628,1953.6,Development Management,Agency Staff,60011
http://statistics.data.gov.uk/id/local-authority/12UE,Huntingdonshire District Council,200827,VIVID RESOURCING LIMITED VIVID RESOURCING LIMITED,41581,25/11/2020,52677,REDACTED,10/12/2020,325.6,1628,1953.6,Development Management,Agency Staff,60011
http://statistics.data.gov.uk/id/local-authority/12UE,Huntingdonshire District Council,200827,VIVID RESOURCING LIMITED VIVID RESOURCING LIMITED,42167,09/12/2020,53252,REDACTED,31/12/2020,325.6,1628,1953.6,Development Management,Agency Staff,60011
http://statistics.data.gov.uk/id/local-authority/12UE,Huntingdonshire District Council,200827,VIVID RESOURCING LIMITED VIVID RESOURCING LIMITED,38958,09/09/2020,50109,REDACTED,01/10/2020,299.55,1497.76,1797.31,Development Management,Agency Staff,60011
http://statistics.data.gov.uk/id/local-authority/12UE,Huntingdonshire District Council,200827,VIVID RESOURCING LIMITED VIVID RESOURCING LIMITED,39167,16/09/2020,50312,REDACTED,08/10/2020,299.55,1497.76,1797.31,Development Management,Agency Staff,60011
http://statistics.data.gov.uk/id/local-authority/12UE,Huntingdonshire District Council,200827,VIVID RESOURCING LIMITED VIVID RESOURCING LIMITED,40348,23/09/2020,50520,REDACTED,29/10/2020,299.55,1497.76,1797.31,Development Management,Agency Staff,60011
http://statistics.data.gov.uk/id/local-authority/12UE,Huntingdonshire District Council,200827,VIVID RESOURCING LIMITED VIVID RESOURCING LIMITED,42079,02/12/2020,52953,REDACTED,10/12/2020,193.6,968,1161.6,Development Management,Agency Staff,60011
http://statistics.data.gov.uk/id/local-authority/12UE,Huntingdonshire District Council,202420,ANDREW MORTON ASSOCIATES LTD,40386,11/09/2020,1646-001,REDACTED,29/10/2020,190,950,1140,Development Management,Consultancy Fees,62400
http://statistics.data.gov.uk/id/local-authority/12UE,Huntingdonshire District Council,200681,RICS RICS,41347,13/11/2020,104788,SUBSCRIPTION,10/12/2020,256,1280,1536,Development Management,Membership And Subscriptions,64800
http://statistics.data.gov.uk/id/local-authority/12UE,Huntingdonshire District Council,201149,PLANNING OFFICERS SOCIETY,39809,06/10/2020,2407,SUBSCRIPTION,29/10/2020,0,325,325,Development Management,Membership And Subscriptions,64800
http://statistics.data.gov.uk/id/local-authority/12UE,Huntingdonshire District Council,200364.01,HAYMARKET MEDIA GROUP LIMITED,39901,31/08/2020,50187229,RECRUITMENT ADVERTISING,15/10/2020,199,995,1194,Development Management,Staff Recruitment Costs,60116
http://statistics.data.gov.uk/id/local-authority/12UE,Huntingdonshire District Council,202396,TARSON LTD (PLANNINGJOBS.COM),39256,08/09/2020,PJCOM133,ADVERTISING,01/10/2020,160,800,960,Development Management,Staff Recruitment Costs,60116
http://statistics.data.gov.uk/id/local-authority/12UE,Huntingdonshire District Council,200149,CAMBRIDGE CITY COUNCIL CAMBRIDGE CITY COUNCIL,41178,12/11/2020,12051526,Q3 FEES TO CHIA,10/12/2020,0,72898.8,72898.8,Disables Facilities Grants,Home Improvement Agency Fees,67200
http://statistics.data.gov.uk/id/local-authority/12UE,Huntingdonshire District Council,202329,MASWAY CONSTRUCTION LTD,41676,24/11/2020,MAS0963,170734,10/12/2020,0,22750,22750,Disables Facilities Grants,Mandatory Grants,64601
http://statistics.data.gov.uk/id/local-authority/12UE,Huntingdonshire District Council,200133,BSG PROPERTY SERVICES LTD BSG PROPERTY SERVICES LTD,39729,24/08/2020,S45425,190353,08/10/2020,0,19709.5,19709.5,Disables Facilities Grants,Mandatory Grants,64601
http://statistics.data.gov.uk/id/local-authority/12UE,Huntingdonshire District Council,200639,PRISM MEDICAL UK PRISM MEDICAL UK,41121,08/10/2020,5430224,190108,19/11/2020,0,14560.8,14560.8,Disables Facilities Grants,Mandatory Grants,64601
http://statistics.data.gov.uk/id/local-authority/12UE,Huntingdonshire District Council,200745,STANNAH LTD Ref(20HU025) STANNAH LTD Ref(20HU025),42074,30/09/2020,1085233197,191043,10/12/2020,0,14501,14501,Disables Facilities Grants,Mandatory Grants,64601
http://statistics.data.gov.uk/id/local-authority/12UE,Huntingdonshire District Council,200639,PRISM MEDICAL UK PRISM MEDICAL UK,39756,10/09/2020,5424554,190395,08/10/2020,0,12789,12789,Disables Facilities Grants,Mandatory Grants,64601
http://statistics.data.gov.uk/id/local-authority/12UE,Huntingdonshire District Council,200133,BSG PROPERTY SERVICES LTD BSG PROPERTY SERVICES LTD,39453,17/09/2020,S45613,190777,15/10/2020,0,11076.7,11076.7,Disables Facilities Grants,Mandatory Grants,64601
http://statistics.data.gov.uk/id/local-authority/12UE,Huntingdonshire District Council,200306,FOSTER & SHACKELL LTD FOSTER & SHACKELL LTD,40877,02/11/2020,8018,200093,26/11/2020,0,10632,10632,Disables Facilities Grants,Mandatory Grants,64601
http://statistics.data.gov.uk/id/local-authority/12UE,Huntingdonshire District Council,200133,BSG PROPERTY SERVICES LTD BSG PROPERTY SERVICES LTD,40690,17/09/2020,S45612,190840,05/11/2020,0,10555.08,10555.08,Disables Facilities Grants,Mandatory Grants,64601
http://statistics.data.gov.uk/id/local-authority/12UE,Huntingdonshire District Council,200133,BSG PROPERTY SERVICES LTD BSG PROPERTY SERVICES LTD,40689,17/09/2020,S45607,190954,05/11/2020,0,10306.18,10306.18,Disables Facilities Grants,Mandatory Grants,64601
http://statistics.data.gov.uk/id/local-authority/12UE,Huntingdonshire District Council,200306,FOSTER & SHACKELL LTD FOSTER & SHACKELL LTD,42242,15/10/2020,8002,190283,17/12/2020,0,8980.8,8980.8,Disables Facilities Grants,Mandatory Grants,64601
http://statistics.data.gov.uk/id/local-authority/12UE,Huntingdonshire District Council,202158,ALLBRIGHT PROPERTY MAINTENANCE LTD,42624,22/12/2020,INV-1987,190882,23/12/2020,0,7873.2,7873.2,Disables Facilities Grants,Mandatory Grants,64601
http://statistics.data.gov.uk/id/local-authority/12UE,Huntingdonshire District Council,202040,HERTS PROPERTY SOLUTIONS LTD,42452,03/09/2020,2488,190348,23/12/2020,0,6600,6600,Disables Facilities Grants,Mandatory Grants,64601
http://statistics.data.gov.uk/id/local-authority/12UE,Huntingdonshire District Council,200017,ACCESS & AUTOMATION LTD ACCESS & AUTOMATION LTD,39345,18/09/2020,6016,191010,15/10/2020,0,6576,6576,Disables Facilities Grants,Mandatory Grants,64601
http://statistics.data.gov.uk/id/local-authority/12UE,Huntingdonshire District Council,200133,BSG PROPERTY SERVICES LTD BSG PROPERTY SERVICES LTD,40688,22/09/2020,S45701,190839,05/11/2020,0,6168,6168,Disables Facilities Grants,Mandatory Grants,64601
http://statistics.data.gov.uk/id/local-authority/12UE,Huntingdonshire District Council,200307,FOSTER PROPERTY MAINTENANCE LTD FOSTER PROPERTY MAINTENANCE LTD,42285,27/11/2020,SI16757,191020,23/12/2020,0,5821.48,5821.48,Disables Facilities Grants,Mandatory Grants,64601
http://statistics.data.gov.uk/id/local-authority/12UE,Huntingdonshire District Council,200745,STANNAH LTD Ref(20HU025) STANNAH LTD Ref(20HU025),40399,13/10/2020,1085237808,190840,05/11/2020,0,5416,5416,Disables Facilities Grants,Mandatory Grants,64601
http://statistics.data.gov.uk/id/local-authority/12UE,Huntingdonshire District Council,200307,FOSTER PROPERTY MAINTENANCE LTD FOSTER PROPERTY MAINTENANCE LTD,40203,13/10/2020,SI16383,191081,05/11/2020,0,5354.97,5354.97,Disables Facilities Grants,Mandatory Grants,64601
http://statistics.data.gov.uk/id/local-authority/12UE,Huntingdonshire District Council,200133,BSG PROPERTY SERVICES LTD BSG PROPERTY SERVICES LTD,41996,18/11/2020,S46439,200201,10/12/2020,0,5280,5280,Disables Facilities Grants,Mandatory Grants,64601
http://statistics.data.gov.uk/id/local-authority/12UE,Huntingdonshire District Council,200133,BSG PROPERTY SERVICES LTD BSG PROPERTY SERVICES LTD,39454,10/07/2020,S45148,190846,01/10/2020,0,4938,4938,Disables Facilities Grants,Mandatory Grants,64601
http://statistics.data.gov.uk/id/local-authority/12UE,Huntingdonshire District Council,200133,BSG PROPERTY SERVICES LTD BSG PROPERTY SERVICES LTD,42266,20/11/2020,S46455,200208,17/12/2020,0,4936,4936,Disables Facilities Grants,Mandatory Grants,64601
http://statistics.data.gov.uk/id/local-authority/12UE,Huntingdonshire District Council,200307,FOSTER PROPERTY MAINTENANCE LTD FOSTER PROPERTY MAINTENANCE LTD,40514,16/10/2020,SI16399,190482,12/11/2020,0,4781.37,4781.37,Disables Facilities Grants,Mandatory Grants,64601
http://statistics.data.gov.uk/id/local-authority/12UE,Huntingdonshire District Council,200307,FOSTER PROPERTY MAINTENANCE LTD FOSTER PROPERTY MAINTENANCE LTD,42331,24/09/2020,SI16263,190809,17/12/2020,0,4774.92,4774.92,Disables Facilities Grants,Mandatory Grants,64601
http://statistics.data.gov.uk/id/local-authority/12UE,Huntingdonshire District Council,202158,ALLBRIGHT PROPERTY MAINTENANCE LTD,42585,19/11/2020,INV-1891,190882,23/12/2020,0,4602,4602,Disables Facilities Grants,Mandatory Grants,64601
http://statistics.data.gov.uk/id/local-authority/12UE,Huntingdonshire District Council,200133,BSG PROPERTY SERVICES LTD BSG PROPERTY SERVICES LTD,40198,15/10/2020,S45999,191106,12/11/2020,0,4554,4554,Disables Facilities Grants,Mandatory Grants,64601
http://statistics.data.gov.uk/id/local-authority/12UE,Huntingdonshire District Council,201014.01,NORSE COMMERCIAL SERVICES LTD,41165,28/08/2020,05IN-1025177,200003,19/11/2020,0,4392,4392,Disables Facilities Grants,Mandatory Grants,64601
http://statistics.data.gov.uk/id/local-authority/12UE,Huntingdonshire District Council,201014.01,NORSE COMMERCIAL SERVICES LTD,39707,27/09/2020,05IN-1025757,200086,08/10/2020,0,4367,4367,Disables Facilities Grants,Mandatory Grants,64601
http://statistics.data.gov.uk/id/local-authority/12UE,Huntingdonshire District Council,201014.01,NORSE COMMERCIAL SERVICES LTD,42260,29/11/2020,05IN-1026940,191020,17/12/2020,0,4352,4352,Disables Facilities Grants,Mandatory Grants,64601
http://statistics.data.gov.uk/id/local-authority/12UE,Huntingdonshire District Council,200307,FOSTER PROPERTY MAINTENANCE LTD FOSTER PROPERTY MAINTENANCE LTD,41420,17/09/2020,SI16211,190844,26/11/2020,0,4285.46,4285.46,Disables Facilities Grants,Mandatory Grants,64601
http://statistics.data.gov.uk/id/local-authority/12UE,Huntingdonshire District Council,201014.01,NORSE COMMERCIAL SERVICES LTD,39918,27/09/2020,05IN-1025756,190920,15/10/2020,0,4258.25,4258.25,Disables Facilities Grants,Mandatory Grants,64601
http://statistics.data.gov.uk/id/local-authority/12UE,Huntingdonshire District Council,200133,BSG PROPERTY SERVICES LTD BSG PROPERTY SERVICES LTD,39728,29/09/2020,S45814,200090,22/10/2020,0,4171,4171,Disables Facilities Grants,Mandatory Grants,64601
http://statistics.data.gov.uk/id/local-authority/12UE,Huntingdonshire District Council,201014.01,NORSE COMMERCIAL SERVICES LTD,40878,30/10/2020,05IN-10126584,200286,12/11/2020,0,4150,4150,Disables Facilities Grants,Mandatory Grants,64601
http://statistics.data.gov.uk/id/local-authority/12UE,Huntingdonshire District Council,200307,FOSTER PROPERTY MAINTENANCE LTD FOSTER PROPERTY MAINTENANCE LTD,39720,30/09/2020,SI16346,191072,22/10/2020,0,4141.11,4141.11,Disables Facilities Grants,Mandatory Grants,64601
http://statistics.data.gov.uk/id/local-authority/12UE,Huntingdonshire District Council,200307,FOSTER PROPERTY MAINTENANCE LTD FOSTER PROPERTY MAINTENANCE LTD,41434,31/10/2020,SI16693,191052,26/11/2020,0,4106.77,4106.77,Disables Facilities Grants,Mandatory Grants,64601
http://statistics.data.gov.uk/id/local-authority/12UE,Huntingdonshire District Council,201014.01,NORSE COMMERCIAL SERVICES LTD,40885,28/08/2020,05IN-1025178,190844,12/11/2020,0,4062,4062,Disables Facilities Grants,Mandatory Grants,64601
http://statistics.data.gov.uk/id/local-authority/12UE,Huntingdonshire District Council,201014.01,NORSE COMMERCIAL SERVICES LTD,40952,30/10/2020,05IN-10126583,200291,12/11/2020,0,4048.25,4048.25,Disables Facilities Grants,Mandatory Grants,64601
http://statistics.data.gov.uk/id/local-authority/12UE,Huntingdonshire District Council,200133,BSG PROPERTY SERVICES LTD BSG PROPERTY SERVICES LTD,41314,13/11/2020,S46393,200140,10/12/2020,0,4027,4027,Disables Facilities Grants,Mandatory Grants,64601
http://statistics.data.gov.uk/id/local-authority/12UE,Huntingdonshire District Council,200307,FOSTER PROPERTY MAINTENANCE LTD FOSTER PROPERTY MAINTENANCE LTD,42008,30/11/2020,SI16838,190810,10/12/2020,0,3493.81,3493.81,Disables Facilities Grants,Mandatory Grants,64601
http://statistics.data.gov.uk/id/local-authority/12UE,Huntingdonshire District Council,200133,BSG PROPERTY SERVICES LTD BSG PROPERTY SERVICES LTD,41757,20/11/2020,S46461,200138,10/12/2020,0,3451,3451,Disables Facilities Grants,Mandatory Grants,64601
http://statistics.data.gov.uk/id/local-authority/12UE,Huntingdonshire District Council,200133,BSG PROPERTY SERVICES LTD BSG PROPERTY SERVICES LTD,41759,02/11/2020,S46166,200128,03/12/2020,0,3382,3382,Disables Facilities Grants,Mandatory Grants,64601
http://statistics.data.gov.uk/id/local-authority/12UE,Huntingdonshire District Council,200290,FELGAINS LTD FELGAINS LTD,40400,16/10/2020,130008,200333,26/11/2020,0,2795,2795,Disables Facilities Grants,Mandatory Grants,64601
http://statistics.data.gov.uk/id/local-authority/12UE,Huntingdonshire District Council,200516,M WATSON CONSTRUCTION LTD M WATSON CONSTRUCTION LTD,42699,28/10/2020,24671,190740,31/12/2020,0,2730.05,2730.05,Disables Facilities Grants,Mandatory Grants,64601
http://statistics.data.gov.uk/id/local-authority/12UE,Huntingdonshire District Council,201006,ASHCO BUILDING & MAINTENANCE SERVICES LTD,39451,31/07/2020,AC0215090,190519,01/10/2020,0,2506.13,2506.13,Disables Facilities Grants,Mandatory Grants,64601
http://statistics.data.gov.uk/id/local-authority/12UE,Huntingdonshire District Council,200516,M WATSON CONSTRUCTION LTD M WATSON CONSTRUCTION LTD,42700,28/10/2020,24670,190740,31/12/2020,0,2106,2106,Disables Facilities Grants,Mandatory Grants,64601
http://statistics.data.gov.uk/id/local-authority/12UE,Huntingdonshire District Council,200516,M WATSON CONSTRUCTION LTD M WATSON CONSTRUCTION LTD,42700,28/10/2020,24670,190740,31/12/2020,0,362.92,362.92,Disables Facilities Grants,Mandatory Grants,64601
http://statistics.data.gov.uk/id/local-authority/12UE,Huntingdonshire District Council,200516,M WATSON CONSTRUCTION LTD M WATSON CONSTRUCTION LTD,42071,17/08/2020,24510,191043,10/12/2020,0,2445.57,2445.57,Disables Facilities Grants,Mandatory Grants,64601
http://statistics.data.gov.uk/id/local-authority/12UE,Huntingdonshire District Council,200745,STANNAH LTD Ref(20HU025) STANNAH LTD Ref(20HU025),41167,11/11/2020,1085248316,200366,03/12/2020,0,2393,2393,Disables Facilities Grants,Mandatory Grants,64601
http://statistics.data.gov.uk/id/local-authority/12UE,Huntingdonshire District Council,200516,M WATSON CONSTRUCTION LTD M WATSON CONSTRUCTION LTD,39706,17/08/2020,24566,200145,08/10/2020,0,2270.55,2270.55,Disables Facilities Grants,Mandatory Grants,64601
http://statistics.data.gov.uk/id/local-authority/12UE,Huntingdonshire District Council,200133,BSG PROPERTY SERVICES LTD BSG PROPERTY SERVICES LTD,40675,24/08/2020,S45427,190653,05/11/2020,0,2203.6,2203.6,Disables Facilities Grants,Mandatory Grants,64601
http://statistics.data.gov.uk/id/local-authority/12UE,Huntingdonshire District Council,200516,M WATSON CONSTRUCTION LTD M WATSON CONSTRUCTION LTD,42264,30/11/2020,24729,190846,23/12/2020,0,2198.6,2198.6,Disables Facilities Grants,Mandatory Grants,64601
http://statistics.data.gov.uk/id/local-authority/12UE,Huntingdonshire District Council,200133,BSG PROPERTY SERVICES LTD BSG PROPERTY SERVICES LTD,38976,04/09/2020,S45477,190835,01/10/2020,0,1815,1815,Disables Facilities Grants,Mandatory Grants,64601
http://statistics.data.gov.uk/id/local-authority/12UE,Huntingdonshire District Council,200133,BSG PROPERTY SERVICES LTD BSG PROPERTY SERVICES LTD,39342,31/07/2020,S45284,191010,01/10/2020,0,1755.85,1755.85,Disables Facilities Grants,Mandatory Grants,64601
http://statistics.data.gov.uk/id/local-authority/12UE,Huntingdonshire District Council,200133,BSG PROPERTY SERVICES LTD BSG PROPERTY SERVICES LTD,41168,17/08/2020,S45365,200003,19/11/2020,0,1510.6,1510.6,Disables Facilities Grants,Mandatory Grants,64601
http://statistics.data.gov.uk/id/local-authority/12UE,Huntingdonshire District Council,200133,BSG PROPERTY SERVICES LTD BSG PROPERTY SERVICES LTD,40199,02/06/2020,S45036,190336,22/10/2020,0,1486.28,1486.28,Disables Facilities Grants,Mandatory Grants,64601
http://statistics.data.gov.uk/id/local-authority/12UE,Huntingdonshire District Council,200306,FOSTER & SHACKELL LTD FOSTER & SHACKELL LTD,42241,26/11/2020,8050,190283,17/12/2020,0,1440,1440,Disables Facilities Grants,Mandatory Grants,64601
http://statistics.data.gov.uk/id/local-authority/12UE,Huntingdonshire District Council,200516,M WATSON CONSTRUCTION LTD M WATSON CONSTRUCTION LTD,42265,30/11/2020,24730,190846,23/12/2020,0,1297.67,1297.67,Disables Facilities Grants,Mandatory Grants,64601
http://statistics.data.gov.uk/id/local-authority/12UE,Huntingdonshire District Council,200133,BSG PROPERTY SERVICES LTD BSG PROPERTY SERVICES LTD,39456,04/09/2020,S45474,191059,01/10/2020,0,1195,1195,Disables Facilities Grants,Mandatory Grants,64601
http://statistics.data.gov.uk/id/local-authority/12UE,Huntingdonshire District Council,200133,BSG PROPERTY SERVICES LTD BSG PROPERTY SERVICES LTD,40636,17/08/2020,S45370,190108,05/11/2020,0,941.5,941.5,Disables Facilities Grants,Mandatory Grants,64601
http://statistics.data.gov.uk/id/local-authority/12UE,Huntingdonshire District Council,202040,HERTS PROPERTY SOLUTIONS LTD,40879,30/10/2020,2525,200048,26/11/2020,0,882,882,Disables Facilities Grants,Mandatory Grants,64601
http://statistics.data.gov.uk/id/local-authority/12UE,Huntingdonshire District Council,200133,BSG PROPERTY SERVICES LTD BSG PROPERTY SERVICES LTD,41123,22/05/2020,S44976,190373,19/11/2020,0,667.25,667.25,Disables Facilities Grants,Mandatory Grants,64601
http://statistics.data.gov.uk/id/local-authority/12UE,Huntingdonshire District Council,202344,Tranter Fire and Security Systems Limited,39343,28/08/2020,90860,191010,01/10/2020,0,596.4,596.4,Disables Facilities Grants,Mandatory Grants,64601
http://statistics.data.gov.uk/id/local-authority/12UE,Huntingdonshire District Council,200133,BSG PROPERTY SERVICES LTD BSG PROPERTY SERVICES LTD,40874,12/10/2020,S45957,190353,12/11/2020,0,555,555,Disables Facilities Grants,Mandatory Grants,64601
http://statistics.data.gov.uk/id/local-authority/12UE,Huntingdonshire District Council,201915,KINGKRAFT,39956,23/09/2020,213680,190843,15/10/2020,0,395,395,Disables Facilities Grants,Mandatory Grants,64601
http://statistics.data.gov.uk/id/local-authority/12UE,Huntingdonshire District Council,200133,BSG PROPERTY SERVICES LTD BSG PROPERTY SERVICES LTD,40205,22/05/2020,S44975,190333,22/10/2020,0,355.38,355.38,Disables Facilities Grants,Mandatory Grants,64601
http://statistics.data.gov.uk/id/local-authority/12UE,Huntingdonshire District Council,201477,PLANNING PORTAL,40790,10/09/2020,PP-09022265,overpaid,12/11/2020,0,693,693,Dm Application Processing,Planning Applications Income,54100
http://statistics.data.gov.uk/id/local-authority/12UE,Huntingdonshire District Council,201477,PLANNING PORTAL,40025,30/09/2020,PP-08888453,withdrawn,22/10/2020,0,462,462,Dm Application Processing,Planning Applications Income,54100
http://statistics.data.gov.uk/id/local-authority/12UE,Huntingdonshire District Council,201477,PLANNING PORTAL,40026,30/09/2020,PP-08044257,application is overdue,22/10/2020,0,462,462,Dm Application Processing,Planning Applications Income,54100
http://statistics.data.gov.uk/id/local-authority/12UE,Huntingdonshire District Council,201477,PLANNING PORTAL,42444,21/12/2020,PP-08780503,REDACTED,23/12/2020,0,462,462,Dm Application Processing,Planning Applications Income,54100
http://statistics.data.gov.uk/id/local-authority/12UE,Huntingdonshire District Council,201477,PLANNING PORTAL,42447,21/12/2020,PP-09209367,REDACTED,23/12/2020,0,346,346,Dm Application Processing,Planning Applications Income,54100
http://statistics.data.gov.uk/id/local-authority/12UE,Huntingdonshire District Council,200420,INTERACTION RECRUITMENT PLC INTERACTION RECRUITMENT PLC,40317,18/10/2020,INV2065084,REDACTED,12/11/2020,103.64,518.2,621.84,Document Centre,Agency Staff,60011
http://statistics.data.gov.uk/id/local-authority/12UE,Huntingdonshire District Council,200420,INTERACTION RECRUITMENT PLC INTERACTION RECRUITMENT PLC,40515,25/10/2020,INV2066595,REDACTED,19/11/2020,103.64,518.2,621.84,Document Centre,Agency Staff,60011
http://statistics.data.gov.uk/id/local-authority/12UE,Huntingdonshire District Council,200420,INTERACTION RECRUITMENT PLC INTERACTION RECRUITMENT PLC,41081,08/11/2020,INV2069543,REDACTED,03/12/2020,103.64,518.2,621.84,Document Centre,Agency Staff,60011
http://statistics.data.gov.uk/id/local-authority/12UE,Huntingdonshire District Council,200420,INTERACTION RECRUITMENT PLC INTERACTION RECRUITMENT PLC,42165,06/12/2020,INV2075377,REDACTED,31/12/2020,112.18,560.92,673.1,Document Centre,Agency Staff,60011
http://statistics.data.gov.uk/id/local-authority/12UE,Huntingdonshire District Council,200420,INTERACTION RECRUITMENT PLC INTERACTION RECRUITMENT PLC,39039,13/09/2020,INV2058048,REDACTED,08/10/2020,103.64,518.19,621.83,Document Centre,Agency Staff,60011
http://statistics.data.gov.uk/id/local-authority/12UE,Huntingdonshire District Council,200420,INTERACTION RECRUITMENT PLC INTERACTION RECRUITMENT PLC,39498,27/09/2020,INV2060845,REDACTED,22/10/2020,103.64,518.19,621.83,Document Centre,Agency Staff,60011
http://statistics.data.gov.uk/id/local-authority/12UE,Huntingdonshire District Council,200420,INTERACTION RECRUITMENT PLC INTERACTION RECRUITMENT PLC,39790,04/10/2020,INV2062246,REDACTED,29/10/2020,103.64,518.19,621.83,Document Centre,Agency Staff,60011
http://statistics.data.gov.uk/id/local-authority/12UE,Huntingdonshire District Council,200420,INTERACTION RECRUITMENT PLC INTERACTION RECRUITMENT PLC,40066,11/10/2020,INV2063610,REDACTED,05/11/2020,103.64,518.19,621.83,Document Centre,Agency Staff,60011
http://statistics.data.gov.uk/id/local-authority/12UE,Huntingdonshire District Council,200420,INTERACTION RECRUITMENT PLC INTERACTION RECRUITMENT PLC,41261,15/11/2020,INV2071056,DOC CENTRE STAFF,10/12/2020,103.64,518.19,621.83,Document Centre,Agency Staff,60011
http://statistics.data.gov.uk/id/local-authority/12UE,Huntingdonshire District Council,200420,INTERACTION RECRUITMENT PLC INTERACTION RECRUITMENT PLC,41943,29/11/2020,INV2073957,REDACTED,10/12/2020,100.14,500.69,600.83,Document Centre,Agency Staff,60011
http://statistics.data.gov.uk/id/local-authority/12UE,Huntingdonshire District Council,200420,INTERACTION RECRUITMENT PLC INTERACTION RECRUITMENT PLC,38878,06/09/2020,INV2056695,REDACTED,01/10/2020,82.63,413.16,495.79,Document Centre,Agency Staff,60011
http://statistics.data.gov.uk/id/local-authority/12UE,Huntingdonshire District Council,200420,INTERACTION RECRUITMENT PLC INTERACTION RECRUITMENT PLC,39347,20/09/2020,INV2059449,REDACTED,15/10/2020,82.63,413.16,495.79,Document Centre,Agency Staff,60011
http://statistics.data.gov.uk/id/local-authority/12UE,Huntingdonshire District Council,200420,INTERACTION RECRUITMENT PLC INTERACTION RECRUITMENT PLC,41537,22/11/2020,INV2072506,REDACTED,10/12/2020,82.63,413.15,495.78,Document Centre,Agency Staff,60011
http://statistics.data.gov.uk/id/local-authority/12UE,Huntingdonshire District Council,200420,INTERACTION RECRUITMENT PLC INTERACTION RECRUITMENT PLC,40765,01/11/2020,INV2068087,REDACTED,26/11/2020,56.72,283.61,340.33,Document Centre,Agency Staff,60011
http://statistics.data.gov.uk/id/local-authority/12UE,Huntingdonshire District Council,200854,WOOD GREEN ANIMAL SHELTERS WOOD GREEN ANIMAL SHELTERS,39741,31/08/2020,1481,STRAYS AUG 20,08/10/2020,375,1875,2250,Dog Control,Grants And Contributions,64600
http://statistics.data.gov.uk/id/local-authority/12UE,Huntingdonshire District Council,200854,WOOD GREEN ANIMAL SHELTERS WOOD GREEN ANIMAL SHELTERS,39745,30/09/2020,1488,STRAYS SEPT 20,22/10/2020,375,1875,2250,Dog Control,Grants And Contributions,64600
http://statistics.data.gov.uk/id/local-authority/12UE,Huntingdonshire District Council,200854,WOOD GREEN ANIMAL SHELTERS WOOD GREEN ANIMAL SHELTERS,41090,31/10/2020,1494,STRAYS OCT 20,26/11/2020,375,1875,2250,Dog Control,Grants And Contributions,64600
http://statistics.data.gov.uk/id/local-authority/12UE,Huntingdonshire District Council,200854,WOOD GREEN ANIMAL SHELTERS WOOD GREEN ANIMAL SHELTERS,42075,30/11/2020,1500,STRAYS NOV 20,10/12/2020,375,1875,2250,Dog Control,Grants And Contributions,64600
http://statistics.data.gov.uk/id/local-authority/12UE,Huntingdonshire District Council,201114,XP RECRUITMENT LTD,39028,09/09/2020,9874,WAREHOUSE W/E 05/09/20,01/10/2020,1207.11,6035.55,7242.66,Domestic Waste Collection,Agency Staff,60011
http://statistics.data.gov.uk/id/local-authority/12UE,Huntingdonshire District Council,201114,XP RECRUITMENT LTD,39636,30/09/2020,9944,WAREHOUSE W/E 26/09/20,22/10/2020,925.78,4628.9,5554.68,Domestic Waste Collection,Agency Staff,60011
http://statistics.data.gov.uk/id/local-authority/12UE,Huntingdonshire District Council,200743,STAFFLINE GROUP STAFFLINE GROUP,41559,25/11/2020,90433,REFUSE W/C 15/11/20,10/12/2020,373.28,1866.41,2239.69,Domestic Waste Collection,Agency Staff,60011
http://statistics.data.gov.uk/id/local-authority/12UE,Huntingdonshire District Council,200743,STAFFLINE GROUP STAFFLINE GROUP,42606,02/12/2020,91246,GARDEN WASTE W/C 22/11/20,23/12/2020,317.5,1587.5,1905,Domestic Waste Collection,Agency Staff,60011
http://statistics.data.gov.uk/id/local-authority/12UE,Huntingdonshire District Council,200743,STAFFLINE GROUP STAFFLINE GROUP,42102,11/11/2020,88854,REFUSE W/C 01/11/20,10/12/2020,314.74,1573.68,1888.42,Domestic Waste Collection,Agency Staff,60011
http://statistics.data.gov.uk/id/local-authority/12UE,Huntingdonshire District Council,200743,STAFFLINE GROUP STAFFLINE GROUP,39667,26/08/2020,80066,REFUSE W/C 16/08/20,08/10/2020,303.02,1515.12,1818.14,Domestic Waste Collection,Agency Staff,60011
http://statistics.data.gov.uk/id/local-authority/12UE,Huntingdonshire District Council,200743,STAFFLINE GROUP STAFFLINE GROUP,42605,02/12/2020,91248,REFUSE W/C 22/11/20,23/12/2020,285.05,1425.24,1710.29,Domestic Waste Collection,Agency Staff,60011
http://statistics.data.gov.uk/id/local-authority/12UE,Huntingdonshire District Council,200743,STAFFLINE GROUP STAFFLINE GROUP,39669,19/08/2020,79278,REFUSE W/C 09/08/20,08/10/2020,284.28,1421.42,1705.7,Domestic Waste Collection,Agency Staff,60011
http://statistics.data.gov.uk/id/local-authority/12UE,Huntingdonshire District Council,200743,STAFFLINE GROUP STAFFLINE GROUP,42607,04/11/2020,88055,REFUSE W/C 25/10/20,23/12/2020,244.28,1221.42,1465.7,Domestic Waste Collection,Agency Staff,60011
http://statistics.data.gov.uk/id/local-authority/12UE,Huntingdonshire District Council,200743,STAFFLINE GROUP STAFFLINE GROUP,41376,21/10/2020,86428,REFUSE W/C 11/10/20,26/11/2020,227.27,1136.34,1363.61,Domestic Waste Collection,Agency Staff,60011
http://statistics.data.gov.uk/id/local-authority/12UE,Huntingdonshire District Council,200743,STAFFLINE GROUP STAFFLINE GROUP,41379,14/10/2020,85616,REFUSE W/C 04/10/20,26/11/2020,226.26,1131.29,1357.55,Domestic Waste Collection,Agency Staff,60011
http://statistics.data.gov.uk/id/local-authority/12UE,Huntingdonshire District Council,200743,STAFFLINE GROUP STAFFLINE GROUP,40722,12/08/2020,78483,REFUSE W/C 02/08/20,05/11/2020,190.55,952.76,1143.31,Domestic Waste Collection,Agency Staff,60011
http://statistics.data.gov.uk/id/local-authority/12UE,Huntingdonshire District Council,200743,STAFFLINE GROUP STAFFLINE GROUP,40414,09/09/2020,81654,REFUSE W/C 30/08/20,29/10/2020,170.59,852.94,1023.53,Domestic Waste Collection,Agency Staff,60011
http://statistics.data.gov.uk/id/local-authority/12UE,Huntingdonshire District Council,200743,STAFFLINE GROUP STAFFLINE GROUP,41371,07/10/2020,84825,REFUSE W/C 27/09/20,26/11/2020,132.01,660.03,792.04,Domestic Waste Collection,Agency Staff,60011
http://statistics.data.gov.uk/id/local-authority/12UE,Huntingdonshire District Council,200743,STAFFLINE GROUP STAFFLINE GROUP,40728,30/09/2020,84039,REFUSE W/C 20/09/20,05/11/2020,130.97,654.84,785.81,Domestic Waste Collection,Agency Staff,60011
http://statistics.data.gov.uk/id/local-authority/12UE,Huntingdonshire District Council,200743,STAFFLINE GROUP STAFFLINE GROUP,41374,28/10/2020,87259,REFUSE W/C 18/10/20,26/11/2020,95.02,475.08,570.1,Domestic Waste Collection,Agency Staff,60011
http://statistics.data.gov.uk/id/local-authority/12UE,Huntingdonshire District Council,200743,STAFFLINE GROUP STAFFLINE GROUP,42111,18/11/2020,89639,REFUSE W/C 08/11/20,10/12/2020,56.25,281.26,337.51,Domestic Waste Collection,Agency Staff,60011
http://statistics.data.gov.uk/id/local-authority/12UE,Huntingdonshire District Council,200725,SMI INT GROUP LTD SMI GROUP,39575,30/09/2020,INV792611,WORK WEAR,22/10/2020,96,480,576,Domestic Waste Collection,"Clothes, Uniform And Laundry",62000
http://statistics.data.gov.uk/id/local-authority/12UE,Huntingdonshire District Council,200725,SMI INT GROUP LTD SMI GROUP,39575,30/09/2020,INV792611,WORK WEAR,22/10/2020,78.92,394.6,473.52,Domestic Waste Collection,"Clothes, Uniform And Laundry",62000
http://statistics.data.gov.uk/id/local-authority/12UE,Huntingdonshire District Council,200725,SMI INT GROUP LTD SMI GROUP,39575,30/09/2020,INV792611,WORK WEAR,22/10/2020,421.08,2105.4,2526.48,Domestic Waste Collection,"Clothes, Uniform And Laundry",62000
http://statistics.data.gov.uk/id/local-authority/12UE,Huntingdonshire District Council,200725,SMI INT GROUP LTD SMI GROUP,39575,30/09/2020,INV792611,WORK WEAR,22/10/2020,39.46,197.3,236.76,Domestic Waste Collection,"Clothes, Uniform And Laundry",62000
http://statistics.data.gov.uk/id/local-authority/12UE,Huntingdonshire District Council,200725,SMI INT GROUP LTD SMI GROUP,39677,02/10/2020,INV794106,WORK WEAR,29/10/2020,63.14,315.68,378.82,Domestic Waste Collection,"Clothes, Uniform And Laundry",62000
http://statistics.data.gov.uk/id/local-authority/12UE,Huntingdonshire District Council,200725,SMI INT GROUP LTD SMI GROUP,39677,02/10/2020,INV794106,WORK WEAR,29/10/2020,70.18,350.9,421.08,Domestic Waste Collection,"Clothes, Uniform And Laundry",62000
http://statistics.data.gov.uk/id/local-authority/12UE,Huntingdonshire District Council,200725,SMI INT GROUP LTD SMI GROUP,40100,15/10/2020,INV799332,WORK WEAR,12/11/2020,370.92,1854.62,2225.54,Domestic Waste Collection,"Clothes, Uniform And Laundry",62000
http://statistics.data.gov.uk/id/local-authority/12UE,Huntingdonshire District Council,200725,SMI INT GROUP LTD SMI GROUP,39837,07/10/2020,INV795716,WORK WEAR,29/10/2020,39.46,197.3,236.76,Domestic Waste Collection,"Clothes, Uniform And Laundry",62000
http://statistics.data.gov.uk/id/local-authority/12UE,Huntingdonshire District Council,200725,SMI INT GROUP LTD SMI GROUP,41193,13/11/2020,INV812594,TRAINERS,10/12/2020,144,720,864,Domestic Waste Collection,"Clothes, Uniform And Laundry",62000
http://statistics.data.gov.uk/id/local-authority/12UE,Huntingdonshire District Council,200054.01,APSE,42292,30/10/2020,2021/1373,CONSULTANCY,17/12/2020,310,1550,1860,Domestic Waste Collection,Consultancy Fees,62400
http://statistics.data.gov.uk/id/local-authority/12UE,Huntingdonshire District Council,201051,REDACTED,42651,25/02/2020,PRF250220A,PETTY CASH,31/12/2020,0,19,19,Domestic Waste Collection,Employee Allowances,60012
http://statistics.data.gov.uk/id/local-authority/12UE,Huntingdonshire District Council,202117,INTELLIGENT FINGERPRINTING LTD,39370,24/09/2020,1073,DRUG SCREENING,12/11/2020,23.34,116.7,140.04,Domestic Waste Collection,Laboratory Services,62406
http://statistics.data.gov.uk/id/local-authority/12UE,Huntingdonshire District Council,202117,INTELLIGENT FINGERPRINTING LTD,39370,24/09/2020,1073,DRUG SCREENING,12/11/2020,1,5,6,Domestic Waste Collection,Laboratory Services,62406
http://statistics.data.gov.uk/id/local-authority/12UE,Huntingdonshire District Council,201476,HUNT & COOMBS LLP,39490,14/09/2020,174319,REDACTED,01/10/2020,50,250,300,Domestic Waste Collection,Legal Fees,63200
http://statistics.data.gov.uk/id/local-authority/12UE,Huntingdonshire District Council,200731.01,SOLACE GROUP,39349,10/09/2020,3440,SPRINGBOARD PROGRAMME,08/10/2020,50,250,300,Domestic Waste Collection,Membership And Subscriptions,64800
http://statistics.data.gov.uk/id/local-authority/12UE,Huntingdonshire District Council,201612,STEVENAGE PACKAGING LTD,41432,05/11/2020,105579,REFUSE SACKS,03/12/2020,1096.63,5483.12,6579.75,Domestic Waste Collection,Refuse Containers/Litter Bins,61200
http://statistics.data.gov.uk/id/local-authority/12UE,Huntingdonshire District Council,201612,STEVENAGE PACKAGING LTD,41309,29/09/2020,104511,REFUSE SACKS,26/11/2020,521.16,2605.82,3126.98,Domestic Waste Collection,Refuse Containers/Litter Bins,61200
http://statistics.data.gov.uk/id/local-authority/12UE,Huntingdonshire District Council,201612,STEVENAGE PACKAGING LTD,41431,04/11/2020,105578,REFUSE SACKS,26/11/2020,390.87,1954.37,2345.24,Domestic Waste Collection,Refuse Containers/Litter Bins,61200
http://statistics.data.gov.uk/id/local-authority/12UE,Huntingdonshire District Council,201612,STEVENAGE PACKAGING LTD,41310,22/10/2020,105179,REFUSE SACKS,26/11/2020,191.64,958.18,1149.82,Domestic Waste Collection,Refuse Containers/Litter Bins,61200
http://statistics.data.gov.uk/id/local-authority/12UE,Huntingdonshire District Council,201612,STEVENAGE PACKAGING LTD,41310,22/10/2020,105179,REFUSE SACKS,26/11/2020,82.52,412.57,495.09,Domestic Waste Collection,Refuse Containers/Litter Bins,61200
http://statistics.data.gov.uk/id/local-authority/12UE,Huntingdonshire District Council,201544,REDACTED,39339,28/09/2020,PRF280920,PETTY CASH,01/10/2020,0,19,19,Domestic Waste Collection,Travel Allowance - Other,60022
http://statistics.data.gov.uk/id/local-authority/12UE,Huntingdonshire District Council,201051,REDACTED,42651,25/02/2020,PRF250220A,PETTY CASH,31/12/2020,0,19,19,Domestic Waste Collection,Travel Allowance - Other,60022
http://statistics.data.gov.uk/id/local-authority/12UE,Huntingdonshire District Council,200079,BANDVULC TRUCK TYRES BANDVULC TRUCK TYRES,39856,28/08/2020,148944,TYRES,15/10/2020,175.36,876.78,1052.14,Domestic Waste Collection,Tyres,62926
http://statistics.data.gov.uk/id/local-authority/12UE,Huntingdonshire District Council,200079,BANDVULC TRUCK TYRES BANDVULC TRUCK TYRES,41044,29/10/2020,150533,TYRES,26/11/2020,7.23,36.17,43.4,Domestic Waste Collection,Tyres,62926
http://statistics.data.gov.uk/id/local-authority/12UE,Huntingdonshire District Council,200079,BANDVULC TRUCK TYRES BANDVULC TRUCK TYRES,41930,27/11/2020,151402,VEHICLE MAINTENANCE,10/12/2020,13.57,67.84,81.41,Domestic Waste Collection,Tyres,62926
http://statistics.data.gov.uk/id/local-authority/12UE,Huntingdonshire District Council,200079,BANDVULC TRUCK TYRES BANDVULC TRUCK TYRES,41044,29/10/2020,150533,TYRES,26/11/2020,16.9,84.51,101.41,Domestic Waste Collection,Tyres,62926
http://statistics.data.gov.uk/id/local-authority/12UE,Huntingdonshire District Council,200079,BANDVULC TRUCK TYRES BANDVULC TRUCK TYRES,41930,27/11/2020,151402,VEHICLE MAINTENANCE,10/12/2020,17.1,85.51,102.61,Domestic Waste Collection,Tyres,62926
http://statistics.data.gov.uk/id/local-authority/12UE,Huntingdonshire District Council,200079,BANDVULC TRUCK TYRES BANDVULC TRUCK TYRES,41044,29/10/2020,150533,TYRES,26/11/2020,5.21,26.05,31.26,Domestic Waste Collection,Tyres,62926
http://statistics.data.gov.uk/id/local-authority/12UE,Huntingdonshire District Council,200079,BANDVULC TRUCK TYRES BANDVULC TRUCK TYRES,39856,28/08/2020,148944,TYRES,15/10/2020,226.84,1134.19,1361.03,Domestic Waste Collection,Tyres,62926
http://statistics.data.gov.uk/id/local-authority/12UE,Huntingdonshire District Council,200079,BANDVULC TRUCK TYRES BANDVULC TRUCK TYRES,41930,27/11/2020,151402,VEHICLE MAINTENANCE,10/12/2020,7.8,38.98,46.78,Domestic Waste Collection,Tyres,62926
http://statistics.data.gov.uk/id/local-authority/12UE,Huntingdonshire District Council,200079,BANDVULC TRUCK TYRES BANDVULC TRUCK TYRES,41044,29/10/2020,150533,TYRES,26/11/2020,14.55,72.73,87.28,Domestic Waste Collection,Tyres,62926
http://statistics.data.gov.uk/id/local-authority/12UE,Huntingdonshire District Council,200079,BANDVULC TRUCK TYRES BANDVULC TRUCK TYRES,39859,29/09/2020,149678,TYRES,22/10/2020,5.77,28.87,34.64,Domestic Waste Collection,Tyres,62926
http://statistics.data.gov.uk/id/local-authority/12UE,Huntingdonshire District Council,200079,BANDVULC TRUCK TYRES BANDVULC TRUCK TYRES,39856,28/08/2020,148944,TYRES,15/10/2020,14.55,72.73,87.28,Domestic Waste Collection,Tyres,62926
http://statistics.data.gov.uk/id/local-authority/12UE,Huntingdonshire District Council,200079,BANDVULC TRUCK TYRES BANDVULC TRUCK TYRES,39856,28/08/2020,148944,TYRES,15/10/2020,26.59,132.97,159.56,Domestic Waste Collection,Tyres,62926
http://statistics.data.gov.uk/id/local-authority/12UE,Huntingdonshire District Council,200774,TERBERG MATEC UK LTD TERBERG MATEC UK LTD,41149,12/11/2020,96397554,ORDER 2291,10/12/2020,52.05,260.25,312.3,Domestic Waste Collection,Vehicle Maintenance - External,60921
http://statistics.data.gov.uk/id/local-authority/12UE,Huntingdonshire District Council,200721,SILVER SHIELD WINDSCREENS SILVER SHIELD WINDSCREENS,41539,12/11/2020,SSA41953,ORDER 2404,10/12/2020,58,290,348,Domestic Waste Collection,Vehicle Maintenance - External,60921
http://statistics.data.gov.uk/id/local-authority/12UE,Huntingdonshire District Council,200236,DENNIS EAGLE LTD DENNIS EAGLE LTD,40270,14/10/2020,390550,ORDER 2201,05/11/2020,260,1300,1560,Domestic Waste Collection,Vehicle Maintenance - External,60921
http://statistics.data.gov.uk/id/local-authority/12UE,Huntingdonshire District Council,200220,D & H SIGN & DISPLAY SERVICE D & H SIGN & DISPLAY SERVICE,40903,06/10/2020,7024,VEHICLE MAINTENANCE,12/11/2020,115.2,576,691.2,Domestic Waste Collection,Vehicle Maintenance - External,60921
http://statistics.data.gov.uk/id/local-authority/12UE,Huntingdonshire District Council,200250,DTS SOLUTIONS (UK) LTD DTS SOLUTIONS (UK) LTD,41000,05/10/2020,S006331,VEHICLE REPAIRS,12/11/2020,68.8,344,412.8,Domestic Waste Collection,Vehicle Maintenance - External,60921
http://statistics.data.gov.uk/id/local-authority/12UE,Huntingdonshire District Council,201445,CMS SUPATRAK LTD,40272,07/10/2020,87834,VEHICLE MAINTENANCE,29/10/2020,30,150,180,Domestic Waste Collection,Vehicle Maintenance - External,60921
http://statistics.data.gov.uk/id/local-authority/12UE,Huntingdonshire District Council,200000,A C COMMERCIALS A C COMMERCIALS,39569,25/09/2020,INV0007963,ORDER 2143,22/10/2020,136.8,684,820.8,Domestic Waste Collection,Vehicle Repairs And Maintenance,60904
http://statistics.data.gov.uk/id/local-authority/12UE,Huntingdonshire District Council,200000,A C COMMERCIALS A C COMMERCIALS,39125,11/09/2020,INV0007718,ORDER 2079,08/10/2020,51.66,258.3,309.96,Domestic Waste Collection,Vehicle Repairs And Maintenance,60904
http://statistics.data.gov.uk/id/local-authority/12UE,Huntingdonshire District Council,200774,TERBERG MATEC UK LTD TERBERG MATEC UK LTD,40141,06/10/2020,96395761,ORDER 2167,29/10/2020,83.48,417.4,500.88,Domestic Waste Collection,Vehicle Repairs And Maintenance,60904
http://statistics.data.gov.uk/id/local-authority/12UE,Huntingdonshire District Council,200236,DENNIS EAGLE LTD DENNIS EAGLE LTD,42484,08/12/2020,DE11365768,ORDER 2495,31/12/2020,77.79,388.93,466.72,Domestic Waste Collection,Vehicle Repairs And Maintenance,60904
http://statistics.data.gov.uk/id/local-authority/12UE,Huntingdonshire District Council,200236,DENNIS EAGLE LTD DENNIS EAGLE LTD,40928,28/10/2020,DE11355141,ORDER 2225,19/11/2020,67.35,336.76,404.11,Domestic Waste Collection,Vehicle Repairs And Maintenance,60904
http://statistics.data.gov.uk/id/local-authority/12UE,Huntingdonshire District Council,200236,DENNIS EAGLE LTD DENNIS EAGLE LTD,41131,09/11/2020,392874,ORDER 2286,03/12/2020,141.44,707.2,848.64,Domestic Waste Collection,Vehicle Repairs And Maintenance,60904
http://statistics.data.gov.uk/id/local-authority/12UE,Huntingdonshire District Council,200774,TERBERG MATEC UK LTD TERBERG MATEC UK LTD,41152,12/11/2020,96397557,ORDER 2292,10/12/2020,120.26,601.28,721.54,Domestic Waste Collection,Vehicle Repairs And Maintenance,60904
http://statistics.data.gov.uk/id/local-authority/12UE,Huntingdonshire District Council,200236,DENNIS EAGLE LTD DENNIS EAGLE LTD,40157,08/10/2020,DE11349782,ORDER 2192,05/11/2020,114.83,574.16,688.99,Domestic Waste Collection,Vehicle Repairs And Maintenance,60904
http://statistics.data.gov.uk/id/local-authority/12UE,Huntingdonshire District Council,200236,DENNIS EAGLE LTD DENNIS EAGLE LTD,41068,21/10/2020,DE11353301,ORDER 2215,19/11/2020,89.34,446.69,536.03,Domestic Waste Collection,Vehicle Repairs And Maintenance,60904
http://statistics.data.gov.uk/id/local-authority/12UE,Huntingdonshire District Council,200236,DENNIS EAGLE LTD DENNIS EAGLE LTD,40747,06/10/2020,DE11348980,ORDER 2179,05/11/2020,139.33,696.64,835.97,Domestic Waste Collection,Vehicle Repairs And Maintenance,60904
http://statistics.data.gov.uk/id/local-authority/12UE,Huntingdonshire District Council,200236,DENNIS EAGLE LTD DENNIS EAGLE LTD,41160,10/11/2020,DE11358452,ORDER 2289,03/12/2020,118.27,591.37,709.64,Domestic Waste Collection,Vehicle Repairs And Maintenance,60904
http://statistics.data.gov.uk/id/local-authority/12UE,Huntingdonshire District Council,200236,DENNIS EAGLE LTD DENNIS EAGLE LTD,41161,09/11/2020,DE11358056,ORDER 2287,03/12/2020,111.54,557.69,669.23,Domestic Waste Collection,Vehicle Repairs And Maintenance,60904
http://statistics.data.gov.uk/id/local-authority/12UE,Huntingdonshire District Council,200774,TERBERG MATEC UK LTD TERBERG MATEC UK LTD,39659,22/09/2020,96395077,ORDER 2123,15/10/2020,84.44,422.19,506.63,Domestic Waste Collection,Vehicle Repairs And Maintenance,60904
http://statistics.data.gov.uk/id/local-authority/12UE,Huntingdonshire District Council,200236,DENNIS EAGLE LTD DENNIS EAGLE LTD,39679,21/09/2020,DE11344645,ORDER 2121,15/10/2020,64.98,324.89,389.87,Domestic Waste Collection,Vehicle Repairs And Maintenance,60904
http://statistics.data.gov.uk/id/local-authority/12UE,Huntingdonshire District Council,202416,REPEAT PRESCRIPTION ORDER LINE LTD T/A HALLS THE CHEMIST,40073,24/09/2020,240920,DISPOSAL OF CLINICAL SHARPS,22/10/2020,120,600,720,Domestic Waste Collection,Waste Disposal Costs,64050
http://statistics.data.gov.uk/id/local-authority/12UE,Huntingdonshire District Council,202416,REPEAT PRESCRIPTION ORDER LINE LTD T/A HALLS THE CHEMIST,40073,24/09/2020,240920,DISPOSAL OF CLINICAL SHARPS,22/10/2020,120,600,720,Domestic Waste Collection,Waste Disposal Costs,64050
http://statistics.data.gov.uk/id/local-authority/12UE,Huntingdonshire District Council,202256,EASY CLEAN CONTRACTORS LTD,41078,31/08/2020,16819,Aug-20,19/11/2020,271.86,1359.32,1631.18,Eastfield House,Cleaning Services,60501
http://statistics.data.gov.uk/id/local-authority/12UE,Huntingdonshire District Council,202256,EASY CLEAN CONTRACTORS LTD,39786,30/09/2020,16925,CLEANING SEPT 20,22/10/2020,271.86,1359.32,1631.18,Eastfield House,Cleaning Services,60501
http://statistics.data.gov.uk/id/local-authority/12UE,Huntingdonshire District Council,202256,EASY CLEAN CONTRACTORS LTD,40993,31/10/2020,17079,Oct-20,26/11/2020,271.86,1359.32,1631.18,Eastfield House,Cleaning Services,60501
http://statistics.data.gov.uk/id/local-authority/12UE,Huntingdonshire District Council,202256,EASY CLEAN CONTRACTORS LTD,42087,30/11/2020,17229,CLEANING NOV 20,10/12/2020,271.86,1359.32,1631.18,Eastfield House,Cleaning Services,60501
http://statistics.data.gov.uk/id/local-authority/12UE,Huntingdonshire District Council,202325,CONSULTUS (PEMXQ) LTD,39759,30/06/2020,13896,EPC SURVEY,08/10/2020,119.6,598,717.6,Eastfield House,Consultancy Fees,62400
http://statistics.data.gov.uk/id/local-authority/12UE,Huntingdonshire District Council,202398,LINEAR CONTROL SYSTEMS LTD,39955,12/10/2020,2780,BMS PERFORMANCE SPEC,05/11/2020,362.8,1814,2176.8,Eastfield House,Consultancy Fees,62400
http://statistics.data.gov.uk/id/local-authority/12UE,Huntingdonshire District Council,200363,HAVEN POWER LTD HAVEN POWER LTD,42505,03/12/2020,IN1104815358,EASTFIELD HOUSE,23/12/2020,1136.62,5683.11,6819.73,Eastfield House,Electricity,60303
http://statistics.data.gov.uk/id/local-authority/12UE,Huntingdonshire District Council,200363,HAVEN POWER LTD HAVEN POWER LTD,37752,10/08/2020,IN1104589090,EASTFIELD HOUSE,23/12/2020,1132.08,5660.38,6792.46,Eastfield House,Electricity,60303
http://statistics.data.gov.uk/id/local-authority/12UE,Huntingdonshire District Council,200363,HAVEN POWER LTD HAVEN POWER LTD,42001,03/12/2020,IN1104815359,EASTFIELD HOUSE,10/12/2020,813.21,4066.04,4879.25,Eastfield House,Electricity,60303
http://statistics.data.gov.uk/id/local-authority/12UE,Huntingdonshire District Council,200363,HAVEN POWER LTD HAVEN POWER LTD,40971,09/11/2020,IN1104768409,EASTFIELD HOUSE,19/11/2020,703.11,3515.56,4218.67,Eastfield House,Electricity,60303
http://statistics.data.gov.uk/id/local-authority/12UE,Huntingdonshire District Council,200363,HAVEN POWER LTD HAVEN POWER LTD,39923,08/10/2020,IN1104705484,EASTFIELD HOUSE,15/10/2020,506.37,2531.83,3038.2,Eastfield House,Electricity,60303
http://statistics.data.gov.uk/id/local-authority/12UE,Huntingdonshire District Council,201051,REDACTED,42651,25/02/2020,PRF250220A,PETTY CASH,31/12/2020,9.38,46.91,56.29,Eastfield House,Equipment,61713
http://statistics.data.gov.uk/id/local-authority/12UE,Huntingdonshire District Council,200126,BRITISH GAS BUSINESS BRITISH GAS BUSINESS,41236,03/11/2020,940041311,ops -gas,26/11/2020,169.22,846.1,1015.32,Eastfield House,Gas,60305
http://statistics.data.gov.uk/id/local-authority/12UE,Huntingdonshire District Council,200126,BRITISH GAS BUSINESS BRITISH GAS BUSINESS,42221,03/12/2020,991369651,EASTFIELD HOUSE,17/12/2020,149.14,745.71,894.85,Eastfield House,Gas,60305
http://statistics.data.gov.uk/id/local-authority/12UE,Huntingdonshire District Council,200126,BRITISH GAS BUSINESS BRITISH GAS BUSINESS,39725,24/09/2020,967604856,EFH,08/10/2020,58.94,294.72,353.66,Eastfield House,Gas,60305
http://statistics.data.gov.uk/id/local-authority/12UE,Huntingdonshire District Council,200542,MIRAMAR ENGINEERING LTD MIRAMAR ENGINEERING LTD,40592,20/10/2020,4657,EASTFIELD HOUSE,12/11/2020,928.69,4643.43,5572.12,Eastfield House,Maintenance - Building,60201
http://statistics.data.gov.uk/id/local-authority/12UE,Huntingdonshire District Council,200901,UTILITY TRADE,38654,07/09/2020,UTP1256,SMA INVERTER,01/10/2020,445.97,2229.85,2675.82,Eastfield House,Maintenance - Building,60201
http://statistics.data.gov.uk/id/local-authority/12UE,Huntingdonshire District Council,200999,"HARRISONS ELECTRICAL, MECHANICAL AND PROPERTY SERVICES",40766,30/10/2020,36065,PAXTON PITS,26/11/2020,14.94,74.7,89.64,Eastfield House,Maintenance - Building,60201
http://statistics.data.gov.uk/id/local-authority/12UE,Huntingdonshire District Council,201147,STANAIR INDUSTRIAL DOOR SERVICES LTD,39061,16/09/2020,43550,EMERGENCY CALL OUT,08/10/2020,151,755,906,Eastfield House,Maintenance - Building,60201
http://statistics.data.gov.uk/id/local-authority/12UE,Huntingdonshire District Council,200999,"HARRISONS ELECTRICAL, MECHANICAL AND PROPERTY SERVICES",41338,20/11/2020,36207,EASTFIELD HOUSE,10/12/2020,125,625,750,Eastfield House,Maintenance - Building,60201
http://statistics.data.gov.uk/id/local-authority/12UE,Huntingdonshire District Council,201147,STANAIR INDUSTRIAL DOOR SERVICES LTD,40644,30/10/2020,44434,EASTFIELD HOUSE,26/11/2020,110.8,554,664.8,Eastfield House,Maintenance - Building,60201
http://statistics.data.gov.uk/id/local-authority/12UE,Huntingdonshire District Council,201147,STANAIR INDUSTRIAL DOOR SERVICES LTD,41264,17/11/2020,44873,ops 0- stairlifts,10/12/2020,97,485,582,Eastfield House,Maintenance - Building,60201
http://statistics.data.gov.uk/id/local-authority/12UE,Huntingdonshire District Council,200075,B S GRAVES ELECTRICAL LTD B S GRAVES ELECTRICAL LTD,42180,07/12/2020,29599,EASTFIELD HOUSE,31/12/2020,82.06,410.3,492.36,Eastfield House,Maintenance - Building,60201
http://statistics.data.gov.uk/id/local-authority/12UE,Huntingdonshire District Council,200999,"HARRISONS ELECTRICAL, MECHANICAL AND PROPERTY SERVICES",40941,09/11/2020,36124,PFH,03/12/2020,22.88,114.41,137.29,Eastfield House,Maintenance - Building,60201
http://statistics.data.gov.uk/id/local-authority/12UE,Huntingdonshire District Council,200999,"HARRISONS ELECTRICAL, MECHANICAL AND PROPERTY SERVICES",40941,09/11/2020,36124,PFH,03/12/2020,57.8,289,346.8,Eastfield House,Maintenance - Building,60201
http://statistics.data.gov.uk/id/local-authority/12UE,Huntingdonshire District Council,200542,MIRAMAR ENGINEERING LTD MIRAMAR ENGINEERING LTD,42595,30/11/2020,4844,EASTFIELD HOUSE,23/12/2020,58,290,348,Eastfield House,Maintenance - Building,60201
